Workbook

Sheet Title
D9: Transportation Services
D11: Fall Quarter
D12: Parking Space Occupancy Report
D14: University of California San Diego
D15: December 20, 2024

Sheet Key Locations Lots & Structures
B2: Location | D2: Location | Q2: Location | V2: Location
B3: La Jolla Campus | D3: La Jolla Campus | Q3: La Jolla Campus | V3: Medical Center Hillcrest
B5: Area | D5: Area | Q5: Area | V5: Area
B6: Scripps Institution of Oceanography | D6: West Campus | Q6: East Campus | V6: Medical Center Hillcrest
B8: Neighborhood | D8: Neighborhood | Q8: Neighborhood | V8: Neighborhood
D9: Revelle | E9: Muir | F9: N. Torrey Pines | G9: Marshall | H9: Roosevelt | I9: North | J9: Torrey Pines | K9: Pepper | L9: University | M9: Warren | N9: Campus | O9: Health | Q9: East | R9: Health | S9: Preuss | T9: Science | V9: Medical Center Hillcrest
B10: SIO | D10: College | E10: College | F10: Living &Learning | G10: College | H10: College | I10: Campus | J10: Center | K10: Canyon | L10: Center | M10: College | N10: Services | O10: Science | Q10: Recreation | R10: Sciences | S10: School | T10: Research
N11: Complex | O11: West | R11: East | T11: Park
B12: Lots & Structures | D12: Lots & Structures | Q12: Lots & Structures | V12: Lots & Structures
B13: P001 | D13: P101 | E13: P113 | F13: Scholars | G13: P302 | H13: P306 | I13: P351 | J13: TPC South | K13: P401 | L13: P405 | M13: P418 | N13: P507 | O13: P601 | Q13: P701 | R13: P702 | S13: P706 | T13: P782 | V13: Arbor
B14: P002 | D14: P103 | E14: P201 | F14: (P211-3) | G14: P303 | H14: Hopkins | I14: P352 | J14: (P381-3) | K14: P402 | L14: P407 | M14: P502 | N14: P510 | O14: P602 | R14: P703 | T14: P785 | V14: (P901-14)
B15: P003 | D15: P106 | E15: P202 | G15: P304 | H15: (P341-7) | I15: P357 | J15: P384 | K15: P406 | L15: P408 | M15: P503 | O15: P603 | R15: P704 | T15: Vela/ | V15: First Ave
B16: P004 | D16: P107 | E16: P203 | G16: P308 | H16: P353 | I16: P358 | J16: P385 | K16: P506 | L16: P410 | M16: P504 | O16: P604 | R16: P705 | T16: Nuevo W. | V16: (P921-28)
B17: P005 | D17: P108 | E17: P204 | G17: P309 | H17: P354 | I17: P359 | J17: P386 | L17: P411 | M17: P505 | O17: P605 | R17: P706 | T17: (P791-3) | V17: P952
B18: P006 | D18: P110 | E18: P205 | G18: P310 | H18: Pangea | J18: TPC North | L18: P412 | M18: P508 | O18: P606 | R18: P707 | V18: P953
B19: P007 | D19: P112 | E19: P206 | H19: (P371-6) | J19: (P391-5) | L19: P413 | M19: P509 | O19: P607 | R19: Campus Pt E. | V19: P954
B20: P008 | D20: P116 | E20: P414 | L20: Gilman | O20: P608 | R20: (P721-2) | V20: P955
B21: P009 | E21: P415 | L21: (P451-6) | O21: P610 | R21: Campus Pt W. | V21: P956
B22: P010 | E22: P416 | L22: P501 | O22: South | R22: (P731-5) | V22: P957
B23: P011 | O23: (P651-5) | R23: Athena | V23: P958
B24: P012 | R24: (P741-7) | V24: P962
B25: P013 | R25: P751 | V25: P963
B26: P014 | R26: P752 | V26: P964
B27: P015 | R27: P753
B28: P016 | R28: P757
B29: P017 | R29: P758
B30: P021 | R30: P759
R31: P760
R32: P761
R33: P762
R34: P784
B37: Lot Completely Closed
B38: Total Inventory Numbers Affected by Construction
B39: Closed for COVID-19 testing
B41: Partially Affected by Construction
B42: Closed for Construction
B43: Pernamently Closed

Sheet Key Descriptions
B1: Key 2: Parking Space Descriptions
B3: Parking Space Type | C3: Description | D3: Subtypes
B4: A | C4: "A" spaces are for individuals with "A" permits. | D4: If no subtype is listed, any "A" permit holder can use the space without limitations. Other permits can upgrade to use these spaces.
C5: These spaces are stenciled with red blocks, 'A'; Or designated with 24/7 signage. | D5: 24/7 A spaces have signage indicating A permits are required at all times. Preuss A and Physician A require additional permits to use this spaces.
B6: B | C6: "B" spaces are for individuals with "B" permits. | D6: Preuss B and SIO B require additional permits to use this spaces.
C7: These spaces are stenciled with green blocks, 'B'.
B8: S | C8: "S" spaces are for individuals with "S" permits. | D8: SIO S require additional permits to use this spaces.
C9: These spaces are stenciled with yellow blocks, 'S'.
B10: SR | C10: "SR" spaces are for individuals with "SR" permits.
C11: These spaces are stenciled with black and yellow 'SR' blocks.
B12: D | C12: "D" spaces are for individuals with "D" permits or permit bought via ParkMobile.
C13: These spaces are not stenciled and are located at Regents lots, P703, P704, P705.
B14: $3 | C14: "$3" spaces can be used by visitors or permit holders with permit bought via ParkMobile.
C15: Spaces have no stencil or color block.
B16: Visitor | C16: "Visitor" spaces are for those without permits. | D16: Subtypes include: Medical Patients, Birch Aquarium, Sanford Consortium, Police Visitor
C17: These spaces are stenciled with white blocks, 'V'. | D17: Payment at these subtype spaces is not subject to the same restrictions as Visitor spaces.
B18: Reserved | C18: "Reserved" spaces are stenciled with numbers, 'Reserved', and/or signage.
C19: Spaces are paid for by departments or individuals.
B20: Allocated | C20: "Allocated" spaces are special use spaces. | D20: A full list of Allocated spaces is listed in the Allocated Summary table of this report.
C21: These spaces are designated with signage or stenciled with description.
B22: Accessible | C22: "Accessible" spaces are for individuals with disabilities. | D22: Accessible spaces with Electric Vehicle charging access are listed seperately.
B23: UC Vehicle | C23: "UC Vehicle" spaces are for official university vehicles, stenciled 'UC Vehicle' or 'UC Cart'. | D23: Subtype includes: UC Cart spaces.
B24: Service Yard | C24: "Service Yard" spaces are stenciled 'Service Yard'.
B25: Loading | C25: "Loading" spaces are stenciled 'Loading'. | D25: If no subtype is listed, it is a Loading space marked only with the Loading Time Limit. Subtypes include: Bars (large areas not spaces), Docks, Commercial.
B26: Carpool | C26: "Carpool" spaces have "Reserved" signage with notes on the type of carpool permit needed as well as hours of enforcement. | D26: Subtypes include: 2-Person, A/B/S 3-Person, Electric Vehicle charging access.
B27: Electric Vehicle | C27: "Electric Vehicle" spaces have signage with notes indicating time limit and permit requirements.
B28: Motorcycle | C28: "Motorcycle" sections are designated with signage and/or stenciled 'Motorcycles'.

Sheet Pivot Table Data (hidden)
G1: =SUBTOTAL(3, G3:G700) -> 171 | H1: =SUBTOTAL(3, H3:H700) -> 164 | M1: =SUBTOTAL(9, M3:M700) -> 55 | N1: 15291 | O1: 15288 | P1: 0 | Q1: 0 | R1: 0 | S1: 5717 | T1: 4449 | U1: 3937 | V1: 3181 | W1: 2973 | X1: 3276 | Y1: 3522 | Z1: 4531 | AA1: 5454 | AB1: 5288 | AC1: 0 | AD1: 0 | AE1: 0 | AF1: 0 | AG1: 0 | AJ1: Fall 2024
A2: Date | B2: Zone # | C2: University Wide | D2: Location | E2: Area | F2: Neighborhood | G2: Structure | H2: Lot # | I2: Lot / Garage | J2: Space Type | K2: Space Subtype | L2: Time Limit [minutes] | M2: Summer 2024 | N2: Fall 2024 | O2: Winter 2025 | P2: Spring 2025 | Q2: 6am | R2: 7am | S2: 8am | T2: 9am | U2: 10am | V2: 11am | W2: 12pm | X2: 1pm | Y2: 2pm | Z2: 3pm | AA2: 4pm | AB2: 5pm | AC2: 6pm | AD2: 7pm | AE2: 8pm | AF2: 9pm | AG2: 10pm | AH2: Min Open Stalls | AI2: Max Open Stalls | AJ2: Inventory
C3: University Wide | D3: La Jolla Campus | E3: West Campus | F3: Revelle College | G3: Surface Lot | I3: =IF(G3="Surface Lot", H3, G3) -> 0 | J3: Loading | K3: Curb | L3: 30 | N3: 10 | O3: 10 | S3: 0 | T3: 0 | U3: 0 | V3: 0 | W3: 0 | X3: 0 | Y3: 0 | Z3: 0 | AA3: 0 | AB3: 0 | AH3: =MIN($Q3:$AG3) -> 0 | AI3: =MAX($Q3:$AG3) -> 0 | AJ3: =_xlfn.IFS(AJ$1=M$2, M3, AJ$1=N$2, N3,AJ$1=O$2, O3,AJ$1=P$2, P3) -> 10
C4: University Wide | D4: La Jolla Campus | E4: West Campus | F4: Revelle College | G4: Surface Lot | I4: 0 | J4: Reserved | N4: 0 | O4: 0 | S4: 0 | T4: 0 | U4: 0 | V4: 0 | W4: 0 | X4: 0 | Y4: 0 | Z4: 0 | AA4: 0 | AB4: 0 | AH4: =MIN($Q4:$AG4) -> 0 | AI4: =MAX($Q4:$AG4) -> 0 | AJ4: =_xlfn.IFS(AJ$1=M$2, M4, AJ$1=N$2, N4,AJ$1=O$2, O4,AJ$1=P$2, P4) -> 0
C5: University Wide | D5: La Jolla Campus | E5: West Campus | F5: 8980 | G5: 8980 | I5: 8980 | J5: A | N5: 44 | O5: 44 | S5: 25 | T5: 22 | U5: 23 | V5: 23 | W5: 23 | X5: 18 | Y5: 20 | Z5: 22 | AA5: 22 | AB5: 24 | AH5: =MIN($Q5:$AG5) -> 18 | AI5: 25 | AJ5: =_xlfn.IFS(AJ$1=M$2, M5, AJ$1=N$2, N5,AJ$1=O$2, O5,AJ$1=P$2, P5) -> 44
C6: University Wide | D6: La Jolla Campus | E6: West Campus | F6: 8980 | G6: 8980 | I6: 8980 | J6: Accessible | N6: 7 | O6: 7 | S6: 7 | T6: 6 | U6: 6 | V6: 6 | W6: 6 | X6: 7 | Y6: 7 | Z6: 7 | AA6: 7 | AB6: 7 | AH6: 6 | AI6: 7 | AJ6: =_xlfn.IFS(AJ$1=M$2, M6, AJ$1=N$2, N6,AJ$1=O$2, O6,AJ$1=P$2, P6) -> 7
C7: University Wide | D7: La Jolla Campus | E7: West Campus | F7: 8980 | G7: 8980 | I7: 8980 | J7: B | N7: 73 | O7: 73 | S7: 25 | T7: 16 | U7: 17 | V7: 9 | W7: 8 | X7: 12 | Y7: 11 | Z7: 12 | AA7: 20 | AB7: 22 | AH7: 8 | AI7: 25 | AJ7: =_xlfn.IFS(AJ$1=M$2, M7, AJ$1=N$2, N7,AJ$1=O$2, O7,AJ$1=P$2, P7) -> 73
C8: University Wide | D8: La Jolla Campus | E8: West Campus | F8: 8980 | G8: 8980 | I8: 8980 | J8: Carpool | N8: 0 | O8: 0 | S8: 18 | T8: 20 | U8: 22 | V8: 14 | W8: 13 | X8: 21 | Y8: 27 | Z8: 27 | AA8: 35 | AB8: 34 | AH8: 13 | AI8: 35 | AJ8: =_xlfn.IFS(AJ$1=M$2, M8, AJ$1=N$2, N8,AJ$1=O$2, O8,AJ$1=P$2, P8) -> 0
C9: University Wide | D9: La Jolla Campus | E9: West Campus | F9: 8980 | G9: 8980 | I9: 8980 | J9: Electric Vehicle | N9: 18 | O9: 18 | S9: 18 | T9: 15 | U9: 18 | V9: 17 | W9: 15 | X9: 0 | Y9: 18 | Z9: 18 | AA9: 18 | AB9: 18 | AH9: 0 | AI9: 18 | AJ9: =_xlfn.IFS(AJ$1=M$2, M9, AJ$1=N$2, N9,AJ$1=O$2, O9,AJ$1=P$2, P9) -> 18
C10: University Wide | D10: La Jolla Campus | E10: West Campus | F10: 8980 | G10: 8980 | I10: 8980 | J10: Motorcycle Section | N10: 0 | O10: 0 | S10: 0 | T10: 0 | U10: 0 | V10: 0 | W10: 0 | X10: 3 | Y10: 0 | Z10: 0 | AA10: 0 | AB10: 0 | AH10: =MIN($Q10:$AG10) -> 0 | AI10: =MAX($Q10:$AG10) -> 3 | AJ10: =_xlfn.IFS(AJ$1=M$2, M10, AJ$1=N$2, N10,AJ$1=O$2, O10,AJ$1=P$2, P10) -> 0
C11: University Wide | D11: La Jolla Campus | E11: West Campus | F11: 8980 | G11: 8980 | I11: 8980 | J11: Reserved | N11: 5 | O11: 5 | S11: 0 | T11: 0 | U11: 0 | V11: 0 | W11: 0 | X11: 0 | Y11: 0 | Z11: 0 | AA11: 0 | AB11: 0 | AH11: 0 | AI11: 0 | AJ11: =_xlfn.IFS(AJ$1=M$2, M11, AJ$1=N$2, N11,AJ$1=O$2, O11,AJ$1=P$2, P11) -> 5
C12: University Wide | D12: La Jolla Campus | E12: West Campus | F12: 8980 | G12: 8980 | I12: 8980 | J12: S | N12: 57 | O12: 57 | S12: 36 | T12: 38 | U12: 38 | V12: 49 | W12: 48 | X12: 51 | Y12: 47 | Z12: 49 | AA12: 54 | AB12: 56 | AH12: 36 | AI12: 56 | AJ12: =_xlfn.IFS(AJ$1=M$2, M12, AJ$1=N$2, N12,AJ$1=O$2, O12,AJ$1=P$2, P12) -> 57
C13: University Wide | D13: La Jolla Campus | E13: West Campus | F13: 8980 | G13: 8980 | I13: 8980 | J13: UC Cart | N13: 1 | O13: 1 | S13: 0 | T13: 0 | U13: 0 | V13: 0 | W13: 0 | X13: 0 | Y13: 0 | Z13: 0 | AA13: 1 | AB13: 1 | AH13: 0 | AI13: 1 | AJ13: =_xlfn.IFS(AJ$1=M$2, M13, AJ$1=N$2, N13,AJ$1=O$2, O13,AJ$1=P$2, P13) -> 1
C14: University Wide | D14: La Jolla Campus | E14: West Campus | F14: 8980 | G14: 8980 | I14: 8980 | J14: UC Vehicle | N14: 1 | O14: 1 | S14: 1 | T14: 1 | U14: 0 | V14: 0 | W14: 0 | X14: 0 | Y14: 0 | Z14: 0 | AA14: 0 | AB14: 0 | AH14: 0 | AI14: 1 | AJ14: =_xlfn.IFS(AJ$1=M$2, M14, AJ$1=N$2, N14,AJ$1=O$2, O14,AJ$1=P$2, P14) -> 1
C15: University Wide | D15: La Jolla Campus | E15: West Campus | F15: 8980 | G15: 8980 | I15: 8980 | J15: Visitor | N15: 0 | O15: 0 | S15: 0 | T15: 0 | U15: 0 | V15: 0 | W15: 0 | X15: 0 | Y15: 0 | Z15: 0 | AA15: 0 | AB15: 0 | AH15: 0 | AI15: 0 | AJ15: =_xlfn.IFS(AJ$1=M$2, M15, AJ$1=N$2, N15,AJ$1=O$2, O15,AJ$1=P$2, P15) -> 0
C16: University Wide | D16: Medical Center Hillcrest | E16: Medical Center Hillcrest | F16: Medical Center Hillcrest | G16: Arbor | H16: P901 | I16: Arbor | J16: Visitor | N16: 263 | O16: 263 | S16: 176 | T16: 105 | U16: 105 | V16: 57 | W16: 81 | X16: 83 | Y16: 85 | Z16: 101 | AA16: 112 | AB16: 130 | AH16: 57 | AI16: 176 | AJ16: =_xlfn.IFS(AJ$1=M$2, M16, AJ$1=N$2, N16,AJ$1=O$2, O16,AJ$1=P$2, P16) -> 263
C17: University Wide | D17: Medical Center Hillcrest | E17: Medical Center Hillcrest | F17: Medical Center Hillcrest | G17: Arbor | H17: P907 | I17: Arbor | J17: Motorcycle Section | N17: 10 | O17: 10 | S17: 7 | T17: 2 | U17: 0 | V17: 1 | W17: 7 | X17: 7 | Y17: 8 | Z17: 9 | AA17: 8 | AB17: 10 | AH17: 0 | AI17: 10 | AJ17: =_xlfn.IFS(AJ$1=M$2, M17, AJ$1=N$2, N17,AJ$1=O$2, O17,AJ$1=P$2, P17) -> 10
C18: University Wide | D18: Medical Center Hillcrest | E18: Medical Center Hillcrest | F18: Medical Center Hillcrest | G18: Arbor | H18: P907 | I18: Arbor | J18: Visitor | K18: Patient/Visitor Reserved | N18: 4 | O18: 4 | S18: 4 | T18: 3 | U18: 3 | V18: 3 | W18: 3 | X18: 2 | Y18: 2 | Z18: 2 | AA18: 2 | AB18: 3 | AH18: 2 | AI18: 4 | AJ18: =_xlfn.IFS(AJ$1=M$2, M18, AJ$1=N$2, N18,AJ$1=O$2, O18,AJ$1=P$2, P18) -> 4
C19: University Wide | D19: Medical Center Hillcrest | E19: Medical Center Hillcrest | F19: Medical Center Hillcrest | G19: Arbor | H19: P908 | I19: Arbor | J19: Accessible | N19: 15 | O19: 15 | S19: 5 | T19: 0 | U19: 0 | V19: 0 | W19: 0 | X19: 0 | Y19: 0 | Z19: 0 | AA19: 13 | AB19: 15 | AH19: 0 | AI19: 15 | AJ19: =_xlfn.IFS(AJ$1=M$2, M19, AJ$1=N$2, N19,AJ$1=O$2, O19,AJ$1=P$2, P19) -> 15
C20: University Wide | D20: Medical Center Hillcrest | E20: Medical Center Hillcrest | F20: Medical Center Hillcrest | G20: Arbor | H20: P908 | I20: Arbor | J20: Allocated | K20: Transportation Office Vehicle | N20: 1 | O20: 1 | S20: 0 | T20: 0 | U20: 0 | V20: 0 | W20: 0 | X20: 0 | Y20: 0 | Z20: 0 | AA20: 0 | AB20: 0 | AH20: 0 | AI20: 0 | AJ20: =_xlfn.IFS(AJ$1=M$2, M20, AJ$1=N$2, N20,AJ$1=O$2, O20,AJ$1=P$2, P20) -> 1
C21: University Wide | D21: Medical Center Hillcrest | E21: Medical Center Hillcrest | F21: Medical Center Hillcrest | G21: Arbor | H21: P908 | I21: Arbor | J21: UC Vehicle | N21: 2 | O21: 2 | S21: 0 | T21: 0 | U21: 1 | V21: 1 | W21: 0 | X21: 0 | Y21: 1 | Z21: 2 | AA21: 2 | AB21: 1 | AH21: 0 | AI21: 2 | AJ21: =_xlfn.IFS(AJ$1=M$2, M21, AJ$1=N$2, N21,AJ$1=O$2, O21,AJ$1=P$2, P21) -> 2
C22: University Wide | D22: Medical Center Hillcrest | E22: Medical Center Hillcrest | F22: Medical Center Hillcrest | G22: Arbor | H22: P909 | I22: Arbor | J22: Electric Vehicle | L22: 4-Hours | N22: 12 | O22: 12 | S22: 5 | T22: 3 | U22: 2 | V22: 2 | W22: 7 | X22: 7 | Y22: 8 | Z22: 9 | AA22: 8 | AB22: 10 | AH22: 2 | AI22: 10 | AJ22: =_xlfn.IFS(AJ$1=M$2, M22, AJ$1=N$2, N22,AJ$1=O$2, O22,AJ$1=P$2, P22) -> 12
C23: University Wide | D23: Medical Center Hillcrest | E23: Medical Center Hillcrest | F23: Medical Center Hillcrest | G23: Arbor | H23: P909 | I23: Arbor | J23: Reserved | N23: 19 | O23: 19 | S23: 0 | T23: 0 | U23: 0 | V23: 0 | W23: 0 | X23: 0 | Y23: 0 | Z23: 0 | AA23: 0 | AB23: 0 | AH23: 0 | AI23: 0 | AJ23: =_xlfn.IFS(AJ$1=M$2, M23, AJ$1=N$2, N23,AJ$1=O$2, O23,AJ$1=P$2, P23) -> 19
C24: University Wide | D24: Medical Center Hillcrest | E24: Medical Center Hillcrest | F24: Medical Center Hillcrest | G24: Arbor | H24: P910 | I24: Arbor | J24: A | N24: 226 | O24: 226 | S24: 80 | T24: 54 | U24: 55 | V24: 48 | W24: 62 | X24: 68 | Y24: 76 | Z24: 83 | AA24: 98 | AB24: 125 | AH24: 48 | AI24: 125 | AJ24: =_xlfn.IFS(AJ$1=M$2, M24, AJ$1=N$2, N24,AJ$1=O$2, O24,AJ$1=P$2, P24) -> 226
C25: University Wide | D25: La Jolla Campus | E25: Scripps Institution of Oceanography | F25: Scripps Institution of Oceanography | G25: Surface Lot | H25: P001 | I25: P001 | J25: B | K25: Scripps Institution of Oceanography | N25: 4 | O25: 0 | S25: 0 | T25: 0 | U25: 0 | V25: 0 | W25: 0 | X25: 0 | Y25: 0 | Z25: 0 | AA25: 0 | AB25: 0 | AH25: 0 | AI25: 0 | AJ25: =_xlfn.IFS(AJ$1=M$2, M25, AJ$1=N$2, N25,AJ$1=O$2, O25,AJ$1=P$2, P25) -> 4
C26: University Wide | D26: La Jolla Campus | E26: Scripps Institution of Oceanography | F26: Scripps Institution of Oceanography | G26: Surface Lot | H26: P001 | I26: P001 | J26: Electric Vehicle | L26: 4 hours | N26: 10 | O26: 9 | S26: 9 | T26: 8 | U26: 6 | V26: 7 | W26: 7 | X26: 6 | Y26: 6 | Z26: 7 | AA26: 9 | AB26: 10 | AH26: 6 | AI26: 10 | AJ26: =_xlfn.IFS(AJ$1=M$2, M26, AJ$1=N$2, N26,AJ$1=O$2, O26,AJ$1=P$2, P26) -> 10
C27: University Wide | D27: La Jolla Campus | E27: Scripps Institution of Oceanography | F27: Scripps Institution of Oceanography | G27: Surface Lot | H27: P002 | I27: P002 | J27: B | K27: Scripps Institution of Oceanography | N27: 31 | O27: 31 | S27: 24 | T27: 20 | U27: 22 | V27: 9 | W27: 0 | X27: 18 | Y27: 16 | Z27: 9 | AA27: 22 | AB27: 17 | AH27: 0 | AI27: 24 | AJ27: =_xlfn.IFS(AJ$1=M$2, M27, AJ$1=N$2, N27,AJ$1=O$2, O27,AJ$1=P$2, P27) -> 31
C28: University Wide | D28: La Jolla Campus | E28: Scripps Institution of Oceanography | F28: Scripps Institution of Oceanography | G28: Surface Lot | H28: P003 | I28: P003 | J28: B | K28: Scripps Institution of Oceanography | N28: 64 | O28: 64 | S28: 50 | T28: 34 | U28: 13 | V28: 2 | W28: 3 | X28: 16 | Y28: 17 | Z28: 19 | AA28: 30 | AB28: 35 | AH28: 2 | AI28: 50 | AJ28: =_xlfn.IFS(AJ$1=M$2, M28, AJ$1=N$2, N28,AJ$1=O$2, O28,AJ$1=P$2, P28) -> 64
C29: University Wide | D29: La Jolla Campus | E29: Scripps Institution of Oceanography | F29: Scripps Institution of Oceanography | G29: Surface Lot | H29: P004 | I29: P004 | J29: Electric Vehicle | N29: 1 | O29: 1 | S29: 0 | T29: 0 | U29: 0 | V29: 0 | W29: 0 | X29: 0 | Y29: 0 | Z29: 0 | AA29: 0 | AB29: 0 | AH29: 0 | AI29: 0 | AJ29: =_xlfn.IFS(AJ$1=M$2, M29, AJ$1=N$2, N29,AJ$1=O$2, O29,AJ$1=P$2, P29) -> 1
C30: University Wide | D30: La Jolla Campus | E30: Scripps Institution of Oceanography | F30: Scripps Institution of Oceanography | G30: Surface Lot | H30: P006 | I30: P006 | J30: B | K30: Scripps Institution of Oceanography | N30: 6 | O30: 6 | S30: 4 | T30: 1 | U30: 0 | V30: 0 | W30: 2 | X30: 0 | Y30: 2 | Z30: 2 | AA30: 0 | AB30: 2 | AH30: 0 | AI30: 4 | AJ30: =_xlfn.IFS(AJ$1=M$2, M30, AJ$1=N$2, N30,AJ$1=O$2, O30,AJ$1=P$2, P30) -> 6
C31: University Wide | D31: La Jolla Campus | E31: Scripps Institution of Oceanography | F31: Scripps Institution of Oceanography | G31: Surface Lot | H31: P007 | I31: P007 | J31: B | K31: Scripps Institution of Oceanography | N31: 22 | O31: 22 | S31: 6 | T31: 2 | U31: 0 | V31: 3 | W31: 20 | X31: 3 | Y31: 1 | Z31: 6 | AA31: 8 | AB31: 7 | AH31: 0 | AI31: 20 | AJ31: =_xlfn.IFS(AJ$1=M$2, M31, AJ$1=N$2, N31,AJ$1=O$2, O31,AJ$1=P$2, P31) -> 22
C32: University Wide | D32: La Jolla Campus | E32: Scripps Institution of Oceanography | F32: Scripps Institution of Oceanography | G32: Surface Lot | H32: P007 | I32: P007 | J32: Electric Vehicle | N32: 8 | O32: 8 | S32: 8 | T32: 8 | U32: 1 | V32: 0 | W32: 2 | X32: 1 | Y32: 2 | Z32: 5 | AA32: 7 | AB32: 6 | AH32: 0 | AI32: 8 | AJ32: =_xlfn.IFS(AJ$1=M$2, M32, AJ$1=N$2, N32,AJ$1=O$2, O32,AJ$1=P$2, P32) -> 8
C33: University Wide | D33: La Jolla Campus | E33: East Campus | F33: Health Sciences East | G33: Athena | H33: P741 | I33: Athena | J33: Accessible | K33: Electric Vehicle | N33: 2 | O33: 2 | S33: 2 | T33: 2 | U33: 2 | V33: 1 | W33: 1 | X33: 0 | Y33: 0 | Z33: 0 | AA33: 0 | AB33: 0 | AH33: 0 | AI33: 2 | AJ33: =_xlfn.IFS(AJ$1=M$2, M33, AJ$1=N$2, N33,AJ$1=O$2, O33,AJ$1=P$2, P33) -> 2
C34: University Wide | D34: La Jolla Campus | E34: East Campus | F34: Health Sciences East | G34: Athena | H34: P741 | I34: Athena | J34: Accessible | N34: 79 | O34: 79 | S34: 35 | T34: 16 | U34: 11 | V34: 11 | W34: 23 | X34: 17 | Y34: 27 | Z34: 29 | AA34: 33 | AB34: 32 | AH34: 11 | AI34: 35 | AJ34: =_xlfn.IFS(AJ$1=M$2, M34, AJ$1=N$2, N34,AJ$1=O$2, O34,AJ$1=P$2, P34) -> 79
C35: University Wide | D35: La Jolla Campus | E35: East Campus | F35: Health Sciences East | G35: Athena | H35: P741 | I35: =IF(G35="Surface Lot", H35, G35) -> Athena | J35: Motorcycle Section | N35: 42 | S35: 5 | T35: 5 | U35: 5 | V35: 4 | W35: 3 | X35: 2 | Y35: 4 | Z35: 4 | AA35: 4 | AB35: 3 | AH35: 2 | AI35: 5 | AJ35: =_xlfn.IFS(AJ$1=M$2, M35, AJ$1=N$2, N35,AJ$1=O$2, O35,AJ$1=P$2, P35) -> 42
C36: University Wide | D36: La Jolla Campus | E36: East Campus | F36: Health Sciences East | G36: Athena | H36: P744 | I36: Athena | J36: Reserved | N36: 214 | O36: =214-10 -> 204 | S36: 0 | T36: 0 | U36: 0 | V36: 0 | W36: 0 | X36: 0 | Y36: 0 | Z36: 0 | AA36: 0 | AB36: 0 | AH36: 0 | AI36: 0 | AJ36: =_xlfn.IFS(AJ$1=M$2, M36, AJ$1=N$2, N36,AJ$1=O$2, O36,AJ$1=P$2, P36) -> 214
C37: University Wide | D37: La Jolla Campus | E37: Scripps Institution of Oceanography | F37: Scripps Institution of Oceanography | G37: Surface Lot | H37: P008 | I37: P008 | J37: B | K37: Scripps Institution of Oceanography | N37: 26 | O37: 26 | S37: 4 | T37: 0 | U37: 0 | V37: 1 | W37: 2 | X37: 2 | Y37: 5 | Z37: 3 | AA37: 2 | AB37: 4 | AH37: 0 | AI37: 5 | AJ37: =_xlfn.IFS(AJ$1=M$2, M37, AJ$1=N$2, N37,AJ$1=O$2, O37,AJ$1=P$2, P37) -> 26
C38: University Wide | D38: La Jolla Campus | E38: Scripps Institution of Oceanography | F38: Scripps Institution of Oceanography | G38: Surface Lot | H38: P010 | I38: P010 | J38: B | K38: Scripps Institution of Oceanography | N38: 20 | O38: 23 | S38: 17 | T38: 10 | U38: 7 | V38: 1 | W38: 1 | X38: 6 | Y38: 11 | Z38: 14 | AA38: 14 | AB38: 16 | AH38: 1 | AI38: 17 | AJ38: =_xlfn.IFS(AJ$1=M$2, M38, AJ$1=N$2, N38,AJ$1=O$2, O38,AJ$1=P$2, P38) -> 20
C39: University Wide | D39: La Jolla Campus | E39: Scripps Institution of Oceanography | F39: Scripps Institution of Oceanography | G39: Surface Lot | H39: P011 | I39: P011 | J39: B | K39: Scripps Institution of Oceanography | N39: 16 | O39: 15 | S39: 13 | T39: 5 | U39: 9 | V39: 4 | W39: 5 | X39: 4 | Y39: 5 | Z39: 6 | AA39: 10 | AB39: 10 | AH39: 4 | AI39: 13 | AJ39: =_xlfn.IFS(AJ$1=M$2, M39, AJ$1=N$2, N39,AJ$1=O$2, O39,AJ$1=P$2, P39) -> 16
C40: University Wide | D40: La Jolla Campus | E40: East Campus | F40: Health Sciences East | G40: Campus Point East | H40: P722 | I40: Campus Point East | J40: Accessible | N40: 12 | O40: 12 | S40: 3 | T40: 3 | U40: 2 | V40: 2 | W40: 1 | X40: 0 | Y40: 0 | Z40: 8 | AA40: 10 | AB40: 11 | AH40: 0 | AI40: 11 | AJ40: =_xlfn.IFS(AJ$1=M$2, M40, AJ$1=N$2, N40,AJ$1=O$2, O40,AJ$1=P$2, P40) -> 12
C41: University Wide | D41: La Jolla Campus | E41: East Campus | F41: Health Sciences East | G41: Campus Point East | H41: P722 | I41: Campus Point East | J41: Motorcycle Section | N41: 8 | O41: 8 | S41: 3 | T41: 3 | U41: 3 | V41: 3 | W41: 2 | X41: 2 | Y41: 0 | Z41: 5 | AA41: 5 | AB41: 5 | AH41: 0 | AI41: 5 | AJ41: =_xlfn.IFS(AJ$1=M$2, M41, AJ$1=N$2, N41,AJ$1=O$2, O41,AJ$1=P$2, P41) -> 8
C42: University Wide | D42: La Jolla Campus | E42: East Campus | F42: Health Sciences East | G42: Campus Point East | H42: P722 | I42: Campus Point East | J42: Reserved | N42: 40 | O42: 40 | S42: 0 | T42: 0 | U42: 0 | V42: 0 | W42: 0 | X42: 0 | Y42: 0 | Z42: 0 | AA42: 0 | AB42: 0 | AH42: 0 | AI42: 0 | AJ42: =_xlfn.IFS(AJ$1=M$2, M42, AJ$1=N$2, N42,AJ$1=O$2, O42,AJ$1=P$2, P42) -> 40
C43: University Wide | D43: La Jolla Campus | E43: East Campus | F43: Health Sciences East | G43: Campus Point East | H43: P723 | I43: Campus Point East | J43: Reserved | K43: Valet | N43: 127 | O43: 127 | S43: 0 | T43: 0 | U43: 0 | V43: 0 | W43: 0 | X43: 0 | Y43: 0 | Z43: 0 | AA43: 0 | AB43: 0 | AH43: 0 | AI43: 0 | AJ43: =_xlfn.IFS(AJ$1=M$2, M43, AJ$1=N$2, N43,AJ$1=O$2, O43,AJ$1=P$2, P43) -> 127
C44: University Wide | D44: La Jolla Campus | E44: Scripps Institution of Oceanography | F44: Scripps Institution of Oceanography | G44: Surface Lot | H44: P012 | I44: P012 | J44: B | K44: Scripps Institution of Oceanography | N44: 12 | O44: 12 | S44: 3 | T44: 3 | U44: 0 | V44: 0 | W44: 0 | X44: 1 | Y44: 1 | Z44: 4 | AA44: 0 | AB44: 4 | AH44: 0 | AI44: 4 | AJ44: =_xlfn.IFS(AJ$1=M$2, M44, AJ$1=N$2, N44,AJ$1=O$2, O44,AJ$1=P$2, P44) -> 12
C45: University Wide | D45: La Jolla Campus | E45: Scripps Institution of Oceanography | F45: Scripps Institution of Oceanography | G45: Surface Lot | H45: P013 | I45: P013 | J45: B | K45: Scripps Institution of Oceanography | N45: 12 | O45: 12 | S45: 9 | T45: 4 | U45: 1 | V45: 2 | W45: 4 | X45: 3 | Y45: 5 | Z45: 2 | AA45: 1 | AB45: 4 | AH45: 1 | AI45: 9 | AJ45: =_xlfn.IFS(AJ$1=M$2, M45, AJ$1=N$2, N45,AJ$1=O$2, O45,AJ$1=P$2, P45) -> 12
C46: University Wide | D46: La Jolla Campus | E46: Scripps Institution of Oceanography | F46: Scripps Institution of Oceanography | G46: Surface Lot | H46: P013 | I46: P013 | J46: Electric Vehicle | N46: 2 | O46: 2 | S46: 2 | T46: 2 | U46: 2 | V46: 0 | W46: 2 | X46: 2 | Y46: 2 | Z46: 2 | AA46: 2 | AB46: 2 | AH46: 0 | AI46: 2 | AJ46: =_xlfn.IFS(AJ$1=M$2, M46, AJ$1=N$2, N46,AJ$1=O$2, O46,AJ$1=P$2, P46) -> 2
C47: University Wide | D47: La Jolla Campus | E47: Scripps Institution of Oceanography | F47: Scripps Institution of Oceanography | G47: Surface Lot | H47: P014 | I47: P014 | J47: B | K47: Scripps Institution of Oceanography | N47: 69 | O47: 69 | S47: 46 | T47: 38 | U47: 2 | V47: 38 | W47: 40 | X47: 28 | Y47: 32 | Z47: 35 | AA47: 46 | AB47: 48 | AH47: 2 | AI47: 48 | AJ47: =_xlfn.IFS(AJ$1=M$2, M47, AJ$1=N$2, N47,AJ$1=O$2, O47,AJ$1=P$2, P47) -> 69
C48: University Wide | D48: La Jolla Campus | E48: East Campus | F48: Health Sciences East | G48: Campus Point West | H48: P731 | I48: Campus Point West | J48: Motorcycle Section | N48: 8 | O48: 8 | S48: 2 | T48: 0 | U48: 0 | V48: 0 | W48: 0 | X48: 0 | Y48: 1 | Z48: 2 | AA48: 1 | AB48: 2 | AH48: 0 | AI48: 2 | AJ48: =_xlfn.IFS(AJ$1=M$2, M48, AJ$1=N$2, N48,AJ$1=O$2, O48,AJ$1=P$2, P48) -> 8
C49: University Wide | D49: La Jolla Campus | E49: East Campus | F49: Health Sciences East | G49: Campus Point West | H49: P733 | I49: Campus Point West | J49: Accessible | N49: 104 | O49: 104 | S49: 3 | T49: 1 | U49: 2 | V49: 0 | W49: 0 | X49: 0 | Y49: 0 | Z49: 8 | AA49: 15 | AB49: 16 | AH49: 0 | AI49: 16 | AJ49: =_xlfn.IFS(AJ$1=M$2, M49, AJ$1=N$2, N49,AJ$1=O$2, O49,AJ$1=P$2, P49) -> 104
C50: University Wide | D50: La Jolla Campus | E50: East Campus | F50: Health Sciences East | G50: Campus Point West | H50: P734 | I50: Campus Point West | J50: Reserved | K50: Emergency Room | N50: 10 | O50: 10 | S50: 0 | T50: 0 | U50: 0 | V50: 0 | W50: 0 | X50: 0 | Y50: 0 | Z50: 0 | AA50: 0 | AB50: 0 | AH50: 0 | AI50: 0 | AJ50: =_xlfn.IFS(AJ$1=M$2, M50, AJ$1=N$2, N50,AJ$1=O$2, O50,AJ$1=P$2, P50) -> 10
C51: University Wide | D51: La Jolla Campus | E51: East Campus | F51: Health Sciences East | G51: Campus Point West | H51: P734 | I51: Campus Point West | J51: Reserved | N51: 18 | O51: 18 | S51: 0 | T51: 0 | U51: 0 | V51: 0 | W51: 0 | X51: 0 | Y51: 0 | Z51: 0 | AA51: 0 | AB51: 0 | AH51: 0 | AI51: 0 | AJ51: =_xlfn.IFS(AJ$1=M$2, M51, AJ$1=N$2, N51,AJ$1=O$2, O51,AJ$1=P$2, P51) -> 18
C52: University Wide | D52: La Jolla Campus | E52: East Campus | F52: Health Sciences East | G52: Curb | H52: Curb | I52: Curb | J52: Reserved | N52: 8 | O52: 8 | S52: 0 | T52: 0 | U52: 0 | V52: 0 | W52: 0 | X52: 0 | Y52: 0 | Z52: 0 | AA52: 0 | AB52: 0 | AH52: 0 | AI52: 0 | AJ52: =_xlfn.IFS(AJ$1=M$2, M52, AJ$1=N$2, N52,AJ$1=O$2, O52,AJ$1=P$2, P52) -> 8
C53: University Wide | D53: Medical Center Hillcrest | E53: Medical Center Hillcrest | F53: Medical Center HIllcrest | G53: First Ave | H53: P920 | I53: First Ave | J53: A | N53: 0 | O53: 0 | AH53: 0 | AI53: 0 | AJ53: =_xlfn.IFS(AJ$1=M$2, M53, AJ$1=N$2, N53,AJ$1=O$2, O53,AJ$1=P$2, P53) -> 0
C54: University Wide | D54: Medical Center Hillcrest | E54: Medical Center Hillcrest | F54: Medical Center HIllcrest | G54: First Ave | H54: P920 | I54: First Ave | J54: Accessible | N54: =59-5-4 -> 50 | O54: =59-5-4 -> 50 | S54: 20 | T54: 16 | U54: 26 | V54: 11 | W54: 23 | X54: 23 | Y54: 20 | Z54: 32 | AA54: 39 | AB54: 45 | AH54: 11 | AI54: 45 | AJ54: =_xlfn.IFS(AJ$1=M$2, M54, AJ$1=N$2, N54,AJ$1=O$2, O54,AJ$1=P$2, P54) -> 50
C55: University Wide | D55: Medical Center Hillcrest | E55: Medical Center Hillcrest | F55: Medical Center HIllcrest | G55: First Ave | H55: P920 | I55: First Ave | J55: B | N55: =1703-196-242 -> 1265 | O55: =1703-196-242 -> 1265 | S55: 230 | T55: 215 | U55: 109 | V55: 73 | W55: 195 | X55: 207 | Y55: 380 | Z55: 442 | AA55: 582 | AB55: 595 | AH55: 73 | AI55: 595 | AJ55: =_xlfn.IFS(AJ$1=M$2, M55, AJ$1=N$2, N55,AJ$1=O$2, O55,AJ$1=P$2, P55) -> 1265
C56: University Wide | D56: Medical Center Hillcrest | E56: Medical Center Hillcrest | F56: Medical Center HIllcrest | G56: First Ave | H56: P920 | I56: First Ave | J56: Construction Area | N56: 464 | O56: 464 | S56: 0 | T56: 0 | U56: 0 | V56: 0 | W56: 0 | X56: 0 | Y56: 0 | Z56: 0 | AA56: 0 | AB56: 0 | AH56: 0 | AI56: 0 | AJ56: =_xlfn.IFS(AJ$1=M$2, M56, AJ$1=N$2, N56,AJ$1=O$2, O56,AJ$1=P$2, P56) -> 464
C57: University Wide | D57: Medical Center Hillcrest | E57: Medical Center Hillcrest | F57: Medical Center HIllcrest | G57: First Ave | H57: P920 | I57: First Ave | J57: Electric Vehicle | N57: 30 | O57: 30 | S57: 18 | T57: 11 | U57: 10 | V57: 7 | W57: 7 | X57: 12 | Y57: 3 | Z57: 2 | AA57: 15 | AB57: 20 | AH57: 2 | AI57: 20 | AJ57: =_xlfn.IFS(AJ$1=M$2, M57, AJ$1=N$2, N57,AJ$1=O$2, O57,AJ$1=P$2, P57) -> 30
C58: University Wide | D58: Medical Center Hillcrest | E58: Medical Center Hillcrest | F58: Medical Center HIllcrest | G58: First Ave | H58: P920 | I58: First Ave | J58: Motorcycle Section | N58: =60-15-2 -> 43 | O58: =60-15-2 -> 43 | S58: 13 | T58: 12 | U58: 12 | V58: 12 | W58: 5 | X58: 4 | Y58: 5 | Z58: 8 | AA58: 11 | AB58: 13 | AH58: 4 | AI58: 13 | AJ58: =_xlfn.IFS(AJ$1=M$2, M58, AJ$1=N$2, N58,AJ$1=O$2, O58,AJ$1=P$2, P58) -> 43
C59: University Wide | D59: La Jolla Campus | E59: Scripps Institution of Oceanography | F59: Scripps Institution of Oceanography | G59: Surface Lot | H59: P014 | I59: P014 | J59: Electric Vehicle | N59: 2 | O59: 2 | S59: 2 | T59: 2 | U59: 2 | V59: 2 | W59: 2 | X59: 2 | Y59: 2 | Z59: 2 | AA59: 1 | AB59: 2 | AH59: 1 | AI59: 2 | AJ59: =_xlfn.IFS(AJ$1=M$2, M59, AJ$1=N$2, N59,AJ$1=O$2, O59,AJ$1=P$2, P59) -> 2
C60: University Wide | D60: La Jolla Campus | E60: Scripps Institution of Oceanography | F60: Scripps Institution of Oceanography | G60: Surface Lot | H60: P014 | I60: P014 | J60: S | N60: 26 | O60: 26 | S60: 13 | T60: 16 | U60: 21 | V60: 20 | W60: 11 | X60: 14 | Y60: 15 | Z60: 17 | AA60: 12 | AB60: 16 | AH60: 11 | AI60: 21 | AJ60: =_xlfn.IFS(AJ$1=M$2, M60, AJ$1=N$2, N60,AJ$1=O$2, O60,AJ$1=P$2, P60) -> 26
C61: University Wide | D61: La Jolla Campus | E61: Scripps Institution of Oceanography | F61: Scripps Institution of Oceanography | G61: Surface Lot | H61: P014 | I61: P014 | J61: Visitor | N61: 4 | O61: 4 | S61: 3 | T61: 2 | U61: 0 | V61: 0 | W61: 1 | X61: 1 | Y61: 1 | Z61: 2 | AA61: 1 | AB61: 2 | AH61: 0 | AI61: 3 | AJ61: =_xlfn.IFS(AJ$1=M$2, M61, AJ$1=N$2, N61,AJ$1=O$2, O61,AJ$1=P$2, P61) -> 4
C62: University Wide | D62: La Jolla Campus | E62: Scripps Institution of Oceanography | F62: Scripps Institution of Oceanography | G62: Surface Lot | H62: P016 | I62: P016 | J62: S | K62: Scripps Institution of Oceanography | N62: 58 | O62: 58 | S62: 46 | T62: 2 | U62: 34 | V62: 33 | W62: 24 | X62: 29 | Y62: 29 | Z62: 28 | AA62: 35 | AB62: 37 | AH62: 2 | AI62: 46 | AJ62: =_xlfn.IFS(AJ$1=M$2, M62, AJ$1=N$2, N62,AJ$1=O$2, O62,AJ$1=P$2, P62) -> 58
C63: University Wide | D63: La Jolla Campus | E63: Scripps Institution of Oceanography | F63: Scripps Institution of Oceanography | G63: Surface Lot | H63: P017 | I63: P017 | J63: Electric Vehicle | N63: 2 | O63: 2 | S63: 1 | T63: 2 | U63: 0 | V63: 2 | W63: 2 | X63: 2 | Y63: 2 | Z63: 2 | AA63: 2 | AB63: 1 | AH63: 0 | AI63: 2 | AJ63: =_xlfn.IFS(AJ$1=M$2, M63, AJ$1=N$2, N63,AJ$1=O$2, O63,AJ$1=P$2, P63) -> 2
C64: University Wide | D64: La Jolla Campus | E64: West Campus | F64: University Center | G64: Gilman | H64: P451 | I64: Gilman | J64: Accessible | N64: 42 | O64: 42 | S64: 0 | T64: 0 | U64: 0 | V64: 0 | W64: 3 | X64: 3 | Y64: 11 | Z64: 13 | AA64: 13 | AB64: 22 | AH64: 0 | AI64: 22 | AJ64: =_xlfn.IFS(AJ$1=M$2, M64, AJ$1=N$2, N64,AJ$1=O$2, O64,AJ$1=P$2, P64) -> 42
C65: University Wide | D65: La Jolla Campus | E65: West Campus | F65: University Center | G65: Gilman | H65: P451 | I65: Gilman | J65: Reserved | K65: Credit Union Member | N65: 10 | O65: 10 | S65: 0 | T65: 0 | U65: 0 | V65: 0 | W65: 0 | X65: 0 | Y65: 0 | Z65: 0 | AA65: 0 | AB65: 0 | AH65: 0 | AI65: 0 | AJ65: =_xlfn.IFS(AJ$1=M$2, M65, AJ$1=N$2, N65,AJ$1=O$2, O65,AJ$1=P$2, P65) -> 10
C66: University Wide | D66: La Jolla Campus | E66: West Campus | F66: University Center | G66: Gilman | H66: P451 | I66: Gilman | J66: Reserved | K66: Credit Union Staff | N66: 10 | O66: 10 | S66: 0 | T66: 0 | U66: 0 | V66: 0 | W66: 0 | X66: 0 | Y66: 0 | Z66: 0 | AA66: 0 | AB66: 0 | AH66: 0 | AI66: 0 | AJ66: =_xlfn.IFS(AJ$1=M$2, M66, AJ$1=N$2, N66,AJ$1=O$2, O66,AJ$1=P$2, P66) -> 10
C67: University Wide | D67: La Jolla Campus | E67: West Campus | F67: University Center | G67: Gilman | H67: P451 | I67: =IF(G67="Surface Lot", H67, G67) -> Gilman | J67: Reserved | K67: Target | N67: 7 | O67: 7 | S67: 0 | T67: 0 | U67: 0 | V67: 0 | W67: 0 | X67: 0 | Y67: 0 | Z67: 0 | AA67: 0 | AB67: 0 | AH67: 0 | AI67: 0 | AJ67: =_xlfn.IFS(AJ$1=M$2, M67, AJ$1=N$2, N67,AJ$1=O$2, O67,AJ$1=P$2, P67) -> 7
C68: University Wide | D68: La Jolla Campus | E68: West Campus | F68: University Center | G68: Gilman | H68: P451 | I68: Gilman | J68: Reserved | N68: 13 | O68: 13 | S68: 0 | T68: 0 | U68: 0 | V68: 0 | W68: 0 | X68: 0 | Y68: 0 | Z68: 0 | AA68: 0 | AB68: 0 | AH68: =MIN($Q68:$AG68) -> 0 | AI68: =MAX($Q68:$AG68) -> 0 | AJ68: =_xlfn.IFS(AJ$1=M$2, M68, AJ$1=N$2, N68,AJ$1=O$2, O68,AJ$1=P$2, P68) -> 13
C69: University Wide | D69: La Jolla Campus | E69: West Campus | F69: University Center | G69: Gilman | H69: P452 | I69: Gilman | J69: Accessible | K69: Electric Vehicle | N69: 1 | O69: 1 | S69: 0 | T69: 0 | U69: 0 | V69: 0 | W69: 0 | X69: 0 | Y69: 0 | Z69: 0 | AA69: 0 | AB69: 0 | AH69: 0 | AI69: 0 | AJ69: =_xlfn.IFS(AJ$1=M$2, M69, AJ$1=N$2, N69,AJ$1=O$2, O69,AJ$1=P$2, P69) -> 1
C70: University Wide | D70: La Jolla Campus | E70: West Campus | F70: University Center | G70: Gilman | H70: P452 | I70: Gilman | J70: Allocated | K70: Curbside | N70: 5 | O70: 5 | S70: 1 | T70: 1 | U70: 1 | V70: 1 | W70: 1 | X70: 1 | Y70: 0 | Z70: 0 | AA70: 1 | AB70: 1 | AH70: 0 | AI70: 1 | AJ70: =_xlfn.IFS(AJ$1=M$2, M70, AJ$1=N$2, N70,AJ$1=O$2, O70,AJ$1=P$2, P70) -> 5
C71: University Wide | D71: La Jolla Campus | E71: West Campus | F71: University Center | G71: Gilman | H71: P452 | I71: Gilman | J71: Motorcycle Section | N71: 12 | O71: 12 | S71: 1 | T71: 2 | U71: 1 | V71: 5 | W71: 1 | X71: 1 | Y71: 0 | Z71: 1 | AA71: 2 | AB71: 2 | AH71: 0 | AI71: 5 | AJ71: =_xlfn.IFS(AJ$1=M$2, M71, AJ$1=N$2, N71,AJ$1=O$2, O71,AJ$1=P$2, P71) -> 12
C72: University Wide | D72: La Jolla Campus | E72: West Campus | F72: University Center | G72: Gilman | H72: P452 | I72: Gilman | J72: Reserved | K72: Enterprise | N72: 3 | O72: 3 | S72: 0 | T72: 0 | U72: 0 | V72: 0 | W72: 0 | X72: 0 | Y72: 0 | Z72: 0 | AA72: 0 | AB72: 0 | AH72: 0 | AI72: 0 | AJ72: =_xlfn.IFS(AJ$1=M$2, M72, AJ$1=N$2, N72,AJ$1=O$2, O72,AJ$1=P$2, P72) -> 3
C73: University Wide | D73: La Jolla Campus | E73: West Campus | F73: University Center | G73: Gilman | H73: P452 | I73: Gilman | J73: UC Vehicle | K73: UC Cart | N73: 12 | O73: 12 | S73: 4 | T73: 0 | U73: 8 | V73: 8 | W73: 2 | X73: 1 | Y73: 1 | Z73: 1 | AA73: 0 | AB73: 2 | AH73: 0 | AI73: 8 | AJ73: =_xlfn.IFS(AJ$1=M$2, M73, AJ$1=N$2, N73,AJ$1=O$2, O73,AJ$1=P$2, P73) -> 12
C74: University Wide | D74: La Jolla Campus | E74: Scripps Institution of Oceanography | F74: Scripps Institution of Oceanography | G74: Surface Lot | H74: P017 | I74: P017 | J74: Visitor | K74: Birch Aquarium | N74: 254 | O74: 254 | S74: 192 | T74: 97 | U74: 157 | V74: 112 | W74: 161 | X74: 142 | Y74: 142 | Z74: 168 | AA74: 146 | AB74: 180 | AH74: 97 | AI74: 192 | AJ74: =_xlfn.IFS(AJ$1=M$2, M74, AJ$1=N$2, N74,AJ$1=O$2, O74,AJ$1=P$2, P74) -> 254
C75: University Wide | D75: La Jolla Campus | E75: Scripps Institution of Oceanography | F75: Scripps Institution of Oceanography | G75: Surface Lot | H75: P021 | I75: P021 | J75: S | K75: Scripps Institution of Oceanography | N75: 75 | O75: 75 | S75: 68 | T75: 22 | U75: 71 | V75: 75 | W75: 28 | X75: 74 | Y75: 74 | Z75: 74 | AA75: 20 | AB75: 17 | AH75: 17 | AI75: 75 | AJ75: =_xlfn.IFS(AJ$1=M$2, M75, AJ$1=N$2, N75,AJ$1=O$2, O75,AJ$1=P$2, P75) -> 75
C76: University Wide | D76: La Jolla Campus | E76: West Campus | F76: Revelle College | G76: Surface Lot | H76: P106 | I76: P106 | J76: Visitor | N76: 1 | O76: 1 | S76: 1 | T76: 1 | U76: 1 | V76: 1 | W76: 0 | X76: 0 | Y76: 0 | Z76: 0 | AA76: 0 | AB76: 0 | AH76: 0 | AI76: 1 | AJ76: =_xlfn.IFS(AJ$1=M$2, M76, AJ$1=N$2, N76,AJ$1=O$2, O76,AJ$1=P$2, P76) -> 1
C77: University Wide | D77: La Jolla Campus | E77: West Campus | F77: Muir College | G77: Surface Lot | H77: P113 | I77: P113 | J77: Visitor | L77: 2 hours | N77: 22 | O77: 22 | S77: 6 | T77: 10 | U77: 8 | V77: 0 | W77: 2 | X77: 0 | Y77: 6 | Z77: 4 | AA77: 4 | AB77: 7 | AH77: 0 | AI77: 10 | AJ77: =_xlfn.IFS(AJ$1=M$2, M77, AJ$1=N$2, N77,AJ$1=O$2, O77,AJ$1=P$2, P77) -> 22
C78: University Wide | D78: La Jolla Campus | E78: West Campus | F78: Muir College | G78: Surface Lot | H78: P201 | I78: P201 | J78: A | N78: 11 | O78: 11 | S78: 1 | T78: 0 | U78: 0 | V78: 0 | W78: 0 | X78: 0 | Y78: 0 | Z78: 0 | AA78: 0 | AB78: 0 | AH78: 0 | AI78: 1 | AJ78: =_xlfn.IFS(AJ$1=M$2, M78, AJ$1=N$2, N78,AJ$1=O$2, O78,AJ$1=P$2, P78) -> 11
C79: University Wide | D79: La Jolla Campus | E79: West Campus | F79: Muir College | G79: Surface Lot | H79: P206 | I79: P206 | J79: A | L79: 2 Hour | M79: 0 | N79: 0 | O79: 32 | S79: 0 | T79: 0 | U79: 0 | V79: 0 | W79: 0 | X79: 0 | Y79: 0 | Z79: 0 | AA79: 0 | AB79: 0 | AH79: 0 | AI79: 0 | AJ79: =_xlfn.IFS(AJ$1=M$2, M79, AJ$1=N$2, N79,AJ$1=O$2, O79,AJ$1=P$2, P79) -> 0
C80: University Wide | D80: La Jolla Campus | E80: West Campus | F80: Muir College | G80: Surface Lot | H80: P206 | I80: =IF(G80="Surface Lot", H80, G80) -> P206 | J80: B | L80: 2 Hour | M80: 48 | N80: =25+7 -> 32 | O80: 0 | S80: 1 | T80: 9 | U80: 2 | V80: 0 | W80: 0 | X80: 0 | Y80: 2 | Z80: 0 | AA80: 1 | AB80: 2 | AH80: 0 | AI80: 9 | AJ80: =_xlfn.IFS(AJ$1=M$2, M80, AJ$1=N$2, N80,AJ$1=O$2, O80,AJ$1=P$2, P80) -> 32
C81: University Wide | D81: La Jolla Campus | E81: West Campus | F81: Muir College | G81: Surface Lot | H81: P206 | I81: P206 | J81: Electric Vehicle | L81: 4-Hour | M81: 2 | N81: 2 | O81: 2 | S81: 0 | T81: 2 | U81: 0 | V81: 0 | W81: 0 | X81: 0 | Y81: 0 | Z81: 0 | AA81: 1 | AB81: 1 | AH81: 0 | AI81: 2 | AJ81: =_xlfn.IFS(AJ$1=M$2, M81, AJ$1=N$2, N81,AJ$1=O$2, O81,AJ$1=P$2, P81) -> 2
C82: University Wide | D82: La Jolla Campus | E82: West Campus | F82: Muir College | G82: Surface Lot | H82: P206 | I82: P206 | J82: Visitor | L82: 2 Hour | M82: 5 | N82: 5 | O82: 5 | S82: 3 | T82: 2 | U82: 1 | V82: 4 | W82: 4 | X82: 3 | Y82: 2 | Z82: 4 | AA82: 3 | AB82: 2 | AH82: 1 | AI82: 4 | AJ82: =_xlfn.IFS(AJ$1=M$2, M82, AJ$1=N$2, N82,AJ$1=O$2, O82,AJ$1=P$2, P82) -> 5
C83: University Wide | D83: La Jolla Campus | E83: West Campus | F83: Roosevelt College | G83: Hopkins | H83: P341 | I83: Hopkins | J83: Motorcycle Section | N83: 30 | O83: 30 | S83: 5 | T83: 3 | U83: 1 | V83: 2 | W83: 3 | X83: 3 | Y83: 3 | Z83: 3 | AA83: 3 | AB83: 3 | AH83: 1 | AI83: 5 | AJ83: =_xlfn.IFS(AJ$1=M$2, M83, AJ$1=N$2, N83,AJ$1=O$2, O83,AJ$1=P$2, P83) -> 30
C84: University Wide | D84: La Jolla Campus | E84: West Campus | F84: Roosevelt College | G84: Hopkins | H84: P341 | I84: Hopkins | J84: Reserved | K84: V2G | N84: 0 | O84: 0 | S84: 0 | T84: 0 | U84: 0 | V84: 0 | W84: 0 | X84: 0 | Y84: 0 | Z84: 0 | AA84: 0 | AB84: 0 | AH84: 0 | AI84: 0 | AJ84: =_xlfn.IFS(AJ$1=M$2, M84, AJ$1=N$2, N84,AJ$1=O$2, O84,AJ$1=P$2, P84) -> 0
C85: University Wide | D85: La Jolla Campus | E85: West Campus | F85: Roosevelt College | G85: Hopkins | H85: P341 | I85: Hopkins | J85: UC Vehicle | N85: 9 | O85: 9 | S85: 9 | T85: 9 | U85: 9 | V85: 9 | W85: 8 | X85: 8 | Y85: 8 | Z85: 8 | AA85: 8 | AB85: 8 | AH85: 8 | AI85: 9 | AJ85: =_xlfn.IFS(AJ$1=M$2, M85, AJ$1=N$2, N85,AJ$1=O$2, O85,AJ$1=P$2, P85) -> 9
C86: University Wide | D86: La Jolla Campus | E86: West Campus | F86: Roosevelt College | G86: Hopkins | H86: P342 | I86: Hopkins | J86: Accessible | K86: Electric Vehicle | N86: 2 | O86: 2 | S86: 2 | T86: 2 | U86: 2 | V86: 1 | W86: 2 | X86: 2 | Y86: 1 | Z86: 2 | AA86: 2 | AB86: 2 | AH86: 1 | AI86: 2 | AJ86: =_xlfn.IFS(AJ$1=M$2, M86, AJ$1=N$2, N86,AJ$1=O$2, O86,AJ$1=P$2, P86) -> 2
C87: University Wide | D87: La Jolla Campus | E87: West Campus | F87: Roosevelt College | G87: Hopkins | H87: P342 | I87: Hopkins | J87: Accessible | N87: 22 | O87: 22 | S87: 20 | T87: 18 | U87: 17 | V87: 17 | W87: 15 | X87: 14 | Y87: 13 | Z87: 15 | AA87: 21 | AB87: 21 | AH87: 13 | AI87: 21 | AJ87: =_xlfn.IFS(AJ$1=M$2, M87, AJ$1=N$2, N87,AJ$1=O$2, O87,AJ$1=P$2, P87) -> 22
C88: University Wide | D88: La Jolla Campus | E88: West Campus | F88: Roosevelt College | G88: Hopkins | H88: P342 | I88: Hopkins | J88: Reserved | N88: 10 | O88: 10 | S88: 0 | T88: 0 | U88: 0 | V88: 0 | W88: 0 | X88: 0 | Y88: 0 | Z88: 0 | AA88: 0 | AB88: 0 | AH88: 0 | AI88: 0 | AJ88: =_xlfn.IFS(AJ$1=M$2, M88, AJ$1=N$2, N88,AJ$1=O$2, O88,AJ$1=P$2, P88) -> 10
C89: University Wide | D89: La Jolla Campus | E89: West Campus | F89: North Torrey Pines Living and Learning | G89: Scholars | H89: P211 | I89: Scholars | J89: B | N89: 381 | O89: 381 | S89: 0 | T89: 9 | U89: 8 | V89: 9 | W89: 0 | X89: 0 | Y89: 1 | Z89: 6 | AA89: 32 | AB89: 51 | AH89: 0 | AI89: 51 | AJ89: =_xlfn.IFS(AJ$1=M$2, M89, AJ$1=N$2, N89,AJ$1=O$2, O89,AJ$1=P$2, P89) -> 381
C90: University Wide | D90: La Jolla Campus | E90: West Campus | F90: North Torrey Pines Living and Learning | G90: Scholars | H90: P211 | I90: Scholars | J90: SR | N90: 103 | O90: 103 | S90: 0 | T90: 5 | U90: 5 | V90: 4 | W90: 0 | X90: 0 | Y90: 0 | Z90: 2 | AA90: 9 | AB90: 3 | AH90: 0 | AI90: 9 | AJ90: =_xlfn.IFS(AJ$1=M$2, M90, AJ$1=N$2, N90,AJ$1=O$2, O90,AJ$1=P$2, P90) -> 103
C91: University Wide | D91: La Jolla Campus | E91: West Campus | F91: North Torrey Pines Living and Learning | G91: Scholars | H91: P212 | I91: Scholars | J91: A | N91: 295 | O91: 295 | S91: 111 | T91: 126 | U91: 94 | V91: 62 | W91: 12 | X91: 3 | Y91: 15 | Z91: 52 | AA91: 89 | AB91: 47 | AH91: 3 | AI91: 126 | AJ91: =_xlfn.IFS(AJ$1=M$2, M91, AJ$1=N$2, N91,AJ$1=O$2, O91,AJ$1=P$2, P91) -> 295
C92: University Wide | D92: La Jolla Campus | E92: East Campus | F92: Science Research Park | G92: Nuevo West/Vela | H92: P791 | I92: Nuevo West/Vela | J92: Accessible | N92: 19 | O92: 19 | S92: 10 | T92: 12 | U92: 12 | V92: 13 | W92: 11 | X92: 8 | Y92: 10 | Z92: 12 | AA92: 12 | AB92: 12 | AH92: 8 | AI92: 13 | AJ92: =_xlfn.IFS(AJ$1=M$2, M92, AJ$1=N$2, N92,AJ$1=O$2, O92,AJ$1=P$2, P92) -> 19
C93: University Wide | D93: La Jolla Campus | E93: East Campus | F93: Science Research Park | G93: Nuevo West/Vela | H93: P791 | I93: Nuevo West/Vela | J93: Motorcycle Section | N93: 12 | O93: 12 | S93: 0 | T93: 2 | U93: 3 | V93: 7 | W93: 5 | X93: 5 | Y93: 6 | Z93: 6 | AA93: 6 | AB93: 4 | AH93: 0 | AI93: 7 | AJ93: =_xlfn.IFS(AJ$1=M$2, M93, AJ$1=N$2, N93,AJ$1=O$2, O93,AJ$1=P$2, P93) -> 12
C94: University Wide | D94: La Jolla Campus | E94: East Campus | F94: Science Research Park | G94: Nuevo West/Vela | H94: P793 | I94: Nuevo West/Vela | J94: Reserved | N94: 1 | O94: 1 | S94: 0 | T94: 0 | U94: 0 | V94: 0 | W94: 0 | X94: 0 | Y94: 0 | Z94: 0 | AA94: 0 | AB94: 0 | AH94: 0 | AI94: 0 | AJ94: =_xlfn.IFS(AJ$1=M$2, M94, AJ$1=N$2, N94,AJ$1=O$2, O94,AJ$1=P$2, P94) -> 1
C95: University Wide | D95: La Jolla Campus | E95: West Campus | F95: North Torrey Pines Living and Learning | G95: Scholars | H95: P212 | I95: Scholars | J95: Carpool | K95: 2 Person | N95: 92 | O95: 92 | S95: 60 | T95: 52 | U95: 38 | V95: 30 | W95: 25 | X95: 10 | Y95: 12 | Z95: 21 | AA95: 37 | AB95: 49 | AH95: 10 | AI95: 60 | AJ95: =_xlfn.IFS(AJ$1=M$2, M95, AJ$1=N$2, N95,AJ$1=O$2, O95,AJ$1=P$2, P95) -> 92
C96: University Wide | D96: La Jolla Campus | E96: West Campus | F96: North Torrey Pines Living and Learning | G96: Scholars | H96: P212 | I96: Scholars | J96: Visitor | N96: 42 | O96: 42 | S96: 21 | T96: 37 | U96: 23 | V96: 22 | W96: 13 | X96: 10 | Y96: 15 | Z96: 11 | AA96: 11 | AB96: 21 | AH96: 10 | AI96: 37 | AJ96: =_xlfn.IFS(AJ$1=M$2, M96, AJ$1=N$2, N96,AJ$1=O$2, O96,AJ$1=P$2, P96) -> 42
C97: University Wide | D97: La Jolla Campus | E97: Scripps Institution of Oceanography | F97: Scripps Institution of Oceanography | G97: Surface Lot | H97: P001 | I97: P001 | J97: Accessible | K97: Electric Vehicle | N97: 1 | O97: 1 | S97: 1 | T97: 1 | U97: 0 | V97: 0 | W97: 0 | X97: 0 | Y97: 1 | Z97: 1 | AA97: 1 | AB97: 1 | AH97: 0 | AI97: 1 | AJ97: =_xlfn.IFS(AJ$1=M$2, M97, AJ$1=N$2, N97,AJ$1=O$2, O97,AJ$1=P$2, P97) -> 1
C98: University Wide | D98: La Jolla Campus | E98: Scripps Institution of Oceanography | F98: Scripps Institution of Oceanography | G98: Surface Lot | H98: P001 | I98: P001 | J98: Loading | K98: Oversized | L98: 20 minutes | N98: 1 | O98: 1 | S98: 0 | T98: 1 | U98: 0 | V98: 1 | W98: 1 | X98: 0 | Y98: 0 | Z98: 1 | AA98: 1 | AB98: 1 | AH98: 0 | AI98: 1 | AJ98: =_xlfn.IFS(AJ$1=M$2, M98, AJ$1=N$2, N98,AJ$1=O$2, O98,AJ$1=P$2, P98) -> 1
C99: University Wide | D99: La Jolla Campus | E99: Scripps Institution of Oceanography | F99: Scripps Institution of Oceanography | G99: Surface Lot | H99: P001 | I99: P001 | J99: Reserved | N99: 2 | O99: 1 | S99: 0 | T99: 0 | U99: 0 | V99: 0 | W99: 0 | X99: 0 | Y99: 0 | Z99: 0 | AA99: 0 | AB99: 0 | AH99: 0 | AI99: 0 | AJ99: =_xlfn.IFS(AJ$1=M$2, M99, AJ$1=N$2, N99,AJ$1=O$2, O99,AJ$1=P$2, P99) -> 2
C100: University Wide | D100: La Jolla Campus | E100: West Campus | F100: North Torrey Pines Living and Learning | G100: Scholars | H100: P213 | I100: Scholars | J100: Electric Vehicle | N100: 30 | O100: 30 | S100: 4 | T100: 6 | U100: 6 | V100: 5 | W100: 3 | X100: 5 | Y100: 3 | Z100: 4 | AA100: 5 | AB100: 4 | AH100: 3 | AI100: 6 | AJ100: =_xlfn.IFS(AJ$1=M$2, M100, AJ$1=N$2, N100,AJ$1=O$2, O100,AJ$1=P$2, P100) -> 30
C101: University Wide | D101: La Jolla Campus | E101: Scripps Institution of Oceanography | F101: Scripps Institution of Oceanography | G101: Surface Lot | H101: P002 | I101: P002 | J101: Accessible | N101: 2 | O101: 2 | S101: 2 | T101: 1 | U101: 1 | V101: 1 | W101: 1 | X101: 1 | Y101: 1 | Z101: 2 | AA101: 2 | AB101: 2 | AH101: 1 | AI101: 2 | AJ101: =_xlfn.IFS(AJ$1=M$2, M101, AJ$1=N$2, N101,AJ$1=O$2, O101,AJ$1=P$2, P101) -> 2
C102: University Wide | D102: La Jolla Campus | E102: West Campus | F102: North Torrey Pines Living and Learning | G102: Scholars | H102: P213 | I102: Scholars | J102: Visitor | K102: 2-Hour Limit | L102: 60 | N102: 111 | O102: 111 | S102: 33 | T102: 30 | U102: 24 | V102: 9 | W102: 2 | X102: 8 | Y102: 6 | Z102: 5 | AA102: 12 | AB102: 19 | AH102: 2 | AI102: 33 | AJ102: =_xlfn.IFS(AJ$1=M$2, M102, AJ$1=N$2, N102,AJ$1=O$2, O102,AJ$1=P$2, P102) -> 111
C103: University Wide | D103: La Jolla Campus | E103: Scripps Institution of Oceanography | F103: Scripps Institution of Oceanography | G103: Surface Lot | H103: P003 | I103: P003 | J103: Accessible | N103: 2 | O103: 2 | S103: 0 | T103: 1 | U103: 0 | V103: 1 | W103: 0 | X103: 1 | Y103: 1 | Z103: 1 | AA103: 1 | AB103: 0 | AH103: 0 | AI103: 1 | AJ103: =_xlfn.IFS(AJ$1=M$2, M103, AJ$1=N$2, N103,AJ$1=O$2, O103,AJ$1=P$2, P103) -> 2
C104: University Wide | D104: La Jolla Campus | E104: Scripps Institution of Oceanography | F104: Scripps Institution of Oceanography | G104: Surface Lot | H104: P003 | I104: P003 | J104: Allocated | K104: Lifeguard | N104: 1 | O104: 1 | S104: 0 | T104: 1 | U104: 0 | V104: 0 | W104: 1 | X104: 0 | Y104: 0 | Z104: 0 | AA104: 1 | AB104: 1 | AH104: 0 | AI104: 1 | AJ104: =_xlfn.IFS(AJ$1=M$2, M104, AJ$1=N$2, N104,AJ$1=O$2, O104,AJ$1=P$2, P104) -> 1
C105: University Wide | D105: La Jolla Campus | E105: Scripps Institution of Oceanography | F105: Scripps Institution of Oceanography | G105: Surface Lot | H105: P003 | I105: P003 | J105: Loading | K105: Commercial | L105: 20 minutes | N105: 3 | O105: 3 | S105: 2 | T105: 2 | U105: 0 | V105: 2 | W105: 3 | X105: 2 | Y105: 2 | Z105: 2 | AA105: 0 | AB105: 2 | AH105: 0 | AI105: 3 | AJ105: =_xlfn.IFS(AJ$1=M$2, M105, AJ$1=N$2, N105,AJ$1=O$2, O105,AJ$1=P$2, P105) -> 3
C106: University Wide | D106: La Jolla Campus | E106: Scripps Institution of Oceanography | F106: Scripps Institution of Oceanography | G106: Surface Lot | H106: P003 | I106: P003 | J106: Loading | L106: 20 minutes | N106: 2 | O106: 2 | S106: 1 | T106: 2 | U106: 0 | V106: 2 | W106: 1 | X106: 2 | Y106: 2 | Z106: 2 | AA106: 2 | AB106: 2 | AH106: 0 | AI106: 2 | AJ106: =_xlfn.IFS(AJ$1=M$2, M106, AJ$1=N$2, N106,AJ$1=O$2, O106,AJ$1=P$2, P106) -> 2
C107: University Wide | D107: La Jolla Campus | E107: Scripps Institution of Oceanography | F107: Scripps Institution of Oceanography | G107: Surface Lot | H107: P003 | I107: P003 | J107: Motorcycle Section | N107: 0 | O107: 0 | S107: 0 | T107: 0 | U107: 0 | V107: 0 | W107: 0 | X107: 0 | Y107: 0 | Z107: 0 | AA107: 0 | AB107: 0 | AH107: 0 | AI107: 0 | AJ107: =_xlfn.IFS(AJ$1=M$2, M107, AJ$1=N$2, N107,AJ$1=O$2, O107,AJ$1=P$2, P107) -> 0
C108: University Wide | D108: La Jolla Campus | E108: West Campus | F108: Marshall College | G108: Surface Lot | H108: P303 | I108: P303 | J108: A | N108: 84 | O108: 88 | S108: 70 | T108: 42 | U108: 39 | V108: 37 | W108: 21 | X108: 23 | Y108: 32 | Z108: 35 | AA108: 40 | AB108: 44 | AH108: 21 | AI108: 70 | AJ108: =_xlfn.IFS(AJ$1=M$2, M108, AJ$1=N$2, N108,AJ$1=O$2, O108,AJ$1=P$2, P108) -> 84
C109: University Wide | D109: La Jolla Campus | E109: Scripps Institution of Oceanography | F109: Scripps Institution of Oceanography | G109: Surface Lot | H109: P004 | I109: P004 | J109: Loading | K109: Oversized Commercial | L109: 20 minutes | N109: 2 | O109: 2 | S109: 1 | T109: 0 | U109: 0 | V109: 0 | W109: 0 | X109: 0 | Y109: 0 | Z109: 0 | AA109: 0 | AB109: 0 | AH109: 0 | AI109: 1 | AJ109: =_xlfn.IFS(AJ$1=M$2, M109, AJ$1=N$2, N109,AJ$1=O$2, O109,AJ$1=P$2, P109) -> 2
C110: University Wide | D110: La Jolla Campus | E110: Scripps Institution of Oceanography | F110: Scripps Institution of Oceanography | G110: Surface Lot | H110: P004 | I110: P004 | J110: Loading | L110: 20 minutes | N110: 5 | O110: 5 | S110: 0 | T110: 0 | U110: 0 | V110: 0 | W110: 0 | X110: 0 | Y110: 0 | Z110: 0 | AA110: 2 | AB110: 2 | AH110: 0 | AI110: 2 | AJ110: =_xlfn.IFS(AJ$1=M$2, M110, AJ$1=N$2, N110,AJ$1=O$2, O110,AJ$1=P$2, P110) -> 5
C111: University Wide | D111: La Jolla Campus | E111: Scripps Institution of Oceanography | F111: Scripps Institution of Oceanography | G111: Surface Lot | H111: P004 | I111: P004 | J111: Service Yard | N111: 1 | O111: 1 | S111: 0 | T111: 1 | U111: 0 | V111: 0 | W111: 0 | X111: 0 | Y111: 0 | Z111: 0 | AA111: 0 | AB111: 0 | AH111: 0 | AI111: 1 | AJ111: =_xlfn.IFS(AJ$1=M$2, M111, AJ$1=N$2, N111,AJ$1=O$2, O111,AJ$1=P$2, P111) -> 1
C112: University Wide | D112: La Jolla Campus | E112: Scripps Institution of Oceanography | F112: Scripps Institution of Oceanography | G112: Surface Lot | H112: P004 | I112: =IF(G112="Surface Lot", H112, G112) -> P004 | J112: UC Vehicle | K112: UC Cart | N112: 1 | O112: 1 | S112: 0 | T112: 0 | U112: 0 | V112: 0 | W112: 0 | X112: 0 | Y112: 0 | Z112: 1 | AA112: 0 | AB112: 1 | AH112: 0 | AI112: 1 | AJ112: =_xlfn.IFS(AJ$1=M$2, M112, AJ$1=N$2, N112,AJ$1=O$2, O112,AJ$1=P$2, P112) -> 1
C113: University Wide | D113: La Jolla Campus | E113: Scripps Institution of Oceanography | F113: Scripps Institution of Oceanography | G113: Surface Lot | H113: P004 | I113: P004 | J113: UC Vehicle | N113: 5 | O113: 5 | S113: 0 | T113: 1 | U113: 0 | V113: 0 | W113: 0 | X113: 0 | Y113: 0 | Z113: 1 | AA113: 1 | AB113: 0 | AH113: 0 | AI113: 1 | AJ113: =_xlfn.IFS(AJ$1=M$2, M113, AJ$1=N$2, N113,AJ$1=O$2, O113,AJ$1=P$2, P113) -> 5
C114: University Wide | D114: La Jolla Campus | E114: Scripps Institution of Oceanography | F114: Scripps Institution of Oceanography | G114: Surface Lot | H114: P005 | I114: P005 | J114: Accessible | N114: 1 | O114: 1 | S114: 1 | T114: 1 | U114: 0 | V114: 1 | W114: 0 | X114: 0 | Y114: 0 | Z114: 1 | AA114: 1 | AB114: 1 | AH114: 0 | AI114: 1 | AJ114: =_xlfn.IFS(AJ$1=M$2, M114, AJ$1=N$2, N114,AJ$1=O$2, O114,AJ$1=P$2, P114) -> 1
C115: University Wide | D115: La Jolla Campus | E115: Scripps Institution of Oceanography | F115: Scripps Institution of Oceanography | G115: Surface Lot | H115: P005 | I115: P005 | J115: Loading | K115: Bars | L115: 20 minutes | N115: 1 | O115: 1 | S115: 1 | T115: 0 | U115: 0 | V115: 0 | W115: 1 | X115: 0 | Y115: 0 | Z115: 0 | AA115: 1 | AB115: 1 | AH115: 0 | AI115: 1 | AJ115: =_xlfn.IFS(AJ$1=M$2, M115, AJ$1=N$2, N115,AJ$1=O$2, O115,AJ$1=P$2, P115) -> 1
C116: University Wide | D116: La Jolla Campus | E116: Scripps Institution of Oceanography | F116: Scripps Institution of Oceanography | G116: Surface Lot | H116: P005 | I116: P005 | J116: Motorcycle Section | N116: 2 | O116: 2 | S116: 1 | T116: 1 | U116: 1 | V116: 1 | W116: 1 | X116: 1 | Y116: 1 | Z116: 1 | AA116: 1 | AB116: 1 | AH116: 1 | AI116: 1 | AJ116: =_xlfn.IFS(AJ$1=M$2, M116, AJ$1=N$2, N116,AJ$1=O$2, O116,AJ$1=P$2, P116) -> 2
C117: University Wide | D117: La Jolla Campus | E117: Scripps Institution of Oceanography | F117: Scripps Institution of Oceanography | G117: Surface Lot | H117: P005 | I117: P005 | J117: Service Yard | K117: Bars | N117: 1 | O117: 1 | S117: 0 | T117: 0 | U117: 0 | V117: 0 | W117: 1 | X117: 0 | Y117: 0 | Z117: 1 | AA117: 1 | AB117: 1 | AH117: 0 | AI117: 1 | AJ117: =_xlfn.IFS(AJ$1=M$2, M117, AJ$1=N$2, N117,AJ$1=O$2, O117,AJ$1=P$2, P117) -> 1
C118: University Wide | D118: La Jolla Campus | E118: West Campus | F118: Marshall College | G118: Surface Lot | H118: P303 | I118: P303 | J118: Visitor | K118: 5 Minute | L118: 5 minutes | N118: 2 | O118: 2 | S118: 2 | T118: 2 | U118: 2 | V118: 2 | W118: 2 | X118: 2 | Y118: 2 | Z118: 1 | AA118: 1 | AB118: 2 | AH118: 1 | AI118: 2 | AJ118: =_xlfn.IFS(AJ$1=M$2, M118, AJ$1=N$2, N118,AJ$1=O$2, O118,AJ$1=P$2, P118) -> 2
C119: University Wide | D119: La Jolla Campus | E119: Scripps Institution of Oceanography | F119: Scripps Institution of Oceanography | G119: Surface Lot | H119: P006 | I119: P006 | J119: Accessible | N119: 1 | O119: 1 | S119: 1 | T119: 1 | U119: 1 | V119: 1 | W119: 1 | X119: 1 | Y119: 1 | Z119: 1 | AA119: 1 | AB119: 1 | AH119: 1 | AI119: 1 | AJ119: =_xlfn.IFS(AJ$1=M$2, M119, AJ$1=N$2, N119,AJ$1=O$2, O119,AJ$1=P$2, P119) -> 1
C120: University Wide | D120: La Jolla Campus | E120: West Campus | F120: Marshall College | G120: Surface Lot | H120: P303 | I120: P303 | J120: Visitor | N120: 26 | O120: 28 | S120: 17 | T120: 9 | U120: 0 | V120: 1 | W120: 4 | X120: 2 | Y120: 3 | Z120: 8 | AA120: 13 | AB120: 11 | AH120: 0 | AI120: 17 | AJ120: =_xlfn.IFS(AJ$1=M$2, M120, AJ$1=N$2, N120,AJ$1=O$2, O120,AJ$1=P$2, P120) -> 26
C121: University Wide | D121: La Jolla Campus | E121: West Campus | F121: Marshall College | G121: Surface Lot | H121: P304 | I121: P304 | J121: B | N121: 0 | O121: 0 | S121: 0 | T121: 0 | U121: 0 | V121: 0 | W121: 0 | X121: 0 | Y121: 0 | Z121: 0 | AA121: 0 | AB121: 0 | AH121: 0 | AI121: 0 | AJ121: =_xlfn.IFS(AJ$1=M$2, M121, AJ$1=N$2, N121,AJ$1=O$2, O121,AJ$1=P$2, P121) -> 0
C122: University Wide | D122: La Jolla Campus | E122: Scripps Institution of Oceanography | F122: Scripps Institution of Oceanography | G122: Surface Lot | H122: P007 | I122: P007 | J122: Accessible | N122: 3 | O122: 3 | S122: 1 | T122: 1 | U122: 1 | V122: 1 | W122: 1 | X122: 1 | Y122: 1 | Z122: 1 | AA122: 1 | AB122: 1 | AH122: 1 | AI122: 1 | AJ122: =_xlfn.IFS(AJ$1=M$2, M122, AJ$1=N$2, N122,AJ$1=O$2, O122,AJ$1=P$2, P122) -> 3
C123: University Wide | D123: La Jolla Campus | E123: Scripps Institution of Oceanography | F123: Scripps Institution of Oceanography | G123: Surface Lot | H123: P007 | I123: P007 | J123: Loading | K123: Dock | L123: 20 minutes | N123: 1 | O123: 1 | S123: 1 | T123: 1 | U123: 0 | V123: 0 | W123: 0 | X123: 0 | Y123: 0 | Z123: 0 | AA123: 1 | AB123: 1 | AH123: 0 | AI123: 1 | AJ123: =_xlfn.IFS(AJ$1=M$2, M123, AJ$1=N$2, N123,AJ$1=O$2, O123,AJ$1=P$2, P123) -> 1
C124: University Wide | D124: La Jolla Campus | E124: Scripps Institution of Oceanography | F124: Scripps Institution of Oceanography | G124: Surface Lot | H124: P007 | I124: P007 | J124: Loading | L124: 20 minutes | N124: 1 | O124: 1 | S124: 0 | T124: 0 | U124: 0 | V124: 0 | W124: 0 | X124: 0 | Y124: 0 | Z124: 0 | AA124: 0 | AB124: 0 | AH124: 0 | AI124: 0 | AJ124: =_xlfn.IFS(AJ$1=M$2, M124, AJ$1=N$2, N124,AJ$1=O$2, O124,AJ$1=P$2, P124) -> 1
C125: University Wide | D125: La Jolla Campus | E125: Scripps Institution of Oceanography | F125: Scripps Institution of Oceanography | G125: Surface Lot | H125: P007 | I125: P007 | J125: Motorcycle Section | N125: 2 | O125: 2 | S125: 0 | T125: 0 | U125: 0 | V125: 0 | W125: 0 | X125: 0 | Y125: 0 | Z125: 0 | AA125: 0 | AB125: 0 | AH125: 0 | AI125: 0 | AJ125: =_xlfn.IFS(AJ$1=M$2, M125, AJ$1=N$2, N125,AJ$1=O$2, O125,AJ$1=P$2, P125) -> 2
C126: University Wide | D126: La Jolla Campus | E126: Scripps Institution of Oceanography | F126: Scripps Institution of Oceanography | G126: Surface Lot | H126: P007 | I126: P007 | J126: UC Vehicle | K126: UC Cart Bar | N126: 1 | O126: 1 | S126: 0 | T126: 1 | U126: 0 | V126: 0 | W126: 1 | X126: 0 | Y126: 0 | Z126: 0 | AA126: 0 | AB126: 1 | AH126: 0 | AI126: 1 | AJ126: =_xlfn.IFS(AJ$1=M$2, M126, AJ$1=N$2, N126,AJ$1=O$2, O126,AJ$1=P$2, P126) -> 1
C127: University Wide | D127: La Jolla Campus | E127: Scripps Institution of Oceanography | F127: Scripps Institution of Oceanography | G127: Surface Lot | H127: P007 | I127: P007 | J127: UC Vehicle | N127: 2 | O127: 2 | S127: 1 | T127: 0 | U127: 0 | V127: 0 | W127: 1 | X127: 0 | Y127: 0 | Z127: 1 | AA127: 2 | AB127: 0 | AH127: 0 | AI127: 2 | AJ127: =_xlfn.IFS(AJ$1=M$2, M127, AJ$1=N$2, N127,AJ$1=O$2, O127,AJ$1=P$2, P127) -> 2
C128: University Wide | D128: La Jolla Campus | E128: West Campus | F128: Marshall College | G128: Surface Lot | H128: P304 | I128: P304 | J128: S | N128: 72 | O128: 72 | S128: 8 | T128: 1 | U128: 0 | V128: 0 | W128: 4 | X128: 0 | Y128: 1 | Z128: 1 | AA128: 3 | AB128: 22 | AH128: 0 | AI128: 22 | AJ128: =_xlfn.IFS(AJ$1=M$2, M128, AJ$1=N$2, N128,AJ$1=O$2, O128,AJ$1=P$2, P128) -> 72
C129: University Wide | D129: La Jolla Campus | E129: Scripps Institution of Oceanography | F129: Scripps Institution of Oceanography | G129: Surface Lot | H129: P008 | I129: P008 | J129: Accessible | N129: 3 | O129: 3 | S129: 1 | T129: 0 | U129: 0 | V129: 0 | W129: 0 | X129: 0 | Y129: 0 | Z129: 0 | AA129: 0 | AB129: 1 | AH129: 0 | AI129: 1 | AJ129: =_xlfn.IFS(AJ$1=M$2, M129, AJ$1=N$2, N129,AJ$1=O$2, O129,AJ$1=P$2, P129) -> 3
C130: University Wide | D130: La Jolla Campus | E130: Scripps Institution of Oceanography | F130: Scripps Institution of Oceanography | G130: Surface Lot | H130: P008 | I130: P008 | J130: Motorcycle Section | N130: 1 | O130: 1 | S130: 0 | T130: 0 | U130: 0 | V130: 0 | W130: 0 | X130: 0 | Y130: 0 | Z130: 0 | AA130: 0 | AB130: 0 | AH130: 0 | AI130: 0 | AJ130: =_xlfn.IFS(AJ$1=M$2, M130, AJ$1=N$2, N130,AJ$1=O$2, O130,AJ$1=P$2, P130) -> 1
C131: University Wide | D131: La Jolla Campus | E131: Scripps Institution of Oceanography | F131: Scripps Institution of Oceanography | G131: Surface Lot | H131: P009 | I131: P009 | J131: Service Yard | N131: 2 | O131: 2 | S131: 1 | T131: 0 | U131: 0 | V131: 1 | W131: 1 | X131: 0 | Y131: 0 | Z131: 0 | AA131: 0 | AB131: 0 | AH131: 0 | AI131: 1 | AJ131: =_xlfn.IFS(AJ$1=M$2, M131, AJ$1=N$2, N131,AJ$1=O$2, O131,AJ$1=P$2, P131) -> 2
C132: University Wide | D132: La Jolla Campus | E132: West Campus | F132: Roosevelt College | G132: Hopkins | H132: P341 | I132: Hopkins | J132: S | N132: 174 | O132: 174 | S132: 112 | T132: 60 | U132: 20 | V132: 15 | W132: 3 | X132: 5 | Y132: 6 | Z132: 12 | AA132: 25 | AB132: 49 | AH132: =MIN($Q132:$AG132) -> 3 | AI132: =MAX($Q132:$AG132) -> 112 | AJ132: =_xlfn.IFS(AJ$1=M$2, M132, AJ$1=N$2, N132,AJ$1=O$2, O132,AJ$1=P$2, P132) -> 174
C133: University Wide | D133: La Jolla Campus | E133: Scripps Institution of Oceanography | F133: Scripps Institution of Oceanography | G133: Surface Lot | H133: P010 | I133: P010 | J133: Accessible | N133: 1 | O133: 1 | S133: 1 | T133: 1 | U133: 0 | V133: 0 | W133: 0 | X133: 1 | Y133: 1 | Z133: 1 | AA133: 1 | AB133: 1 | AH133: 0 | AI133: 1 | AJ133: =_xlfn.IFS(AJ$1=M$2, M133, AJ$1=N$2, N133,AJ$1=O$2, O133,AJ$1=P$2, P133) -> 1
C134: University Wide | D134: La Jolla Campus | E134: West Campus | F134: Roosevelt College | G134: Hopkins | H134: P341 | I134: Hopkins | J134: SR | N134: 51 | O134: 51 | S134: 37 | T134: 29 | U134: 31 | V134: 29 | W134: 20 | X134: 16 | Y134: 14 | Z134: 15 | AA134: 21 | AB134: 24 | AH134: 14 | AI134: 37 | AJ134: =_xlfn.IFS(AJ$1=M$2, M134, AJ$1=N$2, N134,AJ$1=O$2, O134,AJ$1=P$2, P134) -> 51
C135: University Wide | D135: La Jolla Campus | E135: Scripps Institution of Oceanography | F135: Scripps Institution of Oceanography | G135: Surface Lot | H135: P011 | I135: P011 | J135: Accessible | N135: 2 | O135: 2 | S135: 1 | T135: 1 | U135: 2 | V135: 2 | W135: 0 | X135: 2 | Y135: 1 | Z135: 2 | AA135: 1 | AB135: 2 | AH135: 0 | AI135: 2 | AJ135: =_xlfn.IFS(AJ$1=M$2, M135, AJ$1=N$2, N135,AJ$1=O$2, O135,AJ$1=P$2, P135) -> 2
C136: University Wide | D136: La Jolla Campus | E136: Scripps Institution of Oceanography | F136: Scripps Institution of Oceanography | G136: Surface Lot | H136: P011 | I136: P011 | J136: Allocated | K136: Coastal Access | L136: 1 hour | N136: 4 | O136: 4 | S136: 4 | T136: 1 | U136: 0 | V136: 0 | W136: 0 | X136: 0 | Y136: 1 | Z136: 0 | AA136: 3 | AB136: 2 | AH136: 0 | AI136: 4 | AJ136: =_xlfn.IFS(AJ$1=M$2, M136, AJ$1=N$2, N136,AJ$1=O$2, O136,AJ$1=P$2, P136) -> 4
C137: University Wide | D137: La Jolla Campus | E137: Scripps Institution of Oceanography | F137: Scripps Institution of Oceanography | G137: Surface Lot | H137: P011 | I137: P011 | J137: Loading | L137: 20 minutes | N137: 1 | O137: 1 | S137: 1 | T137: 1 | U137: 0 | V137: 1 | W137: 1 | X137: 1 | Y137: 1 | Z137: 0 | AA137: 0 | AB137: 1 | AH137: 0 | AI137: 1 | AJ137: =_xlfn.IFS(AJ$1=M$2, M137, AJ$1=N$2, N137,AJ$1=O$2, O137,AJ$1=P$2, P137) -> 1
C138: University Wide | D138: La Jolla Campus | E138: Scripps Institution of Oceanography | F138: Scripps Institution of Oceanography | G138: Surface Lot | H138: P011 | I138: P011 | J138: Motorcycle Section | N138: 1 | O138: 1 | S138: 0 | T138: 0 | U138: 0 | V138: 0 | W138: 1 | X138: 1 | Y138: 1 | Z138: 1 | AA138: 0 | AB138: 0 | AH138: 0 | AI138: 1 | AJ138: =_xlfn.IFS(AJ$1=M$2, M138, AJ$1=N$2, N138,AJ$1=O$2, O138,AJ$1=P$2, P138) -> 1
C139: University Wide | D139: La Jolla Campus | E139: West Campus | F139: Roosevelt College | G139: Hopkins | H139: P342 | I139: Hopkins | J139: B | N139: 639 | O139: 639 | S139: 515 | T139: 324 | U139: 324 | V139: 240 | W139: 117 | X139: 192 | Y139: 188 | Z139: 197 | AA139: 217 | AB139: 353 | AH139: 117 | AI139: 515 | AJ139: =_xlfn.IFS(AJ$1=M$2, M139, AJ$1=N$2, N139,AJ$1=O$2, O139,AJ$1=P$2, P139) -> 639
C140: University Wide | D140: La Jolla Campus | E140: Scripps Institution of Oceanography | F140: Scripps Institution of Oceanography | G140: Surface Lot | H140: P012 | I140: P012 | J140: Accessible | N140: 1 | O140: 1 | S140: 1 | T140: 0 | U140: 0 | V140: 0 | W140: 0 | X140: 1 | Y140: 1 | Z140: 1 | AA140: 0 | AB140: 1 | AH140: 0 | AI140: 1 | AJ140: =_xlfn.IFS(AJ$1=M$2, M140, AJ$1=N$2, N140,AJ$1=O$2, O140,AJ$1=P$2, P140) -> 1
C141: University Wide | D141: La Jolla Campus | E141: West Campus | F141: Roosevelt College | G141: Hopkins | H141: P342 | I141: Hopkins | J141: Carpool | K141: 2 Person | N141: 78 | O141: 78 | S141: 67 | T141: 56 | U141: 46 | V141: 33 | W141: 24 | X141: 12 | Y141: 10 | Z141: 9 | AA141: 10 | AB141: 20 | AH141: 9 | AI141: 67 | AJ141: =_xlfn.IFS(AJ$1=M$2, M141, AJ$1=N$2, N141,AJ$1=O$2, O141,AJ$1=P$2, P141) -> 78
C142: University Wide | D142: La Jolla Campus | E142: West Campus | F142: Roosevelt College | G142: Hopkins | H142: P342 | I142: Hopkins | J142: Electric Vehicle | N142: 20 | O142: 20 | S142: 18 | T142: 15 | U142: 4 | V142: 4 | W142: 2 | X142: 4 | Y142: 4 | Z142: 3 | AA142: 3 | AB142: 9 | AH142: 2 | AI142: 18 | AJ142: =_xlfn.IFS(AJ$1=M$2, M142, AJ$1=N$2, N142,AJ$1=O$2, O142,AJ$1=P$2, P142) -> 20
C143: University Wide | D143: La Jolla Campus | E143: Scripps Institution of Oceanography | F143: Scripps Institution of Oceanography | G143: Surface Lot | H143: P013 | I143: P013 | J143: Accessible | N143: 1 | O143: 1 | S143: 1 | T143: 1 | U143: 1 | V143: 1 | W143: 1 | X143: 1 | Y143: 1 | Z143: 1 | AA143: 1 | AB143: 1 | AH143: 1 | AI143: 1 | AJ143: =_xlfn.IFS(AJ$1=M$2, M143, AJ$1=N$2, N143,AJ$1=O$2, O143,AJ$1=P$2, P143) -> 1
C144: University Wide | D144: La Jolla Campus | E144: West Campus | F144: Roosevelt College | G144: Hopkins | H144: P342 | I144: =IF(G144="Surface Lot", H144, G144) -> Hopkins | J144: Visitor | K144: 5 Minute | L144: 5 minutes | N144: 1 | O144: 1 | S144: 1 | T144: 1 | U144: 1 | V144: 1 | W144: 1 | X144: 0 | Y144: 0 | Z144: 1 | AA144: 1 | AB144: 1 | AH144: 0 | AI144: 1 | AJ144: =_xlfn.IFS(AJ$1=M$2, M144, AJ$1=N$2, N144,AJ$1=O$2, O144,AJ$1=P$2, P144) -> 1
C145: University Wide | D145: La Jolla Campus | E145: West Campus | F145: Roosevelt College | G145: Hopkins | H145: P345 | I145: Hopkins | J145: A | N145: 295 | O145: 295 | S145: 259 | T145: 189 | U145: 153 | V145: 141 | W145: 199 | X145: 147 | Y145: 152 | Z145: 169 | AA145: 167 | AB145: 184 | AH145: 141 | AI145: 259 | AJ145: =_xlfn.IFS(AJ$1=M$2, M145, AJ$1=N$2, N145,AJ$1=O$2, O145,AJ$1=P$2, P145) -> 295
C146: University Wide | D146: La Jolla Campus | E146: West Campus | F146: Roosevelt College | G146: Hopkins | H146: P345 | I146: Hopkins | J146: Carpool | K146: S 3-Person | N146: 6 | O146: 6 | S146: 0 | T146: 0 | U146: 0 | V146: 0 | W146: 4 | X146: 3 | Y146: 2 | Z146: 2 | AA146: 2 | AB146: 0 | AH146: 0 | AI146: 4 | AJ146: =_xlfn.IFS(AJ$1=M$2, M146, AJ$1=N$2, N146,AJ$1=O$2, O146,AJ$1=P$2, P146) -> 6
C147: University Wide | D147: La Jolla Campus | E147: West Campus | F147: Roosevelt College | G147: Hopkins | H147: P347 | I147: Hopkins | J147: Visitor | N147: 90 | O147: 90 | S147: 63 | T147: 40 | U147: 34 | V147: 30 | W147: 37 | X147: 50 | Y147: 54 | Z147: 50 | AA147: 48 | AB147: 52 | AH147: 30 | AI147: 63 | AJ147: =_xlfn.IFS(AJ$1=M$2, M147, AJ$1=N$2, N147,AJ$1=O$2, O147,AJ$1=P$2, P147) -> 90
C148: University Wide | D148: La Jolla Campus | E148: Scripps Institution of Oceanography | F148: Scripps Institution of Oceanography | G148: Surface Lot | H148: P014 | I148: P014 | J148: Accessible | N148: 4 | O148: 4 | S148: 4 | T148: 4 | U148: 2 | V148: 4 | W148: 3 | X148: 3 | Y148: 4 | Z148: 4 | AA148: 2 | AB148: 3 | AH148: 2 | AI148: 4 | AJ148: =_xlfn.IFS(AJ$1=M$2, M148, AJ$1=N$2, N148,AJ$1=O$2, O148,AJ$1=P$2, P148) -> 4
C149: University Wide | D149: La Jolla Campus | E149: Scripps Institution of Oceanography | F149: Scripps Institution of Oceanography | G149: Surface Lot | H149: P014 | I149: P014 | J149: Motorcycle Section | N149: 8 | O149: 8 | S149: 1 | T149: 0 | U149: 2 | V149: 0 | W149: 1 | X149: 1 | Y149: 1 | Z149: 1 | AA149: 2 | AB149: 2 | AH149: 0 | AI149: 2 | AJ149: =_xlfn.IFS(AJ$1=M$2, M149, AJ$1=N$2, N149,AJ$1=O$2, O149,AJ$1=P$2, P149) -> 8
C150: University Wide | D150: La Jolla Campus | E150: Scripps Institution of Oceanography | F150: Scripps Institution of Oceanography | G150: Surface Lot | H150: P014 | I150: P014 | J150: Reserved | N150: 0 | O150: 0 | S150: 0 | T150: 0 | U150: 0 | V150: 0 | W150: 0 | X150: 0 | Y150: 0 | Z150: 0 | AA150: 0 | AB150: 0 | AH150: 0 | AI150: 0 | AJ150: =_xlfn.IFS(AJ$1=M$2, M150, AJ$1=N$2, N150,AJ$1=O$2, O150,AJ$1=P$2, P150) -> 0
C151: University Wide | D151: La Jolla Campus | E151: Scripps Institution of Oceanography | F151: Scripps Institution of Oceanography | G151: Surface Lot | H151: P015 | I151: P015 | J151: Loading | N151: 1 | O151: 1 | S151: 1 | T151: 1 | U151: 0 | V151: 0 | W151: 0 | X151: 0 | Y151: 1 | Z151: 0 | AA151: 0 | AB151: 0 | AH151: 0 | AI151: 1 | AJ151: =_xlfn.IFS(AJ$1=M$2, M151, AJ$1=N$2, N151,AJ$1=O$2, O151,AJ$1=P$2, P151) -> 1
C152: University Wide | D152: La Jolla Campus | E152: West Campus | F152: North Campus | G152: Surface Lot | H152: P351 | I152: P351 | J152: A | N152: 22 | O152: 22 | S152: 7 | T152: 4 | U152: 3 | V152: 1 | W152: 0 | X152: 0 | Y152: 2 | Z152: 3 | AA152: 3 | AB152: 4 | AH152: 0 | AI152: 7 | AJ152: =_xlfn.IFS(AJ$1=M$2, M152, AJ$1=N$2, N152,AJ$1=O$2, O152,AJ$1=P$2, P152) -> 22
C153: University Wide | D153: La Jolla Campus | E153: Scripps Institution of Oceanography | F153: Scripps Institution of Oceanography | G153: Surface Lot | H153: P016 | I153: P016 | J153: Accessible | N153: 2 | O153: 2 | S153: 2 | T153: 1 | U153: 2 | V153: 2 | W153: 2 | X153: 2 | Y153: 2 | Z153: 2 | AA153: 2 | AB153: 2 | AH153: 1 | AI153: 2 | AJ153: =_xlfn.IFS(AJ$1=M$2, M153, AJ$1=N$2, N153,AJ$1=O$2, O153,AJ$1=P$2, P153) -> 2
C154: University Wide | D154: La Jolla Campus | E154: Scripps Institution of Oceanography | F154: Scripps Institution of Oceanography | G154: Surface Lot | H154: P016 | I154: P016 | J154: Motorcycle Section | N154: 1 | O154: 1 | S154: 1 | T154: 1 | U154: 1 | V154: 1 | W154: 1 | X154: 1 | Y154: 1 | Z154: 1 | AA154: 0 | AB154: 0 | AH154: 0 | AI154: 1 | AJ154: =_xlfn.IFS(AJ$1=M$2, M154, AJ$1=N$2, N154,AJ$1=O$2, O154,AJ$1=P$2, P154) -> 1
C155: University Wide | D155: La Jolla Campus | E155: West Campus | F155: North Campus | G155: Surface Lot | H155: P357 | I155: P357 | J155: B | N155: 119 | O155: 117 | S155: 20 | T155: 1 | U155: 2 | V155: 0 | W155: 1 | X155: 1 | Y155: 11 | Z155: 10 | AA155: 11 | AB155: 0 | AH155: 0 | AI155: 20 | AJ155: =_xlfn.IFS(AJ$1=M$2, M155, AJ$1=N$2, N155,AJ$1=O$2, O155,AJ$1=P$2, P155) -> 119
C156: University Wide | D156: La Jolla Campus | E156: West Campus | F156: North Campus | G156: Surface Lot | H156: P357 | I156: P357 | J156: Electric Vehicle | L156: 4-Hour | N156: 10 | O156: 10 | S156: 6 | T156: 2 | U156: 1 | V156: 0 | W156: 0 | X156: 0 | Y156: 1 | Z156: 1 | AA156: 3 | AB156: 2 | AH156: 0 | AI156: 6 | AJ156: =_xlfn.IFS(AJ$1=M$2, M156, AJ$1=N$2, N156,AJ$1=O$2, O156,AJ$1=P$2, P156) -> 10
C157: University Wide | D157: La Jolla Campus | E157: Scripps Institution of Oceanography | F157: Scripps Institution of Oceanography | G157: Surface Lot | H157: P017 | I157: P017 | J157: Accessible | N157: 9 | O157: 9 | S157: 8 | T157: 5 | U157: 7 | V157: 6 | W157: 0 | X157: 5 | Y157: 5 | Z157: 9 | AA157: 5 | AB157: 7 | AH157: 0 | AI157: 9 | AJ157: =_xlfn.IFS(AJ$1=M$2, M157, AJ$1=N$2, N157,AJ$1=O$2, O157,AJ$1=P$2, P157) -> 9
C158: University Wide | D158: La Jolla Campus | E158: West Campus | F158: North Campus | G158: Surface Lot | H158: P357 | I158: P357 | J158: Visitor | N158: 13 | O158: 13 | S158: 0 | T158: 6 | U158: 9 | V158: 1 | W158: 1 | X158: 0 | Y158: 5 | Z158: 6 | AA158: 0 | AB158: 0 | AH158: 0 | AI158: 9 | AJ158: =_xlfn.IFS(AJ$1=M$2, M158, AJ$1=N$2, N158,AJ$1=O$2, O158,AJ$1=P$2, P158) -> 13
C159: University Wide | D159: La Jolla Campus | E159: West Campus | F159: Revelle College | G159: Surface Lot | H159: P101 | I159: P101 | J159: Accessible | N159: 12 | O159: 12 | S159: 2 | T159: 0 | U159: 0 | V159: 0 | W159: 0 | X159: 0 | Y159: 1 | Z159: 0 | AA159: 6 | AB159: 7 | AH159: 0 | AI159: 7 | AJ159: =_xlfn.IFS(AJ$1=M$2, M159, AJ$1=N$2, N159,AJ$1=O$2, O159,AJ$1=P$2, P159) -> 12
C160: University Wide | D160: La Jolla Campus | E160: West Campus | F160: Revelle College | G160: Surface Lot | H160: P101 | I160: P101 | J160: Reserved | N160: 1 | O160: 1 | S160: 0 | T160: 0 | U160: 0 | V160: 0 | W160: 0 | X160: 0 | Y160: 0 | Z160: 0 | AA160: 0 | AB160: 0 | AH160: 0 | AI160: 0 | AJ160: =_xlfn.IFS(AJ$1=M$2, M160, AJ$1=N$2, N160,AJ$1=O$2, O160,AJ$1=P$2, P160) -> 1
C161: University Wide | D161: La Jolla Campus | E161: West Campus | F161: North Campus | G161: Surface Lot | H161: P359 | I161: P359 | J161: B | N161: 49 | O161: 49 | S161: 10 | T161: 12 | U161: 9 | V161: 5 | W161: 6 | X161: 8 | Y161: 12 | Z161: 10 | AA161: 7 | AB161: 5 | AH161: 5 | AI161: 12 | AJ161: =_xlfn.IFS(AJ$1=M$2, M161, AJ$1=N$2, N161,AJ$1=O$2, O161,AJ$1=P$2, P161) -> 49
C162: University Wide | D162: La Jolla Campus | E162: West Campus | F162: Revelle College | G162: Surface Lot | H162: P106 | I162: P106 | J162: Accessible | N162: 1 | O162: 1 | S162: 1 | T162: 0 | U162: 0 | V162: 1 | W162: 0 | X162: 0 | Y162: 0 | Z162: 0 | AA162: 0 | AB162: 0 | AH162: 0 | AI162: 1 | AJ162: =_xlfn.IFS(AJ$1=M$2, M162, AJ$1=N$2, N162,AJ$1=O$2, O162,AJ$1=P$2, P162) -> 1
C163: University Wide | D163: La Jolla Campus | E163: West Campus | F163: Revelle College | G163: Surface Lot | H163: P106 | I163: P106 | J163: Motorcycle Section | N163: 2 | O163: 2 | S163: 1 | T163: 1 | U163: 0 | V163: 1 | W163: 0 | X163: 1 | Y163: 1 | Z163: 1 | AA163: 1 | AB163: 1 | AH163: 0 | AI163: 1 | AJ163: =_xlfn.IFS(AJ$1=M$2, M163, AJ$1=N$2, N163,AJ$1=O$2, O163,AJ$1=P$2, P163) -> 2
C164: University Wide | D164: La Jolla Campus | E164: West Campus | F164: Revelle College | G164: Surface Lot | H164: P106 | I164: P106 | J164: Reserved | N164: 6 | O164: 5 | S164: 0 | T164: 0 | U164: 0 | V164: 0 | W164: 0 | X164: 0 | Y164: 0 | Z164: 0 | AA164: 0 | AB164: 0 | AH164: 0 | AI164: 0 | AJ164: =_xlfn.IFS(AJ$1=M$2, M164, AJ$1=N$2, N164,AJ$1=O$2, O164,AJ$1=P$2, P164) -> 6
C165: University Wide | D165: La Jolla Campus | E165: West Campus | F165: Revelle College | G165: Surface Lot | H165: P110 | I165: P110 | J165: Service Yard | N165: 5 | O165: 5 | S165: 3 | T165: 5 | U165: 5 | V165: 0 | W165: 5 | X165: 4 | Y165: 4 | Z165: 4 | AA165: 5 | AB165: 5 | AH165: 0 | AI165: 5 | AJ165: =_xlfn.IFS(AJ$1=M$2, M165, AJ$1=N$2, N165,AJ$1=O$2, O165,AJ$1=P$2, P165) -> 5
C166: University Wide | D166: La Jolla Campus | E166: West Campus | F166: Revelle College | G166: Surface Lot | H166: P112 | I166: P112 | J166: Service Yard | N166: 7 | O166: 6 | S166: 2 | T166: 2 | U166: 1 | V166: 0 | W166: 0 | X166: 1 | Y166: 3 | Z166: 3 | AA166: 2 | AB166: 2 | AH166: 0 | AI166: 3 | AJ166: =_xlfn.IFS(AJ$1=M$2, M166, AJ$1=N$2, N166,AJ$1=O$2, O166,AJ$1=P$2, P166) -> 7
C167: University Wide | D167: La Jolla Campus | E167: West Campus | F167: Roosevelt College | G167: Pangea | H167: P371 | I167: Pangea | J167: S | N167: 199 | O167: 199 | S167: 105 | T167: 63 | U167: 46 | V167: 34 | W167: 21 | X167: 26 | Y167: 29 | Z167: 33 | AA167: 67 | AB167: 83 | AH167: 21 | AI167: 105 | AJ167: =_xlfn.IFS(AJ$1=M$2, M167, AJ$1=N$2, N167,AJ$1=O$2, O167,AJ$1=P$2, P167) -> 199
C168: University Wide | D168: La Jolla Campus | E168: West Campus | F168: Muir College | G168: Surface Lot | H168: P113 | I168: P113 | J168: Accessible | N168: 2 | O168: 2 | S168: 0 | T168: 0 | U168: 0 | V168: 0 | W168: 1 | X168: 0 | Y168: 0 | Z168: 0 | AA168: 0 | AB168: 0 | AH168: 0 | AI168: 1 | AJ168: =_xlfn.IFS(AJ$1=M$2, M168, AJ$1=N$2, N168,AJ$1=O$2, O168,AJ$1=P$2, P168) -> 2
C169: University Wide | D169: La Jolla Campus | E169: West Campus | F169: Muir College | G169: Surface Lot | H169: P113 | I169: P113 | J169: Loading | N169: 1 | O169: 1 | S169: 1 | T169: 1 | U169: 1 | V169: 0 | W169: 0 | X169: 0 | Y169: 0 | Z169: 0 | AA169: 0 | AB169: 1 | AH169: 0 | AI169: 1 | AJ169: =_xlfn.IFS(AJ$1=M$2, M169, AJ$1=N$2, N169,AJ$1=O$2, O169,AJ$1=P$2, P169) -> 1
C170: University Wide | D170: La Jolla Campus | E170: West Campus | F170: Muir College | G170: Surface Lot | H170: P113 | I170: P113 | J170: Motorcycle Section | N170: 1 | O170: 1 | S170: 1 | T170: 1 | U170: 0 | V170: 0 | W170: 0 | X170: 0 | Y170: 0 | Z170: 0 | AA170: 1 | AB170: 1 | AH170: 0 | AI170: 1 | AJ170: =_xlfn.IFS(AJ$1=M$2, M170, AJ$1=N$2, N170,AJ$1=O$2, O170,AJ$1=P$2, P170) -> 1
C171: University Wide | D171: La Jolla Campus | E171: West Campus | F171: Muir College | G171: Surface Lot | H171: P113 | I171: P113 | J171: Reserved | K171: Food Pick-Up | L171: 15 min | N171: 3 | O171: 3 | S171: 0 | T171: 0 | U171: 0 | V171: 0 | W171: 0 | X171: 0 | Y171: 0 | Z171: 0 | AA171: 0 | AB171: 0 | AH171: 0 | AI171: 0 | AJ171: =_xlfn.IFS(AJ$1=M$2, M171, AJ$1=N$2, N171,AJ$1=O$2, O171,AJ$1=P$2, P171) -> 3
C172: University Wide | D172: La Jolla Campus | E172: West Campus | F172: Muir College | G172: Surface Lot | H172: P113 | I172: P113 | J172: Reserved | N172: 1 | O172: 1 | S172: 0 | T172: 0 | U172: 0 | V172: 0 | W172: 0 | X172: 0 | Y172: 0 | Z172: 0 | AA172: 0 | AB172: 0 | AH172: 0 | AI172: 0 | AJ172: =_xlfn.IFS(AJ$1=M$2, M172, AJ$1=N$2, N172,AJ$1=O$2, O172,AJ$1=P$2, P172) -> 1
C173: University Wide | D173: La Jolla Campus | E173: West Campus | F173: Revelle College | G173: Surface Lot | H173: P116 | I173: P116 | J173: Allocated | K173: Catering Vehicle | N173: 5 | O173: 5 | S173: 0 | T173: 0 | U173: 0 | V173: 0 | W173: 0 | X173: 0 | Y173: 0 | Z173: 0 | AA173: 1 | AB173: 0 | AH173: 0 | AI173: 1 | AJ173: =_xlfn.IFS(AJ$1=M$2, M173, AJ$1=N$2, N173,AJ$1=O$2, O173,AJ$1=P$2, P173) -> 5
C174: University Wide | D174: La Jolla Campus | E174: West Campus | F174: Revelle College | G174: Surface Lot | H174: P116 | I174: P116 | J174: Allocated | K174: Housing, Dining, and Hospitality Vehicle | N174: 5 | O174: 5 | S174: 0 | T174: 0 | U174: 0 | V174: 0 | W174: 0 | X174: 0 | Y174: 0 | Z174: 0 | AA174: 0 | AB174: 0 | AH174: 0 | AI174: 0 | AJ174: =_xlfn.IFS(AJ$1=M$2, M174, AJ$1=N$2, N174,AJ$1=O$2, O174,AJ$1=P$2, P174) -> 5
C175: University Wide | D175: La Jolla Campus | E175: West Campus | F175: Revelle College | G175: Surface Lot | H175: P116 | I175: P116 | J175: Allocated | K175: UC Vehicle #0796 | N175: 1 | O175: 1 | S175: 0 | T175: 0 | U175: 1 | V175: 0 | W175: 0 | X175: 1 | Y175: 0 | Z175: 0 | AA175: 0 | AB175: 1 | AH175: 0 | AI175: 1 | AJ175: =_xlfn.IFS(AJ$1=M$2, M175, AJ$1=N$2, N175,AJ$1=O$2, O175,AJ$1=P$2, P175) -> 1
C176: University Wide | D176: La Jolla Campus | E176: West Campus | F176: Revelle College | G176: Surface Lot | H176: P116 | I176: =IF(G176="Surface Lot", H176, G176) -> P116 | J176: UC Vehicle | K176: Electric Vehicle | L176: 4-Hour | N176: 2 | O176: 2 | S176: 0 | T176: 0 | U176: 1 | V176: 1 | W176: 0 | X176: 1 | Y176: 0 | Z176: 0 | AA176: 0 | AB176: 0 | AH176: 0 | AI176: 1 | AJ176: =_xlfn.IFS(AJ$1=M$2, M176, AJ$1=N$2, N176,AJ$1=O$2, O176,AJ$1=P$2, P176) -> 2
C177: University Wide | D177: La Jolla Campus | E177: West Campus | F177: Roosevelt College | G177: Pangea | H177: P371 | I177: Pangea | J177: SR | N177: 184 | O177: 184 | S177: 77 | T177: 84 | U177: 53 | V177: 57 | W177: 51 | X177: 58 | Y177: 48 | Z177: 51 | AA177: 62 | AB177: 55 | AH177: 48 | AI177: 84 | AJ177: =_xlfn.IFS(AJ$1=M$2, M177, AJ$1=N$2, N177,AJ$1=O$2, O177,AJ$1=P$2, P177) -> 184
C178: University Wide | D178: La Jolla Campus | E178: West Campus | F178: Muir College | G178: Surface Lot | H178: P201 | I178: P201 | J178: Accessible | N178: 3 | O178: 3 | S178: 2 | T178: 2 | U178: 0 | V178: 0 | W178: 0 | X178: 0 | Y178: 1 | Z178: 2 | AA178: 2 | AB178: 2 | AH178: 0 | AI178: 2 | AJ178: =_xlfn.IFS(AJ$1=M$2, M178, AJ$1=N$2, N178,AJ$1=O$2, O178,AJ$1=P$2, P178) -> 3
C179: University Wide | D179: La Jolla Campus | E179: West Campus | F179: Muir College | G179: Surface Lot | H179: P201 | I179: P201 | J179: Loading | K179: Space | L179: 15 | N179: 8 | O179: 8 | S179: 0 | T179: 3 | U179: 4 | V179: 2 | W179: 1 | X179: 1 | Y179: 0 | Z179: 0 | AA179: 1 | AB179: 1 | AH179: 0 | AI179: 4 | AJ179: =_xlfn.IFS(AJ$1=M$2, M179, AJ$1=N$2, N179,AJ$1=O$2, O179,AJ$1=P$2, P179) -> 8
C180: University Wide | D180: La Jolla Campus | E180: West Campus | F180: Muir College | G180: Surface Lot | H180: P201 | I180: P201 | J180: Motorcycle Section | N180: 3 | O180: 3 | S180: 1 | T180: 2 | U180: 2 | V180: 0 | W180: 0 | X180: 0 | Y180: 1 | Z180: 2 | AA180: 2 | AB180: 2 | AH180: 0 | AI180: 2 | AJ180: =_xlfn.IFS(AJ$1=M$2, M180, AJ$1=N$2, N180,AJ$1=O$2, O180,AJ$1=P$2, P180) -> 3
C181: University Wide | D181: La Jolla Campus | E181: West Campus | F181: Muir College | G181: Surface Lot | H181: P202 | I181: P202 | J181: Accessible | N181: 3 | O181: 2 | S181: 0 | T181: 0 | U181: 0 | V181: 0 | W181: 0 | X181: 0 | Y181: 1 | Z181: 1 | AA181: 1 | AB181: 0 | AH181: 0 | AI181: 1 | AJ181: =_xlfn.IFS(AJ$1=M$2, M181, AJ$1=N$2, N181,AJ$1=O$2, O181,AJ$1=P$2, P181) -> 3
C182: University Wide | D182: La Jolla Campus | E182: West Campus | F182: Muir College | G182: Surface Lot | H182: P202 | I182: P202 | J182: Loading | K182: Space | L182: 20 | N182: 4 | O182: 4 | S182: 3 | T182: 2 | U182: 0 | V182: 4 | W182: 3 | X182: 0 | Y182: 2 | Z182: 1 | AA182: 1 | AB182: 1 | AH182: 0 | AI182: 4 | AJ182: =_xlfn.IFS(AJ$1=M$2, M182, AJ$1=N$2, N182,AJ$1=O$2, O182,AJ$1=P$2, P182) -> 4
C183: University Wide | D183: La Jolla Campus | E183: West Campus | F183: Muir College | G183: Surface Lot | H183: P202 | I183: P202 | J183: Reserved | N183: 1 | O183: 1 | S183: 0 | T183: 0 | U183: 0 | V183: 0 | W183: 0 | X183: 0 | Y183: 0 | Z183: 0 | AA183: 0 | AB183: 0 | AH183: 0 | AI183: 0 | AJ183: =_xlfn.IFS(AJ$1=M$2, M183, AJ$1=N$2, N183,AJ$1=O$2, O183,AJ$1=P$2, P183) -> 1
C184: University Wide | D184: La Jolla Campus | E184: West Campus | F184: Muir College | G184: Surface Lot | H184: P202 | I184: P202 | J184: Service Yard | N184: 2 | O184: 2 | S184: 2 | T184: 2 | U184: 2 | V184: 2 | W184: 2 | X184: 0 | Y184: 2 | Z184: 2 | AA184: 2 | AB184: 2 | AH184: 0 | AI184: 2 | AJ184: =_xlfn.IFS(AJ$1=M$2, M184, AJ$1=N$2, N184,AJ$1=O$2, O184,AJ$1=P$2, P184) -> 2
C185: University Wide | D185: La Jolla Campus | E185: West Campus | F185: Muir College | G185: Surface Lot | H185: P203 | I185: P203 | J185: Reserved | N185: 5 | O185: 6 | S185: 0 | T185: 0 | U185: 0 | V185: 0 | W185: 0 | X185: 0 | Y185: 0 | Z185: 0 | AA185: 0 | AB185: 0 | AH185: 0 | AI185: 0 | AJ185: =_xlfn.IFS(AJ$1=M$2, M185, AJ$1=N$2, N185,AJ$1=O$2, O185,AJ$1=P$2, P185) -> 5
C186: University Wide | D186: La Jolla Campus | E186: West Campus | F186: Muir College | G186: Surface Lot | H186: P204 | I186: P204 | J186: Allocated | K186: Housing/Dining Maintenance Vehicle | N186: 2 | O186: 2 | S186: 0 | T186: 1 | U186: 1 | V186: 0 | W186: 0 | X186: 1 | Y186: 1 | Z186: 0 | AA186: 2 | AB186: 2 | AH186: 0 | AI186: 2 | AJ186: =_xlfn.IFS(AJ$1=M$2, M186, AJ$1=N$2, N186,AJ$1=O$2, O186,AJ$1=P$2, P186) -> 2
C187: University Wide | D187: La Jolla Campus | E187: West Campus | F187: Muir College | G187: Surface Lot | H187: P205 | I187: P205 | J187: Service Yard | N187: 4 | O187: 4 | S187: 0 | T187: 0 | U187: 2 | V187: 2 | W187: 2 | X187: 0 | Y187: 2 | Z187: 2 | AA187: 2 | AB187: 2 | AH187: 0 | AI187: 2 | AJ187: =_xlfn.IFS(AJ$1=M$2, M187, AJ$1=N$2, N187,AJ$1=O$2, O187,AJ$1=P$2, P187) -> 4
C188: University Wide | D188: La Jolla Campus | E188: West Campus | F188: Roosevelt College | G188: Pangea | H188: P373 | I188: Pangea | J188: B | N188: 387 | O188: 387 | S188: 235 | T188: 154 | U188: 92 | V188: 117 | W188: 89 | X188: 81 | Y188: 73 | Z188: 91 | AA188: 107 | AB188: 147 | AH188: 73 | AI188: 235 | AJ188: =_xlfn.IFS(AJ$1=M$2, M188, AJ$1=N$2, N188,AJ$1=O$2, O188,AJ$1=P$2, P188) -> 387
C189: University Wide | D189: La Jolla Campus | E189: West Campus | F189: Roosevelt College | G189: Pangea | H189: P375 | I189: Pangea | J189: A | N189: 142 | O189: 142 | S189: 94 | T189: 89 | U189: 86 | V189: 65 | W189: 82 | X189: 73 | Y189: 51 | Z189: 87 | AA189: 84 | AB189: 91 | AH189: 51 | AI189: 94 | AJ189: =_xlfn.IFS(AJ$1=M$2, M189, AJ$1=N$2, N189,AJ$1=O$2, O189,AJ$1=P$2, P189) -> 142
C190: University Wide | D190: La Jolla Campus | E190: West Campus | F190: Roosevelt College | G190: Pangea | H190: P375 | I190: Pangea | J190: Electric Vehicle | N190: 4 | O190: 4 | S190: 2 | T190: 3 | U190: 3 | V190: 1 | W190: 2 | X190: 1 | Y190: 2 | Z190: 2 | AA190: 3 | AB190: 3 | AH190: 1 | AI190: 3 | AJ190: =_xlfn.IFS(AJ$1=M$2, M190, AJ$1=N$2, N190,AJ$1=O$2, O190,AJ$1=P$2, P190) -> 4
C191: University Wide | D191: La Jolla Campus | E191: West Campus | F191: Roosevelt College | G191: Pangea | H191: P376 | I191: Pangea | J191: Visitor | N191: 76 | O191: 76 | S191: 36 | T191: 37 | U191: 29 | V191: 47 | W191: 58 | X191: 55 | Y191: 53 | Z191: 59 | AA191: 56 | AB191: 61 | AH191: 29 | AI191: 61 | AJ191: =_xlfn.IFS(AJ$1=M$2, M191, AJ$1=N$2, N191,AJ$1=O$2, O191,AJ$1=P$2, P191) -> 76
C192: University Wide | D192: La Jolla Campus | E192: West Campus | F192: Muir College | G192: Surface Lot | H192: P206 | I192: P206 | J192: Accessible | M192: 6 | N192: 6 | O192: 6 | S192: 3 | T192: 3 | U192: 2 | V192: 0 | W192: 0 | X192: 2 | Y192: 2 | Z192: 2 | AA192: 3 | AB192: 3 | AH192: 0 | AI192: 3 | AJ192: =_xlfn.IFS(AJ$1=M$2, M192, AJ$1=N$2, N192,AJ$1=O$2, O192,AJ$1=P$2, P192) -> 6
C193: University Wide | D193: La Jolla Campus | E193: West Campus | F193: Muir College | G193: Surface Lot | H193: P206 | I193: P206 | J193: Commercial Loading | M193: 0 | N193: 4 | O193: 4 | S193: 3 | T193: 3 | U193: 3 | V193: 4 | W193: 4 | X193: 4 | Y193: 3 | Z193: 3 | AA193: 3 | AB193: 3 | AH193: 3 | AI193: 4 | AJ193: =_xlfn.IFS(AJ$1=M$2, M193, AJ$1=N$2, N193,AJ$1=O$2, O193,AJ$1=P$2, P193) -> 4
C194: University Wide | D194: La Jolla Campus | E194: West Campus | F194: Muir College | G194: Surface Lot | H194: P206 | I194: P206 | J194: Loading Zone | L194: 5 Min | M194: 1 | N194: 1 | O194: 1 | S194: 1 | T194: 1 | U194: 1 | V194: 1 | W194: 1 | X194: 1 | Y194: 1 | Z194: 1 | AA194: 1 | AB194: 1 | AH194: 1 | AI194: 1 | AJ194: =_xlfn.IFS(AJ$1=M$2, M194, AJ$1=N$2, N194,AJ$1=O$2, O194,AJ$1=P$2, P194) -> 1
C195: University Wide | D195: La Jolla Campus | E195: West Campus | F195: Muir College | G195: Surface Lot | H195: P206 | I195: P206 | J195: UC Vehicle | M195: 0 | N195: 4 | O195: 4 | S195: 2 | T195: 2 | U195: 2 | V195: 2 | W195: 1 | X195: 1 | Y195: 1 | Z195: 1 | AA195: 2 | AB195: 1 | AH195: 1 | AI195: 2 | AJ195: =_xlfn.IFS(AJ$1=M$2, M195, AJ$1=N$2, N195,AJ$1=O$2, O195,AJ$1=P$2, P195) -> 4
C196: University Wide | D196: La Jolla Campus | E196: West Campus | F196: Torrey Pines Center | G196: Torrey Pines Center South | H196: P381 | I196: =IF(G196="Surface Lot", H196, G196) -> Torrey Pines Center South | J196: B | N196: 373 | O196: 373 | S196: 112 | T196: 129 | U196: 232 | V196: 211 | W196: 208 | X196: 192 | Y196: 206 | Z196: 226 | AA196: 260 | AB196: 290 | AH196: =MIN($Q196:$AG196) -> 112 | AI196: =MAX($Q196:$AG196) -> 290 | AJ196: =_xlfn.IFS(AJ$1=M$2, M196, AJ$1=N$2, N196,AJ$1=O$2, O196,AJ$1=P$2, P196) -> 373
C197: University Wide | D197: La Jolla Campus | E197: West Campus | F197: Torrey Pines Center | G197: Torrey Pines Center South | H197: P381 | I197: Torrey Pines Center South | J197: Carpool | K197: B 3-Person | N197: 10 | O197: 10 | S197: 7 | T197: 8 | U197: 8 | V197: 7 | W197: 9 | X197: 7 | Y197: 7 | Z197: 6 | AA197: 6 | AB197: 6 | AH197: 6 | AI197: 9 | AJ197: =_xlfn.IFS(AJ$1=M$2, M197, AJ$1=N$2, N197,AJ$1=O$2, O197,AJ$1=P$2, P197) -> 10
C198: University Wide | D198: La Jolla Campus | E198: West Campus | F198: Torrey Pines Center | G198: Torrey Pines Center South | H198: P382 | I198: Torrey Pines Center South | J198: Electric Vehicle | N198: 10 | O198: 10 | S198: 9 | T198: 8 | U198: 7 | V198: 7 | W198: 6 | X198: 6 | Y198: 5 | Z198: 4 | AA198: 6 | AB198: 10 | AH198: 4 | AI198: 10 | AJ198: =_xlfn.IFS(AJ$1=M$2, M198, AJ$1=N$2, N198,AJ$1=O$2, O198,AJ$1=P$2, P198) -> 10
C199: University Wide | D199: La Jolla Campus | E199: West Campus | F199: Marshall College | G199: Surface Lot | H199: P303 | I199: P303 | J199: Accessible | N199: 6 | O199: 6 | S199: 6 | T199: 4 | U199: 3 | V199: 2 | W199: 4 | X199: 4 | Y199: 4 | Z199: 4 | AA199: 5 | AB199: 6 | AH199: 2 | AI199: 6 | AJ199: =_xlfn.IFS(AJ$1=M$2, M199, AJ$1=N$2, N199,AJ$1=O$2, O199,AJ$1=P$2, P199) -> 6
C200: University Wide | D200: La Jolla Campus | E200: West Campus | F200: Marshall College | G200: Surface Lot | H200: P303 | I200: P303 | J200: Loading | L200: 20 minutes | N200: 2 | O200: 2 | S200: 2 | T200: 2 | U200: 2 | V200: 1 | W200: 1 | X200: 2 | Y200: 1 | Z200: 2 | AA200: 2 | AB200: 2 | AH200: 1 | AI200: 2 | AJ200: =_xlfn.IFS(AJ$1=M$2, M200, AJ$1=N$2, N200,AJ$1=O$2, O200,AJ$1=P$2, P200) -> 2
... 500 more rows

Sheet By Area
A1: Area | B1: Space Type | C1: Stall Inventory | D1: Min # of Open Stalls | E1: Min % of Open Stalls | F1: Max # of Open Stalls | G1: Max % of Open Stalls | H1: Open Stalls @ 8am | I1: Open Stalls @ 9am | J1: Open Stalls @ 10am | K1: Open Stalls @ 11am | L1: Open Stalls @ 12pm | M1: Open Stalls @ 1pm | N1: Open Stalls @ 2pm | O1: Open Stalls @ 3pm | P1: Open Stalls @ 4pm | Q1: Open Stalls @ 5pm
A2: % Open Stalls | D2: (Min and Max values from varying hours) | H2: =H3/$C3 -> 0.3321762607 | I2: =I3/$C3 -> 0.2606306046 | J2: 0.2301128146 | K2: 0.1878796644 | L2: 0.1844084466 | M2: 0.200462829 | N2: 0.2236042812 | O2: 0.2798669367 | P2: 0.3391186964 | Q2: 0.335309999
A3: # Open Stalls | C3: =SUBTOTAL(9, C5:C9999) -> 20742 | H3: =SUBTOTAL(9, H5:H9999) -> 6890 | I3: =SUBTOTAL(9, I5:I9999) -> 5406 | J3: 4773 | K3: 3897 | L3: 3825 | M3: 4158 | N3: 4638 | O3: 5805 | P3: 7034 | Q3: 6955
A4: Area | B4: Space Type | C4: Sum of Inventory | D4: Sum of Min # | E4: Sum of Min % | F4: Sum of Max # | G4: Sum of Max % | H4: Sum of 8am | I4: Sum of 9am | J4: Sum of 10am | K4: Sum of 11am | L4: Sum of 12pm | M4: Sum of 1pm | N4: Sum of 2pm | O4: Sum of 3pm | P4: Sum of 4pm | Q4: Sum of 5pm
A5: East Campus | C5: 6462 | D5: 609 | E5: 0.09424326834 | F5: 1906 | G5: 0.2949551223 | H5: 1084 | I5: 1168 | J5: 876 | K5: 609 | L5: 685 | M5: 863 | N5: 1010 | O5: 1513 | P5: 1906 | Q5: 1246
A6: Medical Center Hillcrest | C6: 2706 | D6: 241 | E6: 0.08906134516 | F6: 1030 | G6: 0.3806356245 | H6: 608 | I6: 463 | J6: 349 | K6: 241 | L6: 430 | M6: 442 | N6: 619 | O6: 722 | P6: 945 | Q6: 1030
A7: Scripps Institution of Oceanography | C7: 810 | D7: 312 | E7: 0.3851851852 | F7: 562 | G7: 0.6938271605 | H7: 562 | I7: 312 | J7: 369 | K7: 340 | L7: 342 | M7: 382 | N7: 401 | O7: 447 | P7: 405 | Q7: 463
A8: West Campus | C8: 10764 | D8: 2368 | E8: 0.2199925678 | F8: 4636 | G8: 0.430694909 | H8: 4636 | I8: 3463 | J8: 3179 | K8: 2707 | L8: 2368 | M8: 2471 | N8: 2608 | O8: 3123 | P8: 3778 | Q8: 4216

Sheet By Neighborhood
A1: Location | B1: Space Type | C1: Stall Inventory | D1: Min # of Open Stalls | E1: Min % of Open Stalls | F1: Max # of Open Stalls | G1: Max % of Open Stalls | H1: Open Stalls @ 8am | I1: Open Stalls @ 9am | J1: Open Stalls @ 10am | K1: Open Stalls @ 11am | L1: Open Stalls @ 12pm | M1: Open Stalls @ 1pm | N1: Open Stalls @ 2pm | O1: Open Stalls @ 3pm | P1: Open Stalls @ 4pm | Q1: Open Stalls @ 5pm
A2: % Open Stalls | D2: (Min and Max values from varying hours) | H2: =H3/$C3 -> 0.3321762607 | I2: =I3/$C3 -> 0.2606306046 | J2: 0.2301128146 | K2: 0.1878796644 | L2: 0.1844084466 | M2: 0.200462829 | N2: 0.2236042812 | O2: 0.2798669367 | P2: 0.3391186964 | Q2: 0.335309999
A3: # Open Stalls | C3: =SUBTOTAL(9, C5:C9999) -> 20742 | H3: =SUBTOTAL(9, H5:H9999) -> 6890 | I3: =SUBTOTAL(9, I5:I9999) -> 5406 | J3: 4773 | K3: 3897 | L3: 3825 | M3: 4158 | N3: 4638 | O3: 5805 | P3: 7034 | Q3: 6955
A4: Neighborhood | B4: Space Type | C4: Sum of Inventory | D4: Sum of Min # | E4: Sum of Min % | F4: Sum of Max # | G4: Sum of Max % | H4: Sum of 8am | I4: Sum of 9am | J4: Sum of 10am | K4: Sum of 11am | L4: Sum of 12pm | M4: Sum of 1pm | N4: Sum of 2pm | O4: Sum of 3pm | P4: Sum of 4pm | Q4: Sum of 5pm
A5: Campus Services | C5: 449 | D5: 16 | E5: 0.03563474388 | F5: 169 | G5: 0.3763919822 | H5: 35 | I5: 19 | J5: 16 | K5: 18 | L5: 37 | M5: 40 | N5: 63 | O5: 101 | P5: 142 | Q5: 169
A6: East Recreation | C6: 378 | D6: 0 | E6: 0 | F6: 270 | G6: 0.7142857143 | H6: 0 | I6: 270 | J6: 0 | K6: 0 | L6: 0 | M6: 200 | N6: 214 | O6: 237 | P6: 253 | Q6: 0
A7: Health Sciences East | C7: 5263 | D7: 492 | E7: 0.09348280448 | F7: 1466 | G7: 0.2785483565 | H7: 779 | I7: 648 | J7: 721 | K7: 492 | L7: 582 | M7: 567 | N7: 701 | O7: 1123 | P7: 1466 | Q7: 1054
A8: Health Sciences West | C8: 1919 | D8: 32 | E8: 0.01667535175 | F8: 442 | G8: 0.230328296 | H8: 442 | I8: 155 | J8: 90 | K8: 32 | L8: 47 | M8: 55 | N8: 75 | O8: 237 | P8: 393 | Q8: 310
A9: Marshall College | C9: 214 | D9: 39 | E9: 0.1822429907 | F9: 115 | G9: 0.5373831776 | H9: 115 | I9: 66 | J9: 52 | K9: 48 | L9: 44 | M9: 39 | N9: 50 | O9: 62 | P9: 73 | Q9: 98
A10: Medical Center Hillcrest | C10: 2706 | D10: 241 | E10: 0.08906134516 | F10: 1030 | G10: 0.3806356245 | H10: 608 | I10: 463 | J10: 349 | K10: 241 | L10: 430 | M10: 442 | N10: 619 | O10: 722 | P10: 945 | Q10: 1030
A11: Muir College | C11: 223 | D11: 19 | E11: 0.08520179372 | F11: 57 | G11: 0.2556053812 | H11: 41 | I11: 53 | J11: 38 | K11: 28 | L11: 28 | M11: 19 | N11: 34 | O11: 32 | P11: 53 | Q11: 57
A12: North Campus | C12: 279 | D12: 21 | E12: 0.0752688172 | F12: 63 | G12: 0.2258064516 | H12: 63 | I12: 45 | J12: 39 | K12: 25 | L12: 21 | M12: 22 | N12: 45 | O12: 44 | P12: 42 | Q12: 28
A13: North Torrey Pines Living and Learning | C13: 1182 | D13: 48 | E13: 0.04060913706 | F13: 298 | G13: 0.2521150592 | H13: 246 | I13: 298 | J13: 228 | K13: 167 | L13: 79 | M13: 48 | N13: 62 | O13: 120 | P13: 213 | Q13: 225
A14: Pepper Canyon | C14: 173 | D14: 28 | E14: 0.161849711 | F14: 43 | G14: 0.2485549133 | H14: 28 | I14: 37 | J14: 30 | K14: 28 | L14: 30 | M14: 31 | N14: 28 | O14: 36 | P14: 35 | Q14: 43
A15: Preuss School | C15: 70 | D15: 0 | E15: 0 | F15: 5 | G15: 0.07142857143 | H15: 0 | I15: 3 | J15: 0 | K15: 0 | L15: 1 | M15: 3 | N15: 2 | O15: 4 | P15: 5 | Q15: 0
A16: Revelle College | C16: 58 | D16: 4 | E16: 0.06896551724 | F16: 16 | G16: 0.275862069 | H16: 10 | I16: 9 | J16: 9 | K16: 4 | L16: 5 | M16: 8 | N16: 9 | O16: 8 | P16: 15 | Q16: 16
A17: Roosevelt College | C17: 2505 | D17: 726 | E17: 0.2898203593 | F17: 1677 | G17: 0.6694610778 | H17: 1677 | I17: 1197 | J17: 967 | K17: 863 | L17: 751 | M17: 764 | N17: 726 | O17: 826 | P17: 924 | Q17: 1184
A18: Science Research Park | C18: 751 | D18: 93 | E18: 0.1238348868 | F18: 305 | G18: 0.4061251664 | H18: 305 | I18: 247 | J18: 155 | K18: 117 | L18: 102 | M18: 93 | N18: 93 | O18: 149 | P18: 182 | Q18: 192
A19: Scripps Institution of Oceanography | C19: 810 | D19: 312 | E19: 0.3851851852 | F19: 562 | G19: 0.6938271605 | H19: 562 | I19: 312 | J19: 369 | K19: 340 | L19: 342 | M19: 382 | N19: 401 | O19: 447 | P19: 405 | Q19: 463
A20: Torrey Pines Center | C20: 1444 | D20: 622 | E20: 0.4307479224 | F20: 1024 | G20: 0.7091412742 | H20: 760 | I20: 683 | J20: 692 | K20: 629 | L20: 647 | M20: 622 | N20: 665 | O20: 777 | P20: 887 | Q20: 1024
A21: University Center | C21: 886 | D21: 121 | E21: 0.1365688488 | F21: 311 | G21: 0.3510158014 | H21: 311 | I21: 201 | J21: 188 | K21: 148 | L21: 149 | M21: 121 | N21: 137 | O21: 155 | P21: 236 | Q21: 298
A22: Warren College | C22: 177 | D22: 15 | E22: 0.08474576271 | F22: 27 | G22: 0.1525423729 | H22: 25 | I22: 27 | J22: 20 | K22: 21 | L22: 15 | M22: 20 | N22: 21 | O22: 15 | P22: 20 | Q22: 23
A23: TDLLN | C23: 1049 | D23: 402 | E23: 0.3832221163 | F23: 753 | G23: 0.7178265014 | H23: 753 | I23: 555 | J23: 686 | K23: 578 | L23: 402 | M23: 570 | N23: 563 | O23: 575 | P23: 588 | Q23: 579
A24: 8980 | C24: 206 | D24: 112 | E24: 0.5436893204 | F24: 162 | G24: 0.786407767 | H24: 130 | I24: 118 | J24: 124 | K24: 118 | L24: 113 | M24: 112 | N24: 130 | O24: 135 | P24: 157 | Q24: 162

Sheet By Structure
A1: Location | B1: Space Type | C1: Stall Inventory | D1: Min # of Open Stalls | E1: Min % of Open Stalls | F1: Max # of Open Stalls | G1: Max % of Open Stalls | H1: Open Stalls @ 8am | I1: Open Stalls @ 9am | J1: Open Stalls @ 10am | K1: Open Stalls @ 11am | L1: Open Stalls @ 12pm | M1: Open Stalls @ 1pm | N1: Open Stalls @ 2pm | O1: Open Stalls @ 3pm | P1: Open Stalls @ 4pm | Q1: Open Stalls @ 5pm
A2: % Open Stalls | D2: (Min and Max values from varying hours) | H2: =H3/$C3 -> 0.3650829058 | I2: =I3/$C3 -> 0.2728083872 | J2: 0.2412818797 | K2: 0.2003122909 | L2: 0.1864822663 | M2: 0.189902595 | N2: 0.2133987657 | O2: 0.2677522492 | P2: 0.3282771953 | Q2: 0.3610677374
A3: # Open Stalls | C3: =SUBTOTAL(9, C5:C9999) -> 13449 | H3: =SUBTOTAL(9, H5:H9999) -> 4910 | I3: 3669 | J3: 3245 | K3: 2694 | L3: 2508 | M3: 2554 | N3: 2870 | O3: 3601 | P3: 4415 | Q3: 4856
A4: Structure | B4: Space Type | C4: Sum of Inventory | D4: Sum of Min # | E4: Sum of Min % | F4: Sum of Max # | G4: Sum of Max % | H4: Sum of 8am | I4: Sum of 9am | J4: Sum of 10am | K4: Sum of 11am | L4: Sum of 12pm | M4: Sum of 1pm | N4: Sum of 2pm | O4: Sum of 3pm | P4: Sum of 4pm | Q4: Sum of 5pm
A5: 8980 | C5: 206 | D5: 112 | E5: 0.5436893204 | F5: 162 | G5: 0.786407767 | H5: 130 | I5: 118 | J5: 124 | K5: 118 | L5: 113 | M5: 112 | N5: 130 | O5: 135 | P5: 157 | Q5: 162
A6: Arbor | C6: 552 | D6: 112 | E6: 0.2028985507 | F6: 294 | G6: 0.5326086957 | H6: 277 | I6: 167 | J6: 166 | K6: 112 | L6: 160 | M6: 167 | N6: 180 | O6: 206 | P6: 243 | Q6: 294
A7: Athena | C7: 1489 | D7: 269 | E7: 0.1806581598 | F7: 421 | G7: 0.282740094 | H7: 421 | I7: 312 | J7: 288 | K7: 274 | L7: 305 | M7: 269 | N7: 324 | O7: 364 | P7: 380 | Q7: 349
A8: Campus Point East | C8: 699 | D8: 7 | E8: 0.01001430615 | F8: 163 | G8: 0.2331902718 | H8: 92 | I8: 79 | J8: 64 | K8: 60 | L8: 50 | M8: 7 | N8: 43 | O8: 88 | P8: 156 | Q8: 163
A9: Campus Point West | C9: 765 | D9: 2 | E9: 0.002614379085 | F9: 291 | G9: 0.3803921569 | H9: 117 | I9: 110 | J9: 10 | K9: 2 | L9: 6 | M9: 5 | N9: 9 | O9: 213 | P9: 269 | Q9: 291
A10: First Ave | C10: 1852 | D10: 103 | E10: 0.05561555076 | F10: 673 | G10: 0.3633909287 | H10: 281 | I10: 254 | J10: 157 | K10: 103 | L10: 230 | M10: 246 | N10: 408 | O10: 484 | P10: 647 | Q10: 673
A11: Gilman | C11: 847 | D11: 98 | E11: 0.1157024793 | F11: 292 | G11: 0.3447461629 | H11: 292 | I11: 181 | J11: 171 | K11: 131 | L11: 131 | M11: 98 | N11: 114 | O11: 135 | P11: 212 | Q11: 271
A12: Hopkins | C12: 1427 | D12: 435 | E12: 0.3048353189 | F12: 1108 | G12: 0.7764540995 | H12: 1108 | I12: 746 | J12: 642 | K12: 522 | L12: 435 | M12: 456 | N12: 455 | O12: 486 | P12: 528 | Q12: 726
A13: Nuevo West/Vela | C13: 535 | D13: 19 | E13: 0.03551401869 | F13: 149 | G13: 0.2785046729 | H13: 149 | I13: 106 | J13: 45 | K13: 32 | L13: 23 | M13: 19 | N13: 24 | O13: 27 | P13: 27 | Q13: 26
A14: Pangea | C14: 1049 | D14: 264 | E14: 0.2516682555 | F14: 559 | G14: 0.5328884652 | H14: 559 | I14: 442 | J14: 320 | K14: 334 | L14: 311 | M14: 303 | N14: 264 | O14: 335 | P14: 391 | Q14: 452
A15: Scholars | C15: 1182 | D15: 48 | E15: 0.04060913706 | F15: 298 | G15: 0.2521150592 | H15: 246 | I15: 298 | J15: 228 | K15: 167 | L15: 79 | M15: 48 | N15: 62 | O15: 120 | P15: 213 | Q15: 225
A16: South | C16: 1319 | D16: 13 | E16: 0.009855951478 | F16: 333 | G16: 0.2524639879 | H16: 333 | I16: 139 | J16: 72 | K16: 13 | L16: 18 | M16: 28 | N16: 52 | O16: 172 | P16: 303 | Q16: 310
A17: TDLLN | C17: 1049 | D17: 402 | E17: 0.3832221163 | F17: 753 | G17: 0.7178265014 | H17: 753 | I17: 555 | J17: 686 | K17: 578 | L17: 402 | M17: 570 | N17: 563 | O17: 575 | P17: 588 | Q17: 579
A18: Torrey Pines Center South | C18: 478 | D18: 152 | E18: 0.3179916318 | F18: 335 | G18: 0.7008368201 | H18: 152 | I18: 162 | J18: 272 | K18: 248 | L18: 245 | M18: 226 | N18: 242 | O18: 261 | P18: 301 | Q18: 335

Sheet By Surface Lot
A1: Location | B1: Space Type | C1: Stall Inventory | D1: Min # of Open Stalls | E1: Min % of Open Stalls | F1: Max # of Open Stalls | G1: Max % of Open Stalls | H1: Open Stalls @ 8am | I1: Open Stalls @ 9am | J1: Open Stalls @ 10am | K1: Open Stalls @ 11am | L1: Open Stalls @ 12pm | M1: Open Stalls @ 1pm | N1: Open Stalls @ 2pm | O1: Open Stalls @ 3pm | P1: Open Stalls @ 4pm | Q1: Open Stalls @ 5pm
A2: % Open Stalls | D2: (Min and Max values from varying hours) | H2: =H3/$C3 -> 0.2721649485 | I2: =I3/$C3 -> 0.2387628866 | J2: 0.2100343643 | K2: 0.1653608247 | L2: 0.1810309278 | M2: 0.2204810997 | N2: 0.243024055 | O2: 0.3029553265 | P2: 0.36 | Q2: 0.2885223368
A3: # Open Stalls | C3: =SUBTOTAL(9, C5:C9999) -> 7275 | H3: =SUBTOTAL(9, H5:H9999) -> 1980 | I3: =SUBTOTAL(9, I5:I9999) -> 1737 | J3: =SUBTOTAL(9, J5:J9999) -> 1528 | K3: =SUBTOTAL(9, K5:K9999) -> 1203 | L3: =SUBTOTAL(9, L5:L9999) -> 1317 | M3: =SUBTOTAL(9, M5:M9999) -> 1604 | N3: 1768 | O3: 2204 | P3: 2619 | Q3: =SUBTOTAL(9, Q5:Q9999) -> 2099
A4: Lot / Garage | B4: Space Type | C4: Sum of Inventory | D4: Sum of Min # | E4: Sum of Min % | F4: Sum of Max # | G4: Sum of Max % | H4: Sum of 8am | I4: Sum of 9am | J4: Sum of 10am | K4: Sum of 11am | L4: Sum of 12pm | M4: Sum of 1pm | N4: Sum of 2pm | O4: Sum of 3pm | P4: Sum of 4pm | Q4: Sum of 5pm
A5: P001 | C5: 18 | D5: 6 | E5: 0.3333333333 | F5: 12 | G5: 0.6666666667 | H5: 10 | I5: 10 | J5: 6 | K5: 8 | L5: 8 | M5: 6 | N5: 7 | O5: 9 | P5: 11 | Q5: 12
A6: P002 | C6: 33 | D6: 1 | E6: 0.0303030303 | F6: 26 | G6: 0.7878787879 | H6: 26 | I6: 21 | J6: 23 | K6: 10 | L6: 1 | M6: 19 | N6: 17 | O6: 11 | P6: 24 | Q6: 19
A7: P003 | C7: 72 | D7: 7 | E7: 0.09722222222 | F7: 53 | G7: 0.7361111111 | H7: 53 | I7: 40 | J7: 13 | K7: 7 | L7: 8 | M7: 21 | N7: 22 | O7: 24 | P7: 34 | Q7: 40
A8: P004 | C8: 15 | D8: 0 | E8: 0 | F8: 3 | G8: 0.2 | H8: 1 | I8: 2 | J8: 0 | K8: 0 | L8: 0 | M8: 0 | N8: 0 | O8: 2 | P8: 3 | Q8: 3
A9: P005 | C9: 5 | D9: 1 | E9: 0.2 | F9: 4 | G9: 0.8 | H9: 3 | I9: 2 | J9: 1 | K9: 2 | L9: 3 | M9: 1 | N9: 1 | O9: 3 | P9: 4 | Q9: 4
A10: P006 | C10: 7 | D10: 1 | E10: 0.1428571429 | F10: 5 | G10: 0.7142857143 | H10: 5 | I10: 2 | J10: 1 | K10: 1 | L10: 3 | M10: 1 | N10: 3 | O10: 3 | P10: 1 | Q10: 3
A11: P007 | C11: 40 | D11: 2 | E11: 0.05 | F11: 25 | G11: 0.625 | H11: 17 | I11: 13 | J11: 2 | K11: 4 | L11: 25 | M11: 5 | N11: 4 | O11: 13 | P11: 19 | Q11: 16
A12: P008 | C12: 30 | D12: 0 | E12: 0 | F12: 5 | G12: 0.1666666667 | H12: 5 | I12: 0 | J12: 0 | K12: 1 | L12: 2 | M12: 2 | N12: 5 | O12: 3 | P12: 2 | Q12: 5
A13: P009 | C13: 2 | D13: 0 | E13: 0 | F13: 1 | G13: 0.5 | H13: 1 | I13: 0 | J13: 0 | K13: 1 | L13: 1 | M13: 0 | N13: 0 | O13: 0 | P13: 0 | Q13: 0
A14: P010 | C14: 21 | D14: 1 | E14: 0.04761904762 | F14: 18 | G14: 0.8571428571 | H14: 18 | I14: 11 | J14: 7 | K14: 1 | L14: 1 | M14: 7 | N14: 12 | O14: 15 | P14: 15 | Q14: 17
A15: P011 | C15: 24 | D15: 7 | E15: 0.2916666667 | F15: 19 | G15: 0.7916666667 | H15: 19 | I15: 8 | J15: 11 | K15: 7 | L15: 7 | M15: 8 | N15: 9 | O15: 9 | P15: 14 | Q15: 15
A16: P012 | C16: 13 | D16: 0 | E16: 0 | F16: 5 | G16: 0.3846153846 | H16: 4 | I16: 3 | J16: 0 | K16: 0 | L16: 0 | M16: 2 | N16: 2 | O16: 5 | P16: 0 | Q16: 5
A17: P013 | C17: 15 | D17: 3 | E17: 0.2 | F17: 12 | G17: 0.8 | H17: 12 | I17: 7 | J17: 4 | K17: 3 | L17: 7 | M17: 6 | N17: 8 | O17: 5 | P17: 4 | Q17: 7
A18: P014 | C18: 113 | D18: 29 | E18: 0.2566371681 | F18: 73 | G18: 0.6460176991 | H18: 69 | I18: 62 | J18: 29 | K18: 64 | L18: 58 | M18: 49 | N18: 55 | O18: 61 | P18: 64 | Q18: 73
A19: P015 | C19: 1 | D19: 0 | E19: 0 | F19: 1 | G19: 1 | H19: 1 | I19: 1 | J19: 0 | K19: 0 | L19: 0 | M19: 0 | N19: 1 | O19: 0 | P19: 0 | Q19: 0
A20: P016 | C20: 61 | D20: 4 | E20: 0.06557377049 | F20: 49 | G20: 0.8032786885 | H20: 49 | I20: 4 | J20: 37 | K20: 36 | L20: 27 | M20: 32 | N20: 32 | O20: 31 | P20: 37 | Q20: 39
A21: P017 | C21: 265 | D21: 104 | E21: 0.3924528302 | F21: 201 | G21: 0.758490566 | H21: 201 | I21: 104 | J21: 164 | K21: 120 | L21: 163 | M21: 149 | N21: 149 | O21: 179 | P21: 153 | Q21: 188
A22: P021 | C22: 75 | D22: 17 | E22: 0.2266666667 | F22: 75 | G22: 1 | H22: 68 | I22: 22 | J22: 71 | K22: 75 | L22: 28 | M22: 74 | N22: 74 | O22: 74 | P22: 20 | Q22: 17
A23: P101 | C23: 13 | D23: 0 | E23: 0 | F23: 7 | G23: 0.5384615385 | H23: 2 | I23: 0 | J23: 0 | K23: 0 | L23: 0 | M23: 0 | N23: 1 | O23: 0 | P23: 6 | Q23: 7
A24: P106 | C24: 10 | D24: 0 | E24: 0 | F24: 3 | G24: 0.3 | H24: 3 | I24: 2 | J24: 1 | K24: 3 | L24: 0 | M24: 1 | N24: 1 | O24: 1 | P24: 1 | Q24: 1
A25: P110 | C25: 5 | D25: 0 | E25: 0 | F25: 5 | G25: 1 | H25: 3 | I25: 5 | J25: 5 | K25: 0 | L25: 5 | M25: 4 | N25: 4 | O25: 4 | P25: 5 | Q25: 5
A26: P112 | C26: 7 | D26: 0 | E26: 0 | F26: 3 | G26: 0.4285714286 | H26: 2 | I26: 2 | J26: 1 | K26: 0 | L26: 0 | M26: 1 | N26: 3 | O26: 3 | P26: 2 | Q26: 2
A27: P113 | C27: 30 | D27: 0 | E27: 0 | F27: 12 | G27: 0.4 | H27: 8 | I27: 12 | J27: 9 | K27: 0 | L27: 3 | M27: 0 | N27: 6 | O27: 4 | P27: 5 | Q27: 9
A28: P116 | C28: 13 | D28: 0 | E28: 0 | F28: 2 | G28: 0.1538461538 | H28: 0 | I28: 0 | J28: 2 | K28: 1 | L28: 0 | M28: 2 | N28: 0 | O28: 0 | P28: 1 | Q28: 1
A29: P201 | C29: 25 | D29: 1 | E29: 0.04 | F29: 7 | G29: 0.28 | H29: 4 | I29: 7 | J29: 6 | K29: 2 | L29: 1 | M29: 1 | N29: 2 | O29: 4 | P29: 5 | Q29: 5
A30: P202 | C30: 10 | D30: 0 | E30: 0 | F30: 6 | G30: 0.6 | H30: 5 | I30: 4 | J30: 2 | K30: 6 | L30: 5 | M30: 0 | N30: 5 | O30: 4 | P30: 4 | Q30: 3
A31: P203 | C31: 5 | D31: 0 | E31: 0 | F31: 0 | G31: 0 | H31: 0 | I31: 0 | J31: 0 | K31: 0 | L31: 0 | M31: 0 | N31: 0 | O31: 0 | P31: 0 | Q31: 0
A32: P204 | C32: 2 | D32: 0 | E32: 0 | F32: 2 | G32: 1 | H32: 0 | I32: 1 | J32: 1 | K32: 0 | L32: 0 | M32: 1 | N32: 1 | O32: 0 | P32: 2 | Q32: 2
A33: P205 | C33: 4 | D33: 0 | E33: 0 | F33: 2 | G33: 0.5 | H33: 0 | I33: 0 | J33: 2 | K33: 2 | L33: 2 | M33: 0 | N33: 2 | O33: 2 | P33: 2 | Q33: 2
A34: P206 | C34: 54 | D34: 10 | E34: 0.1851851852 | F34: 22 | G34: 0.4074074074 | H34: 13 | I34: 22 | J34: 11 | K34: 11 | L34: 10 | M34: 11 | N34: 11 | O34: 11 | P34: 14 | Q34: 13
A35: P303 | C35: 127 | D35: 34 | E35: 0.2677165354 | F35: 99 | G35: 0.7795275591 | H35: 99 | I35: 61 | J35: 48 | K35: 45 | L35: 34 | M35: 35 | N35: 44 | O35: 52 | P35: 63 | Q35: 67
A36: P304 | C36: 83 | D36: 1 | E36: 0.01204819277 | F36: 28 | G36: 0.3373493976 | H36: 12 | I36: 4 | J36: 2 | K36: 2 | L36: 7 | M36: 1 | N36: 2 | O36: 6 | P36: 8 | Q36: 28
A37: P306 | C37: 14 | D37: 2 | E37: 0.1428571429 | F37: 6 | G37: 0.4285714286 | H37: 5 | I37: 5 | J37: 4 | K37: 6 | L37: 4 | M37: 4 | N37: 4 | O37: 3 | P37: 2 | Q37: 2
A38: P310 | C38: 4 | D38: 1 | E38: 0.25 | F38: 4 | G38: 1 | H38: 4 | I38: 1 | J38: 2 | K38: 1 | L38: 3 | M38: 3 | N38: 4 | O38: 4 | P38: 2 | Q38: 3
A39: P351 | C39: 32 | D39: 0 | E39: 0 | F39: 7 | G39: 0.21875 | H39: 7 | I39: 4 | J39: 3 | K39: 1 | L39: 0 | M39: 0 | N39: 2 | O39: 3 | P39: 3 | Q39: 4
A40: P352 | C40: 4 | D40: 2 | E40: 0.5 | F40: 2 | G40: 0.5 | H40: 2 | I40: 2 | J40: 2 | K40: 2 | L40: 2 | M40: 2 | N40: 2 | O40: 2 | P40: 2 | Q40: 2
A41: P353 | C41: 23 | D41: 6 | E41: 0.2608695652 | F41: 9 | G41: 0.3913043478 | H41: 8 | I41: 9 | J41: 6 | K41: 9 | L41: 6 | M41: 7 | N41: 7 | O41: 6 | P41: 9 | Q41: 8
A42: P354 | C42: 15 | D42: 1 | E42: 0.06666666667 | F42: 5 | G42: 0.3333333333 | H42: 5 | I42: 4 | J42: 1 | K42: 1 | L42: 1 | M42: 1 | N42: 3 | O42: 2 | P42: 3 | Q42: 4
A43: P357 | C43: 163 | D43: 3 | E43: 0.01840490798 | F43: 33 | G43: 0.2024539877 | H43: 33 | I43: 15 | J43: 16 | K43: 4 | L43: 5 | M43: 3 | N43: 19 | O43: 20 | P43: 19 | Q43: 6
A44: P358 | C44: 1 | D44: 0 | E44: 0 | F44: 0 | G44: 0 | H44: 0 | I44: 0 | J44: 0 | K44: 0 | L44: 0 | M44: 0 | N44: 0 | O44: 0 | P44: 0 | Q44: 0
A45: P359 | C45: 56 | D45: 8 | E45: 0.1428571429 | F45: 15 | G45: 0.2678571429 | H45: 13 | I45: 15 | J45: 12 | K45: 9 | L45: 8 | M45: 10 | N45: 15 | O45: 13 | P45: 9 | Q45: 8
A46: P384 | C46: 179 | D46: 6 | E46: 0.03351955307 | F46: 85 | G46: 0.4748603352 | H46: 85 | I46: 54 | J46: 35 | K46: 14 | L46: 9 | M46: 16 | N46: 26 | O46: 6 | P46: 51 | Q46: 82
A47: P385 | C47: 228 | D47: 59 | E47: 0.2587719298 | F47: 142 | G47: 0.6228070175 | H47: 83 | I47: 71 | J47: 59 | K47: 65 | L47: 70 | M47: 60 | N47: 67 | O47: 107 | P47: 113 | Q47: 142
A48: P386 (Gliderport) | C48: 335 | D48: 167 | E48: 0.4985074627 | F48: 264 | G48: 0.7880597015 | H48: 264 | I48: 245 | J48: 185 | K48: 178 | L48: 167 | M48: 171 | N48: 181 | O48: 215 | P48: 232 | Q48: 259
A49: P401 | C49: 99 | D49: 7 | E49: 0.07070707071 | F49: 27 | G49: 0.2727272727 | H49: 7 | I49: 14 | J49: 11 | K49: 15 | L49: 16 | M49: 16 | N49: 20 | O49: 22 | P49: 23 | Q49: 27
A50: P402 | C50: 28 | D50: 1 | E50: 0.03571428571 | F50: 11 | G50: 0.3928571429 | H50: 10 | I50: 10 | J50: 11 | K50: 10 | L50: 7 | M50: 5 | N50: 1 | O50: 4 | P50: 4 | Q50: 3
A51: P405 | C51: 23 | D51: 9 | E51: 0.3913043478 | F51: 16 | G51: 0.6956521739 | H51: 13 | I51: 14 | J51: 11 | K51: 12 | L51: 9 | M51: 12 | N51: 13 | O51: 12 | P51: 13 | Q51: 16
A52: P406 | C52: 25 | D52: 0 | E52: 0 | F52: 5 | G52: 0.2 | H52: 1 | I52: 3 | J52: 3 | K52: 2 | L52: 1 | M52: 5 | N52: 3 | O52: 3 | P52: 0 | Q52: 5
A53: P407 | C53: 4 | D53: 0 | E53: 0 | F53: 3 | G53: 0.75 | H53: 3 | I53: 3 | J53: 3 | K53: 2 | L53: 2 | M53: 3 | N53: 2 | O53: 0 | P53: 3 | Q53: 3
A54: P414 | C54: 16 | D54: 3 | E54: 0.1875 | F54: 7 | G54: 0.4375 | H54: 6 | I54: 7 | J54: 7 | K54: 6 | L54: 4 | M54: 3 | N54: 3 | O54: 3 | P54: 7 | Q54: 7
A55: P415 | C55: 9 | D55: 0 | E55: 0 | F55: 1 | G55: 0.1111111111 | H55: 0 | I55: 0 | J55: 0 | K55: 0 | L55: 0 | M55: 0 | N55: 0 | O55: 0 | P55: 1 | Q55: 1
A56: P416 | C56: 68 | D56: 0 | E56: 0 | F56: 15 | G56: 0.2205882353 | H56: 5 | I56: 0 | J56: 0 | K56: 1 | L56: 3 | M56: 3 | N56: 4 | O56: 4 | P56: 13 | Q56: 15
A57: P418 | C57: 7 | D57: 0 | E57: 0 | F57: 4 | G57: 0.5714285714 | H57: 2 | I57: 3 | J57: 1 | K57: 2 | L57: 1 | M57: 1 | N57: 3 | O57: 0 | P57: 0 | Q57: 4
A58: P501 | C58: 12 | D58: 3 | E58: 0.25 | F58: 8 | G58: 0.6666666667 | H58: 3 | I58: 3 | J58: 3 | K58: 3 | L58: 7 | M58: 8 | N58: 8 | O58: 8 | P58: 8 | Q58: 8
A59: P502 | C59: 10 | D59: 0 | E59: 0 | F59: 1 | G59: 0.1 | H59: 0 | I59: 0 | J59: 0 | K59: 0 | L59: 0 | M59: 1 | N59: 1 | O59: 0 | P59: 1 | Q59: 0
A60: P503 | C60: 54 | D60: 5 | E60: 0.09259259259 | F60: 11 | G60: 0.2037037037 | H60: 10 | I60: 7 | J60: 8 | K60: 5 | L60: 5 | M60: 6 | N60: 7 | O60: 8 | P60: 8 | Q60: 11
A61: P504 | C61: 58 | D61: 3 | E61: 0.05172413793 | F61: 13 | G61: 0.224137931 | H61: 9 | I61: 13 | J61: 4 | K61: 8 | L61: 5 | M61: 7 | N61: 5 | O61: 3 | P61: 6 | Q61: 3
A62: P505 | C62: 6 | D62: 2 | E62: 0.3333333333 | F62: 2 | G62: 0.3333333333 | H62: 2 | I62: 2 | J62: 2 | K62: 2 | L62: 2 | M62: 2 | N62: 2 | O62: 2 | P62: 2 | Q62: 2
A63: P506 | C63: 21 | D63: 1 | E63: 0.04761904762 | F63: 10 | G63: 0.4761904762 | H63: 10 | I63: 10 | J63: 5 | K63: 1 | L63: 6 | M63: 5 | N63: 4 | O63: 7 | P63: 8 | Q63: 8
A64: P507 | C64: 250 | D64: 15 | E64: 0.06 | F64: 88 | G64: 0.352 | H64: 23 | I64: 18 | J64: 15 | K64: 17 | L64: 36 | M64: 37 | N64: 43 | O64: 64 | P64: 84 | Q64: 88
A65: P508 | C65: 35 | D65: 0 | E65: 0 | F65: 0 | G65: 0 | H65: 0 | I65: 0 | J65: 0 | K65: 0 | L65: 0 | M65: 0 | N65: 0 | O65: 0 | P65: 0 | Q65: 0
A66: P509 | C66: 7 | D66: 2 | E66: 0.2857142857 | F66: 5 | G66: 0.7142857143 | H66: 2 | I66: 2 | J66: 5 | K66: 4 | L66: 2 | M66: 3 | N66: 3 | O66: 2 | P66: 3 | Q66: 3
A67: P510 | C67: 199 | D67: 1 | E67: 0.005025125628 | F67: 81 | G67: 0.4070351759 | H67: 12 | I67: 1 | J67: 1 | K67: 1 | L67: 1 | M67: 3 | N67: 20 | O67: 37 | P67: 58 | Q67: 81
A68: P601 | C68: 11 | D68: 0 | E68: 0 | F68: 4 | G68: 0.3636363636 | H68: 2 | I68: 1 | J68: 1 | K68: 2 | L68: 1 | M68: 1 | N68: 1 | O68: 2 | P68: 4 | Q68: 0
A69: P602 | C69: 230 | D69: 0 | E69: 0 | F69: 45 | G69: 0.1956521739 | H69: 43 | I69: 7 | J69: 7 | K69: 8 | L69: 10 | M69: 11 | N69: 6 | O69: 35 | P69: 45 | Q69: 0
A70: P603 | C70: 128 | D70: 0 | E70: 0 | F70: 25 | G70: 0.1953125 | H70: 9 | I70: 2 | J70: 0 | K70: 1 | L70: 6 | M70: 3 | N70: 2 | O70: 7 | P70: 25 | Q70: 0
A71: P604 | C71: 38 | D71: 0 | E71: 0 | F71: 0 | G71: 0 | H71: 0 | I71: 0 | J71: 0 | K71: 0 | L71: 0 | M71: 0 | N71: 0 | O71: 0 | P71: 0 | Q71: 0
A72: P605 | C72: 16 | D72: 0 | E72: 0 | F72: 3 | G72: 0.1875 | H72: 0 | I72: 0 | J72: 1 | K72: 0 | L72: 3 | M72: 3 | N72: 1 | O72: 2 | P72: 1 | Q72: 0
A73: P606 | C73: 10 | D73: 0 | E73: 0 | F73: 4 | G73: 0.4 | H73: 1 | I73: 1 | J73: 1 | K73: 1 | L73: 1 | M73: 2 | N73: 3 | O73: 4 | P73: 1 | Q73: 0
A74: P607 | C74: 5 | D74: 0 | E74: 0 | F74: 5 | G74: 1 | H74: 4 | I74: 4 | J74: 5 | K74: 4 | L74: 4 | M74: 4 | N74: 5 | O74: 4 | P74: 4 | Q74: 0
A75: P608 | C75: 11 | D75: 0 | E75: 0 | F75: 4 | G75: 0.3636363636 | H75: 1 | I75: 0 | J75: 3 | K75: 2 | L75: 3 | M75: 3 | N75: 4 | O75: 3 | P75: 1 | Q75: 0
A76: P610 | C76: 151 | D76: 0 | E76: 0 | F76: 49 | G76: 0.3245033113 | H76: 49 | I76: 1 | J76: 0 | K76: 1 | L76: 1 | M76: 0 | N76: 1 | O76: 8 | P76: 9 | Q76: 0
A77: P701 | C77: 378 | D77: 0 | E77: 0 | F77: 270 | G77: 0.7142857143 | H77: 0 | I77: 270 | J77: 0 | K77: 0 | L77: 0 | M77: 200 | N77: 214 | O77: 237 | P77: 253 | Q77: 0
A78: P702 | C78: 189 | D78: 0 | E78: 0 | F78: 83 | G78: 0.4391534392 | H78: 0 | I78: 83 | J78: 0 | K78: 0 | L78: 0 | M78: 64 | N78: 70 | O78: 74 | P78: 77 | Q78: 0
A79: P703 | C79: 362 | D79: 0 | E79: 0 | F79: 34 | G79: 0.09392265193 | H79: 34 | I79: 0 | J79: 0 | K79: 0 | L79: 23 | M79: 14 | N79: 22 | O79: 25 | P79: 27 | Q79: 0
A80: P704 | C80: 326 | D80: 0 | E80: 0 | F80: 277 | G80: 0.8496932515 | H80: 0 | I80: 0 | J80: 277 | K80: 0 | L80: 83 | M80: 80 | N80: 89 | O80: 132 | P80: 170 | Q80: 0
A81: P705 | C81: 266 | D81: 0 | E81: 0 | F81: 130 | G81: 0.4887218045 | H81: 0 | I81: 0 | J81: 0 | K81: 130 | L81: 57 | M81: 72 | N81: 78 | O81: 84 | P81: 101 | Q81: 0
A82: P706 | C82: 70 | D82: 0 | E82: 0 | F82: 5 | G82: 0.07142857143 | H82: 0 | I82: 3 | J82: 0 | K82: 0 | L82: 1 | M82: 3 | N82: 2 | O82: 4 | P82: 5 | Q82: 0
A83: P707 | C83: 209 | D83: 0 | E83: 0 | F83: 40 | G83: 0.1913875598 | H83: 0 | I83: 0 | J83: 40 | K83: 0 | L83: 33 | M83: 28 | N83: 30 | O83: 35 | P83: 39 | Q83: 0
A84: P751 | C84: 7 | D84: 0 | E84: 0 | F84: 0 | G84: 0 | H84: 0 | I84: 0 | J84: 0 | K84: 0 | L84: 0 | M84: 0 | N84: 0 | O84: 0 | P84: 0 | Q84: 0
A85: P752 | C85: 30 | D85: 1 | E85: 0.03333333333 | F85: 4 | G85: 0.1333333333 | H85: 4 | I85: 3 | J85: 3 | K85: 1 | L85: 3 | M85: 2 | N85: 3 | O85: 1 | P85: 3 | Q85: 3
A86: P753 | C86: 34 | D86: 0 | E86: 0 | F86: 2 | G86: 0.05882352941 | H86: 2 | I86: 1 | J86: 1 | K86: 1 | L86: 1 | M86: 2 | N86: 2 | O86: 0 | P86: 0 | Q86: 0
A87: P757 | C87: 0 | D87: 0 | F87: 0 | H87: 0 | I87: 0 | J87: 0 | K87: 0 | L87: 0 | M87: 0 | N87: 0 | O87: 0 | P87: 0 | Q87: 0
A88: P758 | C88: 7 | D88: 0 | E88: 0 | F88: 2 | G88: 0.2857142857 | H88: 2 | I88: 2 | J88: 0 | K88: 2 | L88: 2 | M88: 0 | N88: 2 | O88: 1 | P88: 0 | Q88: 0
A89: P759 | C89: 113 | D89: 0 | E89: 0 | F89: 30 | G89: 0.2654867257 | H89: 16 | I89: 0 | J89: 3 | K89: 1 | L89: 1 | M89: 0 | N89: 2 | O89: 9 | P89: 28 | Q89: 30
A90: P760 | C90: 252 | D90: 16 | E90: 0.06349206349 | F90: 98 | G90: 0.3888888889 | H90: 52 | I90: 33 | J90: 19 | K90: 18 | L90: 16 | M90: 22 | N90: 18 | O90: 46 | P90: 98 | Q90: 98
A91: P761 | C91: 3 | D91: 0 | E91: 0 | F91: 2 | G91: 0.6666666667 | H91: 2 | I91: 2 | J91: 1 | K91: 1 | L91: 0 | M91: 0 | N91: 0 | O91: 2 | P91: 2 | Q91: 2
A92: P762 | C92: 4 | D92: 0 | E92: 0 | F92: 1 | G92: 0.25 | H92: 1 | I92: 1 | J92: 1 | K92: 0 | L92: 0 | M92: 1 | N92: 0 | O92: 0 | P92: 0 | Q92: 1
A93: P782 | C93: 216 | D93: 69 | E93: 0.3194444444 | F93: 166 | G93: 0.7685185185 | H93: 156 | I93: 141 | J93: 110 | K93: 85 | L93: 79 | M93: 74 | N93: 69 | O93: 122 | P93: 155 | Q93: 166
A94: P784 | C94: 108 | D94: 0 | E94: 0 | F94: 16 | G94: 0.1481481481 | H94: 13 | I94: 9 | J94: 6 | K94: 0 | L94: 2 | M94: 1 | N94: 7 | O94: 9 | P94: 16 | Q94: 13
A95: P785 | C95: 392 | D95: 0 | E95: 0 | F95: 104 | G95: 0.2653061224 | H95: 23 | I95: 13 | J95: 8 | K95: 2 | L95: 0 | M95: 0 | N95: 2 | O95: 40 | P95: 100 | Q95: 104
A96: P952 | C96: 11 | D96: 3 | E96: 0.2727272727 | F96: 6 | G96: 0.5454545455 | H96: 3 | I96: 3 | J96: 3 | K96: 3 | L96: 5 | M96: 5 | N96: 6 | O96: 4 | P96: 5 | Q96: 5
A97: P953 | C97: 17 | D97: 0 | E97: 0 | F97: 2 | G97: 0.1176470588 | H97: 0 | I97: 0 | J97: 0 | K97: 0 | L97: 0 | M97: 2 | N97: 0 | O97: 0 | P97: 2 | Q97: 2
A98: P954 | C98: 40 | D98: 0 | E98: 0 | F98: 5 | G98: 0.125 | H98: 0 | I98: 5 | J98: 5 | K98: 5 | L98: 1 | M98: 1 | N98: 1 | O98: 2 | P98: 2 | Q98: 3
A99: P955 | C99: 44 | D99: 5 | E99: 0.1136363636 | F99: 11 | G99: 0.25 | H99: 10 | I99: 7 | J99: 5 | K99: 5 | L99: 8 | M99: 7 | N99: 8 | O99: 11 | P99: 8 | Q99: 11
A100: P956 | C100: 8 | D100: 0 | E100: 0 | F100: 4 | G100: 0.5 | H100: 0 | I100: 4 | J100: 2 | K100: 2 | L100: 3 | M100: 3 | N100: 3 | O100: 0 | P100: 0 | Q100: 0
A101: P957 | C101: 77 | D101: 0 | E101: 0 | F101: 3 | G101: 0.03896103896 | H101: 3 | I101: 3 | J101: 2 | K101: 2 | L101: 2 | M101: 2 | N101: 1 | O101: 0 | P101: 2 | Q101: 2
A102: P963 | C102: 0 | D102: 0 | F102: 0 | H102: 0 | I102: 0 | J102: 0 | K102: 0 | L102: 0 | M102: 0 | N102: 0 | O102: 0 | P102: 0 | Q102: 0
A103: P964 | C103: 105 | D103: 9 | E103: 0.08571428571 | F103: 40 | G103: 0.380952381 | H103: 34 | I103: 20 | J103: 9 | K103: 9 | L103: 21 | M103: 9 | N103: 12 | O103: 15 | P103: 36 | Q103: 40
A104: Torrey Pines Center North | C104: 224 | D104: 124 | E104: 0.5535714286 | F104: 206 | G104: 0.9196428571 | H104: 176 | I104: 151 | J104: 141 | K104: 124 | L104: 156 | M104: 149 | N104: 149 | O104: 188 | P104: 190 | Q104: 206

Sheet By Space Type
A1: Space Type | B1: Stall Inventory | C1: Min # of Open Stalls | D1: Min % of Open Stalls | E1: Max # of Open Stalls | F1: Max % of Open Stalls | G1: Open Stalls @ 8am | H1: Open Stalls @ 9am | I1: Open Stalls @ 10am | J1: Open Stalls @ 11am | K1: Open Stalls @ 12pm | L1: Open Stalls @ 1pm | M1: Open Stalls @ 2pm | N1: Open Stalls @ 3pm | O1: Open Stalls @ 4pm | P1: Open Stalls @ 5pm
A2: % Open Stalls | C2: (Min and Max values from varying hours) | G2: =G3/$B3 -> 0.3321762607 | H2: 0.2606306046 | I2: 0.2301128146 | J2: 0.1878796644 | K2: 0.1844084466 | L2: 0.200462829 | M2: 0.2236042812 | N2: 0.2798669367 | O2: 0.3391186964 | P2: 0.335309999
A3: # Open Stalls | B3: =SUBTOTAL(9, B5:B9999) -> 20742 | G3: =SUBTOTAL(9, G5:G9999) -> 6890 | H3: =SUBTOTAL(9, H5:H9999) -> 5406 | I3: 4773 | J3: 3897 | K3: 3825 | L3: 4158 | M3: 4638 | N3: 5805 | O3: 7034 | P3: 6955
A4: Space Type | B4: Sum of Inventory | C4: Sum of Min # | D4: Sum of Min % | E4: Sum of Max # | F4: Sum of Max % | G4: Sum of 8am | H4: Sum of 9am | I4: Sum of 10am | J4: Sum of 11am | K4: Sum of 12pm | L4: Sum of 1pm | M4: Sum of 2pm | N4: Sum of 3pm | O4: Sum of 4pm | P4: Sum of 5pm
A5: A | B5: 3136 | C5: 699 | D5: 0.2228954082 | E5: 1615 | F5: 0.5149872449 | G5: 1615 | H5: 1065 | I5: 922 | J5: 747 | K5: 843 | L5: 699 | M5: 732 | N5: 1013 | O5: 1275 | P5: 1323
A6: Accessible | B6: 830 | C6: 162 | D6: 0.1951807229 | E6: 361 | F6: 0.434939759 | G6: 251 | H6: 204 | I6: 188 | J6: 162 | K6: 179 | L6: 175 | M6: 205 | N6: 266 | O6: 350 | P6: 361
A7: Allocated | B7: 126 | C7: 11 | D7: 0.0873015873 | E7: 32 | F7: 0.253968254 | G7: 32 | H7: 24 | I7: 21 | J7: 18 | K7: 14 | L7: 12 | M7: 14 | N7: 11 | O7: 23 | P7: 31
A8: B | B8: 7025 | C8: 1079 | D8: 0.153594306 | E8: 2417 | F8: 0.3440569395 | G8: 2066 | H8: 1542 | I8: 1347 | J8: 1079 | K8: 1141 | L8: 1154 | M8: 1414 | N8: 1683 | O8: 2149 | P8: 2417
A9: Carpool | B9: 360 | C9: 107 | D9: 0.2972222222 | E9: 268 | F9: 0.7444444444 | G9: 268 | H9: 195 | I9: 186 | J9: 134 | K9: 116 | L9: 107 | M9: 114 | N9: 125 | O9: 160 | P9: 171
A10: Electric Vehicle | B10: 434 | C10: 92 | D10: 0.2119815668 | E10: 271 | F10: 0.6244239631 | G10: 271 | H10: 201 | I10: 180 | J10: 163 | K10: 92 | L10: 158 | M10: 178 | N10: 192 | O10: 212 | P10: 214
A11: Loading | B11: 164 | C11: 45 | D11: 0.2743902439 | E11: 66 | F11: 0.4024390244 | G11: 63 | H11: 66 | I11: 54 | J11: 64 | K11: 46 | L11: 47 | M11: 49 | N11: 45 | O11: 47 | P11: 48
A12: Motorcycle Section | B12: 312 | C12: 53 | D12: 0.1698717949 | E12: 81 | F12: 0.2596153846 | G12: 68 | H12: 61 | I12: 56 | J12: 61 | K12: 53 | L12: 59 | M12: 58 | N12: 76 | O12: 75 | P12: 81
A13: Reserved | B13: 1147 | C13: 0 | D13: 0 | E13: 0 | F13: 0 | G13: 0 | H13: 0 | I13: 0 | J13: 0 | K13: 0 | L13: 0 | M13: 0 | N13: 0 | O13: 0 | P13: 0
A14: S | B14: 1422 | C14: 169 | D14: 0.1188466948 | E14: 577 | F14: 0.405766526 | G14: 391 | H14: 553 | I14: 267 | J14: 228 | K14: 169 | L14: 485 | M14: 509 | N14: 552 | O14: 577 | P14: 284
A15: Service Yard | B15: 114 | C15: 39 | D15: 0.3421052632 | E15: 52 | F15: 0.4561403509 | G15: 50 | H15: 45 | I15: 46 | J15: 39 | K15: 47 | L15: 46 | M15: 52 | N15: 42 | O15: 52 | P15: 49
A16: SR | B16: 579 | C16: 88 | D16: 0.1519861831 | E16: 154 | F16: 0.2659758204 | G16: 154 | H16: 144 | I16: 106 | J16: 110 | K16: 88 | L16: 100 | M16: 95 | N16: 103 | O16: 135 | P16: 125
A17: UC Vehicle | B17: 281 | C17: 42 | D17: 0.1494661922 | E17: 59 | F17: 0.2099644128 | G17: 59 | H17: 42 | I17: 53 | J17: 54 | K17: 46 | L17: 46 | M17: 46 | N17: 52 | O17: 51 | P17: 44
A18: Visitor | B18: 2889 | C18: 593 | D18: 0.2052613361 | E18: 1366 | F18: 0.4728279682 | G18: 1160 | H18: 865 | I18: 759 | J18: 629 | K18: 593 | L18: 652 | M18: 735 | N18: 1071 | O18: 1248 | P18: 1366
A19: UC Cart | B19: 16 | C19: 0 | D19: 0 | E19: 12 | F19: 0.75 | G19: 11 | H19: 9 | I19: 12 | J19: 11 | K19: 0 | L19: 11 | M19: 11 | N19: 11 | O19: 12 | P19: 12
A20: SS ($3.50) | B20: 551 | C20: 245 | D20: 0.444646098 | E20: 425 | F20: 0.7713248639 | G20: 420 | H20: 386 | I20: 295 | J20: 263 | K20: 246 | L20: 245 | M20: 250 | N20: 337 | O20: 387 | P20: 425
A21: D ($5.00) | B21: 887 | C21: 0 | D21: 0 | E21: 277 | F21: 0.3122886133 | G21: 7 | H21: 0 | I21: 277 | J21: 130 | K21: 147 | L21: 157 | M21: 172 | N21: 222 | O21: 277 | P21: 0
A22: Loading Zone | B22: 1 | C22: 1 | D22: 1 | E22: 1 | F22: 1 | G22: 1 | H22: 1 | I22: 1 | J22: 1 | K22: 1 | L22: 1 | M22: 1 | N22: 1 | O22: 1 | P22: 1
A23: Commercial Loading | B23: 4 | C23: 3 | D23: 0.75 | E23: 4 | F23: 1 | G23: 3 | H23: 3 | I23: 3 | J23: 4 | K23: 4 | L23: 4 | M23: 3 | N23: 3 | O23: 3 | P23: 3
A24: Construction Area | B24: 464 | C24: 0 | D24: 0 | E24: 0 | F24: 0 | G24: 0 | H24: 0 | I24: 0 | J24: 0 | K24: 0 | L24: 0 | M24: 0 | N24: 0 | O24: 0 | P24: 0

Sheet EV By Location
A1: Space Type | B1: Location | C1: Stall Inventory | D1: Min # of Open Stalls | E1: Min % of Open Stalls | F1: Max # of Open Stalls | G1: Max % of Open Stalls | H1: Open Stalls @ 8am | I1: Open Stalls @ 9am | J1: Open Stalls @ 10am | K1: Open Stalls @ 11am | L1: Open Stalls @ 12pm | M1: Open Stalls @ 1pm | N1: Open Stalls @ 2pm | O1: Open Stalls @ 3pm | P1: Open Stalls @ 4pm | Q1: Open Stalls @ 5pm
A2: % Open Stalls | D2: (Min and Max values from varying hours) | H2: =H3/$C3 -> 0.6244239631 | I2: 0.4631336406 | J2: 0.4147465438 | K2: 0.3755760369 | L2: 0.2119815668 | M2: 0.3640552995 | N2: 0.4101382488 | O2: 0.4423963134 | P2: 0.4884792627 | Q2: 0.4930875576
A3: # Open Stalls | C3: =SUBTOTAL(9, C5:C9999) -> 434 | H3: =SUBTOTAL(9, H5:H9999) -> 271 | I3: =SUBTOTAL(9, I5:I9999) -> 201 | J3: =SUBTOTAL(9, J5:J9999) -> 180 | K3: 163 | L3: 92 | M3: 158 | N3: 178 | O3: 192 | P3: 212 | Q3: 214
A4: Space Type | B4: Lot / Garage | C4: Sum of Inventory | D4: Sum of Min # | E4: Sum of Min % | F4: Sum of Max # | G4: Sum of Max % | H4: Sum of 8am | I4: Sum of 9am | J4: Sum of 10am | K4: Sum of 11am | L4: Sum of 12pm | M4: Sum of 1pm | N4: Sum of 2pm | O4: Sum of 3pm | P4: Sum of 4pm | Q4: Sum of 5pm
A5: Electric Vehicle
B6: 8980 | C6: 18 | D6: 0 | E6: 0 | F6: 18 | G6: 1 | H6: 18 | I6: 15 | J6: 18 | K6: 17 | L6: 15 | M6: 0 | N6: 18 | O6: 18 | P6: 18 | Q6: 18
B7: Arbor | C7: 12 | D7: 2 | E7: 0.1666666667 | F7: 10 | G7: 0.8333333333 | H7: 5 | I7: 3 | J7: 2 | K7: 2 | L7: 7 | M7: 7 | N7: 8 | O7: 9 | P7: 8 | Q7: 10
B8: Athena | C8: 43 | D8: 10 | E8: 0.2325581395 | F8: 21 | G8: 0.488372093 | H8: 21 | I8: 20 | J8: 19 | K8: 17 | L8: 12 | M8: 10 | N8: 13 | O8: 16 | P8: 18 | Q8: 18
B9: Campus Point East | C9: 3 | D9: 0 | E9: 0 | F9: 2 | G9: 0.6666666667 | H9: 0 | I9: 1 | J9: 1 | K9: 0 | L9: 0 | M9: 0 | N9: 1 | O9: 0 | P9: 1 | Q9: 2
B10: Campus Point West | C10: 6 | D10: 0 | E10: 0 | F10: 2 | G10: 0.3333333333 | H10: 0 | I10: 0 | J10: 1 | K10: 0 | L10: 0 | M10: 0 | N10: 1 | O10: 0 | P10: 2 | Q10: 1
B11: First Ave | C11: 30 | D11: 2 | E11: 0.06666666667 | F11: 20 | G11: 0.6666666667 | H11: 18 | I11: 11 | J11: 10 | K11: 7 | L11: 7 | M11: 12 | N11: 3 | O11: 2 | P11: 15 | Q11: 20
B12: Gilman | C12: 32 | D12: 0 | E12: 0 | F12: 12 | G12: 0.375 | H12: 12 | I12: 8 | J12: 0 | K12: 1 | L12: 1 | M12: 0 | N12: 2 | O12: 5 | P12: 11 | Q12: 12
B13: Hopkins | C13: 20 | D13: 2 | E13: 0.1 | F13: 18 | G13: 0.9 | H13: 18 | I13: 15 | J13: 4 | K13: 4 | L13: 2 | M13: 4 | N13: 4 | O13: 3 | P13: 3 | Q13: 9
B14: Nuevo West/Vela | C14: 34 | D14: 4 | E14: 0.1176470588 | F14: 13 | G14: 0.3823529412 | H14: 13 | I14: 6 | J14: 6 | K14: 6 | L14: 4 | M14: 5 | N14: 5 | O14: 6 | P14: 6 | Q14: 7
B15: P001 | C15: 10 | D15: 6 | E15: 0.6 | F15: 10 | G15: 1 | H15: 9 | I15: 8 | J15: 6 | K15: 7 | L15: 7 | M15: 6 | N15: 6 | O15: 7 | P15: 9 | Q15: 10
B16: P004 | C16: 1 | D16: 0 | E16: 0 | F16: 0 | G16: 0 | H16: 0 | I16: 0 | J16: 0 | K16: 0 | L16: 0 | M16: 0 | N16: 0 | O16: 0 | P16: 0 | Q16: 0
B17: P007 | C17: 8 | D17: 0 | E17: 0 | F17: 8 | G17: 1 | H17: 8 | I17: 8 | J17: 1 | K17: 0 | L17: 2 | M17: 1 | N17: 2 | O17: 5 | P17: 7 | Q17: 6
B18: P013 | C18: 2 | D18: 0 | E18: 0 | F18: 2 | G18: 1 | H18: 2 | I18: 2 | J18: 2 | K18: 0 | L18: 2 | M18: 2 | N18: 2 | O18: 2 | P18: 2 | Q18: 2
B19: P014 | C19: 2 | D19: 1 | E19: 0.5 | F19: 2 | G19: 1 | H19: 2 | I19: 2 | J19: 2 | K19: 2 | L19: 2 | M19: 2 | N19: 2 | O19: 2 | P19: 1 | Q19: 2
B20: P017 | C20: 2 | D20: 0 | E20: 0 | F20: 2 | G20: 1 | H20: 1 | I20: 2 | J20: 0 | K20: 2 | L20: 2 | M20: 2 | N20: 2 | O20: 2 | P20: 2 | Q20: 1
B21: P206 | C21: 2 | D21: 0 | E21: 0 | F21: 2 | G21: 1 | H21: 0 | I21: 2 | J21: 0 | K21: 0 | L21: 0 | M21: 0 | N21: 0 | O21: 0 | P21: 1 | Q21: 1
B22: P357 | C22: 10 | D22: 0 | E22: 0 | F22: 6 | G22: 0.6 | H22: 6 | I22: 2 | J22: 1 | K22: 0 | L22: 0 | M22: 0 | N22: 1 | O22: 1 | P22: 3 | Q22: 2
B23: P507 | C23: 2 | D23: 1 | E23: 0.5 | F23: 2 | G23: 1 | H23: 2 | I23: 2 | J23: 1 | K23: 2 | L23: 2 | M23: 2 | N23: 2 | O23: 2 | P23: 2 | Q23: 2
B24: P602 | C24: 4 | D24: 0 | E24: 0 | F24: 1 | G24: 0.25 | H24: 1 | I24: 0 | J24: 1 | K24: 0 | L24: 0 | M24: 0 | N24: 0 | O24: 0 | P24: 1 | Q24: 0
B25: P610 | C25: 6 | D25: 0 | E25: 0 | F25: 5 | G25: 0.8333333333 | H25: 5 | I25: 0 | J25: 0 | K25: 0 | L25: 1 | M25: 0 | N25: 1 | O25: 2 | P25: 2 | Q25: 0
B26: P703 | C26: 12 | D26: 0 | E26: 0 | F26: 9 | G26: 0.75 | H26: 9 | I26: 0 | J26: 0 | K26: 0 | L26: 6 | M26: 3 | N26: 4 | O26: 5 | P26: 7 | Q26: 0
B27: P707 | C27: 2 | D27: 0 | E27: 0 | F27: 2 | G27: 1 | H27: 0 | I27: 0 | J27: 0 | K27: 0 | L27: 2 | M27: 2 | N27: 2 | O27: 2 | P27: 2 | Q27: 0
B28: P751 | C28: 0 | D28: 0 | F28: 0 | H28: 0 | I28: 0 | J28: 0 | K28: 0 | L28: 0 | M28: 0 | N28: 0 | O28: 0 | P28: 0 | Q28: 0
B29: Pangea | C29: 4 | D29: 1 | E29: 0.25 | F29: 3 | G29: 0.75 | H29: 2 | I29: 3 | J29: 3 | K29: 1 | L29: 2 | M29: 1 | N29: 2 | O29: 2 | P29: 3 | Q29: 3
B30: Scholars | C30: 30 | D30: 3 | E30: 0.1 | F30: 6 | G30: 0.2 | H30: 4 | I30: 6 | J30: 6 | K30: 5 | L30: 3 | M30: 5 | N30: 3 | O30: 4 | P30: 5 | Q30: 4
B31: South | C31: 32 | D31: 0 | E31: 0 | F31: 11 | G31: 0.34375 | H31: 11 | I31: 5 | J31: 3 | K31: 0 | L31: 2 | M31: 2 | N31: 3 | O31: 3 | P31: 10 | Q31: 9
B32: TDLLN | C32: 97 | D32: 5 | E32: 0.05154639175 | F32: 95 | G32: 0.9793814433 | H32: 95 | I32: 72 | J32: 86 | K32: 83 | L32: 5 | M32: 86 | N32: 86 | O32: 90 | P32: 67 | Q32: 65
B33: Torrey Pines Center South | C33: 10 | D33: 4 | E33: 0.4 | F33: 10 | G33: 1 | H33: 9 | I33: 8 | J33: 7 | K33: 7 | L33: 6 | M33: 6 | N33: 5 | O33: 4 | P33: 6 | Q33: 10

Sheet ADA By Location
A1: Space Type | B1: Location | C1: Stall Inventory | D1: Min # of Open Stalls | E1: Min % of Open Stalls | F1: Max # of Open Stalls | G1: Max % of Open Stalls | H1: Open Stalls @ 8am | I1: Open Stalls @ 9am | J1: Open Stalls @ 10am | K1: Open Stalls @ 11am | L1: Open Stalls @ 12pm | M1: Open Stalls @ 1pm | N1: Open Stalls @ 2pm | O1: Open Stalls @ 3pm | P1: Open Stalls @ 4pm | Q1: Open Stalls @ 5pm
A2: % Open Stalls | D2: (Min and Max values from varying hours) | H2: =H3/$C3 -> 0.3024096386 | I2: 0.2457831325 | J2: 0.2265060241 | K2: 0.1951807229 | L2: 0.2156626506 | M2: 0.2108433735 | N2: 0.2469879518 | O2: 0.3204819277 | P2: 0.421686747 | Q2: 0.434939759
A3: # Open Stalls | C3: =SUBTOTAL(9, C5:C9999) -> 830 | H3: =SUBTOTAL(9, H5:H9999) -> 251 | I3: =SUBTOTAL(9, I5:I9999) -> 204 | J3: =SUBTOTAL(9, J5:J9999) -> 188 | K3: 162 | L3: 179 | M3: 175 | N3: 205 | O3: 266 | P3: 350 | Q3: 361
A4: Space Type | B4: Lot / Garage | C4: Sum of Inventory | D4: Sum of Min # | E4: Sum of Min % | F4: Sum of Max # | G4: Sum of Max % | H4: Sum of 8am | I4: Sum of 9am | J4: Sum of 10am | K4: Sum of 11am | L4: Sum of 12pm | M4: Sum of 1pm | N4: Sum of 2pm | O4: Sum of 3pm | P4: Sum of 4pm | Q4: Sum of 5pm
A5: Accessible
B6: 8980 | C6: 7 | D6: 6 | E6: 0.8571428571 | F6: 7 | G6: 1 | H6: 7 | I6: 6 | J6: 6 | K6: 6 | L6: 6 | M6: 7 | N6: 7 | O6: 7 | P6: 7 | Q6: 7
B7: Arbor | C7: 15 | D7: 0 | E7: 0 | F7: 15 | G7: 1 | H7: 5 | I7: 0 | J7: 0 | K7: 0 | L7: 0 | M7: 0 | N7: 0 | O7: 0 | P7: 13 | Q7: 15
B8: Athena | C8: 81 | D8: 12 | E8: 0.1481481481 | F8: 37 | G8: 0.4567901235 | H8: 37 | I8: 18 | J8: 13 | K8: 12 | L8: 24 | M8: 17 | N8: 27 | O8: 29 | P8: 33 | Q8: 32
B9: Campus Point East | C9: 12 | D9: 0 | E9: 0 | F9: 11 | G9: 0.9166666667 | H9: 3 | I9: 3 | J9: 2 | K9: 2 | L9: 1 | M9: 0 | N9: 0 | O9: 8 | P9: 10 | Q9: 11
B10: Campus Point West | C10: 104 | D10: 0 | E10: 0 | F10: 16 | G10: 0.1538461538 | H10: 3 | I10: 1 | J10: 2 | K10: 0 | L10: 0 | M10: 0 | N10: 0 | O10: 8 | P10: 15 | Q10: 16
B11: First Ave | C11: 50 | D11: 11 | E11: 0.22 | F11: 45 | G11: 0.9 | H11: 20 | I11: 16 | J11: 26 | K11: 11 | L11: 23 | M11: 23 | N11: 20 | O11: 32 | P11: 39 | Q11: 45
B12: Gilman | C12: 43 | D12: 0 | E12: 0 | F12: 22 | G12: 0.511627907 | H12: 0 | I12: 0 | J12: 0 | K12: 0 | L12: 3 | M12: 3 | N12: 11 | O12: 13 | P12: 13 | Q12: 22
B13: Hopkins | C13: 24 | D13: 14 | E13: 0.5833333333 | F13: 23 | G13: 0.9583333333 | H13: 22 | I13: 20 | J13: 19 | K13: 18 | L13: 17 | M13: 16 | N13: 14 | O13: 17 | P13: 23 | Q13: 23
B14: Nuevo West/Vela | C14: 19 | D14: 8 | E14: 0.4210526316 | F14: 13 | G14: 0.6842105263 | H14: 10 | I14: 12 | J14: 12 | K14: 13 | L14: 11 | M14: 8 | N14: 10 | O14: 12 | P14: 12 | Q14: 12
B15: P001 | C15: 1 | D15: 0 | E15: 0 | F15: 1 | G15: 1 | H15: 1 | I15: 1 | J15: 0 | K15: 0 | L15: 0 | M15: 0 | N15: 1 | O15: 1 | P15: 1 | Q15: 1
B16: P002 | C16: 2 | D16: 1 | E16: 0.5 | F16: 2 | G16: 1 | H16: 2 | I16: 1 | J16: 1 | K16: 1 | L16: 1 | M16: 1 | N16: 1 | O16: 2 | P16: 2 | Q16: 2
B17: P003 | C17: 2 | D17: 0 | E17: 0 | F17: 1 | G17: 0.5 | H17: 0 | I17: 1 | J17: 0 | K17: 1 | L17: 0 | M17: 1 | N17: 1 | O17: 1 | P17: 1 | Q17: 0
B18: P005 | C18: 1 | D18: 0 | E18: 0 | F18: 1 | G18: 1 | H18: 1 | I18: 1 | J18: 0 | K18: 1 | L18: 0 | M18: 0 | N18: 0 | O18: 1 | P18: 1 | Q18: 1
B19: P006 | C19: 1 | D19: 1 | E19: 1 | F19: 1 | G19: 1 | H19: 1 | I19: 1 | J19: 1 | K19: 1 | L19: 1 | M19: 1 | N19: 1 | O19: 1 | P19: 1 | Q19: 1
B20: P007 | C20: 3 | D20: 1 | E20: 0.3333333333 | F20: 1 | G20: 0.3333333333 | H20: 1 | I20: 1 | J20: 1 | K20: 1 | L20: 1 | M20: 1 | N20: 1 | O20: 1 | P20: 1 | Q20: 1
B21: P008 | C21: 3 | D21: 0 | E21: 0 | F21: 1 | G21: 0.3333333333 | H21: 1 | I21: 0 | J21: 0 | K21: 0 | L21: 0 | M21: 0 | N21: 0 | O21: 0 | P21: 0 | Q21: 1
B22: P010 | C22: 1 | D22: 0 | E22: 0 | F22: 1 | G22: 1 | H22: 1 | I22: 1 | J22: 0 | K22: 0 | L22: 0 | M22: 1 | N22: 1 | O22: 1 | P22: 1 | Q22: 1
B23: P011 | C23: 2 | D23: 0 | E23: 0 | F23: 2 | G23: 1 | H23: 1 | I23: 1 | J23: 2 | K23: 2 | L23: 0 | M23: 2 | N23: 1 | O23: 2 | P23: 1 | Q23: 2
B24: P012 | C24: 1 | D24: 0 | E24: 0 | F24: 1 | G24: 1 | H24: 1 | I24: 0 | J24: 0 | K24: 0 | L24: 0 | M24: 1 | N24: 1 | O24: 1 | P24: 0 | Q24: 1
B25: P013 | C25: 1 | D25: 1 | E25: 1 | F25: 1 | G25: 1 | H25: 1 | I25: 1 | J25: 1 | K25: 1 | L25: 1 | M25: 1 | N25: 1 | O25: 1 | P25: 1 | Q25: 1
B26: P014 | C26: 4 | D26: 2 | E26: 0.5 | F26: 4 | G26: 1 | H26: 4 | I26: 4 | J26: 2 | K26: 4 | L26: 3 | M26: 3 | N26: 4 | O26: 4 | P26: 2 | Q26: 3
B27: P016 | C27: 2 | D27: 1 | E27: 0.5 | F27: 2 | G27: 1 | H27: 2 | I27: 1 | J27: 2 | K27: 2 | L27: 2 | M27: 2 | N27: 2 | O27: 2 | P27: 2 | Q27: 2
B28: P017 | C28: 9 | D28: 0 | E28: 0 | F28: 9 | G28: 1 | H28: 8 | I28: 5 | J28: 7 | K28: 6 | L28: 0 | M28: 5 | N28: 5 | O28: 9 | P28: 5 | Q28: 7
B29: P101 | C29: 12 | D29: 0 | E29: 0 | F29: 7 | G29: 0.5833333333 | H29: 2 | I29: 0 | J29: 0 | K29: 0 | L29: 0 | M29: 0 | N29: 1 | O29: 0 | P29: 6 | Q29: 7
B30: P106 | C30: 1 | D30: 0 | E30: 0 | F30: 1 | G30: 1 | H30: 1 | I30: 0 | J30: 0 | K30: 1 | L30: 0 | M30: 0 | N30: 0 | O30: 0 | P30: 0 | Q30: 0
B31: P113 | C31: 2 | D31: 0 | E31: 0 | F31: 1 | G31: 0.5 | H31: 0 | I31: 0 | J31: 0 | K31: 0 | L31: 1 | M31: 0 | N31: 0 | O31: 0 | P31: 0 | Q31: 0
B32: P201 | C32: 3 | D32: 0 | E32: 0 | F32: 2 | G32: 0.6666666667 | H32: 2 | I32: 2 | J32: 0 | K32: 0 | L32: 0 | M32: 0 | N32: 1 | O32: 2 | P32: 2 | Q32: 2
B33: P202 | C33: 3 | D33: 0 | E33: 0 | F33: 1 | G33: 0.3333333333 | H33: 0 | I33: 0 | J33: 0 | K33: 0 | L33: 0 | M33: 0 | N33: 1 | O33: 1 | P33: 1 | Q33: 0
B34: P206 | C34: 6 | D34: 0 | E34: 0 | F34: 3 | G34: 0.5 | H34: 3 | I34: 3 | J34: 2 | K34: 0 | L34: 0 | M34: 2 | N34: 2 | O34: 2 | P34: 3 | Q34: 3
B35: P303 | C35: 6 | D35: 2 | E35: 0.3333333333 | F35: 6 | G35: 1 | H35: 6 | I35: 4 | J35: 3 | K35: 2 | L35: 4 | M35: 4 | N35: 4 | O35: 4 | P35: 5 | Q35: 6
B36: P304 | C36: 2 | D36: 0 | E36: 0 | F36: 2 | G36: 1 | H36: 0 | I36: 0 | J36: 0 | K36: 0 | L36: 0 | M36: 0 | N36: 0 | O36: 1 | P36: 1 | Q36: 2
B37: P306 | C37: 3 | D37: 0 | E37: 0 | F37: 1 | G37: 0.3333333333 | H37: 0 | I37: 1 | J37: 0 | K37: 1 | L37: 0 | M37: 0 | N37: 0 | O37: 0 | P37: 1 | Q37: 0
B38: P310 | C38: 2 | D38: 0 | E38: 0 | F38: 2 | G38: 1 | H38: 2 | I38: 0 | J38: 1 | K38: 1 | L38: 2 | M38: 2 | N38: 2 | O38: 2 | P38: 2 | Q38: 2
B39: P352 | C39: 1 | D39: 1 | E39: 1 | F39: 1 | G39: 1 | H39: 1 | I39: 1 | J39: 1 | K39: 1 | L39: 1 | M39: 1 | N39: 1 | O39: 1 | P39: 1 | Q39: 1
B40: P353 | C40: 4 | D40: 0 | E40: 0 | F40: 1 | G40: 0.25 | H40: 0 | I40: 0 | J40: 1 | K40: 1 | L40: 0 | M40: 0 | N40: 1 | O40: 0 | P40: 1 | Q40: 1
B41: P354 | C41: 4 | D41: 0 | E41: 0 | F41: 1 | G41: 0.25 | H41: 0 | I41: 1 | J41: 0 | K41: 1 | L41: 0 | M41: 0 | N41: 0 | O41: 0 | P41: 0 | Q41: 1
B42: P357 | C42: 5 | D42: 0 | E42: 0 | F42: 4 | G42: 0.8 | H42: 4 | I42: 3 | J42: 2 | K42: 1 | L42: 0 | M42: 0 | N42: 1 | O42: 2 | P42: 4 | Q42: 3
B43: P385 | C43: 10 | D43: 5 | E43: 0.5 | F43: 8 | G43: 0.8 | H43: 8 | I43: 8 | J43: 7 | K43: 6 | L43: 5 | M43: 5 | N43: 5 | O43: 5 | P43: 6 | Q43: 6
B44: P401 | C44: 1 | D44: 0 | E44: 0 | F44: 1 | G44: 1 | H44: 1 | I44: 0 | J44: 0 | K44: 0 | L44: 0 | M44: 0 | N44: 0 | O44: 0 | P44: 0 | Q44: 0
B45: P402 | C45: 3 | D45: 0 | E45: 0 | F45: 0 | G45: 0 | H45: 0 | I45: 0 | J45: 0 | K45: 0 | L45: 0 | M45: 0 | N45: 0 | O45: 0 | P45: 0 | Q45: 0
B46: P406 | C46: 2 | D46: 0 | E46: 0 | F46: 1 | G46: 0.5 | H46: 1 | I46: 1 | J46: 1 | K46: 1 | L46: 0 | M46: 1 | N46: 1 | O46: 1 | P46: 0 | Q46: 0
B47: P415 | C47: 1 | D47: 0 | E47: 0 | F47: 1 | G47: 1 | H47: 0 | I47: 0 | J47: 0 | K47: 0 | L47: 0 | M47: 0 | N47: 0 | O47: 0 | P47: 1 | Q47: 1
B48: P416 | C48: 23 | D48: 0 | E48: 0 | F48: 14 | G48: 0.6086956522 | H48: 5 | I48: 0 | J48: 0 | K48: 0 | L48: 3 | M48: 3 | N48: 4 | O48: 4 | P48: 12 | Q48: 14
B49: P418 | C49: 6 | D49: 0 | E49: 0 | F49: 3 | G49: 0.5 | H49: 2 | I49: 3 | J49: 1 | K49: 2 | L49: 1 | M49: 1 | N49: 2 | O49: 0 | P49: 0 | Q49: 3
B50: P501 | C50: 5 | D50: 0 | E50: 0 | F50: 5 | G50: 1 | H50: 0 | I50: 1 | J50: 0 | K50: 0 | L50: 4 | M50: 5 | N50: 5 | O50: 5 | P50: 5 | Q50: 5
B51: P503 | C51: 6 | D51: 0 | E51: 0 | F51: 3 | G51: 0.5 | H51: 3 | I51: 2 | J51: 2 | K51: 1 | L51: 0 | M51: 0 | N51: 0 | O51: 1 | P51: 2 | Q51: 3
B52: P504 | C52: 6 | D52: 0 | E52: 0 | F52: 2 | G52: 0.3333333333 | H52: 1 | I52: 1 | J52: 0 | K52: 0 | L52: 1 | M52: 1 | N52: 0 | O52: 0 | P52: 1 | Q52: 2
B53: P506 | C53: 2 | D53: 0 | E53: 0 | F53: 2 | G53: 1 | H53: 2 | I53: 2 | J53: 0 | K53: 0 | L53: 2 | M53: 2 | N53: 2 | O53: 2 | P53: 2 | Q53: 2
B54: P507 | C54: 9 | D54: 0 | E54: 0 | F54: 7 | G54: 0.7777777778 | H54: 0 | I54: 0 | J54: 0 | K54: 0 | L54: 2 | M54: 2 | N54: 2 | O54: 5 | P54: 7 | Q54: 7
B55: P508 | C55: 10 | D55: 0 | E55: 0 | F55: 0 | G55: 0 | H55: 0 | I55: 0 | J55: 0 | K55: 0 | L55: 0 | M55: 0 | N55: 0 | O55: 0 | P55: 0 | Q55: 0
B56: P601 | C56: 10 | D56: 0 | E56: 0 | F56: 3 | G56: 0.3 | H56: 2 | I56: 0 | J56: 0 | K56: 1 | L56: 0 | M56: 0 | N56: 0 | O56: 1 | P56: 3 | Q56: 0
B57: P602 | C57: 4 | D57: 0 | E57: 0 | F57: 3 | G57: 0.75 | H57: 0 | I57: 0 | J57: 0 | K57: 0 | L57: 0 | M57: 0 | N57: 0 | O57: 3 | P57: 3 | Q57: 0
B58: P603 | C58: 18 | D58: 0 | E58: 0 | F58: 5 | G58: 0.2777777778 | H58: 0 | I58: 0 | J58: 0 | K58: 0 | L58: 0 | M58: 0 | N58: 0 | O58: 1 | P58: 5 | Q58: 0
B59: P604 | C59: 4 | D59: 0 | E59: 0 | F59: 0 | G59: 0 | H59: 0 | I59: 0 | J59: 0 | K59: 0 | L59: 0 | M59: 0 | N59: 0 | O59: 0 | P59: 0 | Q59: 0
B60: P605 | C60: 1 | D60: 0 | E60: 0 | F60: 1 | G60: 1 | H60: 0 | I60: 0 | J60: 0 | K60: 0 | L60: 0 | M60: 0 | N60: 1 | O60: 1 | P60: 1 | Q60: 0
B61: P606 | C61: 2 | D61: 0 | E61: 0 | F61: 2 | G61: 1 | H61: 0 | I61: 0 | J61: 0 | K61: 0 | L61: 1 | M61: 0 | N61: 1 | O61: 2 | P61: 1 | Q61: 0
B62: P608 | C62: 2 | D62: 0 | E62: 0 | F62: 0 | G62: 0 | H62: 0 | I62: 0 | J62: 0 | K62: 0 | L62: 0 | M62: 0 | N62: 0 | O62: 0 | P62: 0 | Q62: 0
B63: P610 | C63: 5 | D63: 0 | E63: 0 | F63: 2 | G63: 0.4 | H63: 0 | I63: 0 | J63: 0 | K63: 0 | L63: 0 | M63: 0 | N63: 0 | O63: 2 | P63: 1 | Q63: 0
B64: P702 | C64: 6 | D64: 0 | E64: 0 | F64: 5 | G64: 0.8333333333 | H64: 0 | I64: 5 | J64: 0 | K64: 0 | L64: 0 | M64: 4 | N64: 3 | O64: 4 | P64: 4 | Q64: 0
B65: P703 | C65: 11 | D65: 0 | E65: 0 | F65: 8 | G65: 0.7272727273 | H65: 8 | I65: 0 | J65: 0 | K65: 0 | L65: 5 | M65: 0 | N65: 6 | O65: 6 | P65: 6 | Q65: 0
B66: P706 | C66: 4 | D66: 0 | E66: 0 | F66: 2 | G66: 0.5 | H66: 0 | I66: 2 | J66: 0 | K66: 0 | L66: 1 | M66: 2 | N66: 1 | O66: 2 | P66: 2 | Q66: 0
B67: P707 | C67: 7 | D67: 0 | E67: 0 | F67: 6 | G67: 0.8571428571 | H67: 0 | I67: 0 | J67: 6 | K67: 0 | L67: 4 | M67: 3 | N67: 4 | O67: 5 | P67: 5 | Q67: 0
B68: P751 | C68: 4 | D68: 0 | E68: 0 | F68: 0 | G68: 0 | H68: 0 | I68: 0 | J68: 0 | K68: 0 | L68: 0 | M68: 0 | N68: 0 | O68: 0 | P68: 0 | Q68: 0
B69: P752 | C69: 2 | D69: 0 | E69: 0 | F69: 2 | G69: 1 | H69: 2 | I69: 2 | J69: 2 | K69: 1 | L69: 2 | M69: 2 | N69: 2 | O69: 0 | P69: 1 | Q69: 1
B70: P753 | C70: 2 | D70: 0 | E70: 0 | F70: 2 | G70: 1 | H70: 2 | I70: 1 | J70: 1 | K70: 1 | L70: 1 | M70: 2 | N70: 2 | O70: 0 | P70: 0 | Q70: 0
B71: P758 | C71: 2 | D71: 0 | E71: 0 | F71: 2 | G71: 1 | H71: 2 | I71: 2 | J71: 0 | K71: 2 | L71: 2 | M71: 0 | N71: 2 | O71: 1 | P71: 0 | Q71: 0
B72: P759 | C72: 9 | D72: 0 | E72: 0 | F72: 3 | G72: 0.3333333333 | H72: 1 | I72: 0 | J72: 1 | K72: 1 | L72: 1 | M72: 0 | N72: 1 | O72: 1 | P72: 3 | Q72: 3
B73: P760 | C73: 11 | D73: 0 | E73: 0 | F73: 5 | G73: 0.4545454545 | H73: 2 | I73: 3 | J73: 1 | K73: 0 | L73: 1 | M73: 2 | N73: 1 | O73: 3 | P73: 5 | Q73: 5
B74: P784 | C74: 18 | D74: 0 | E74: 0 | F74: 8 | G74: 0.4444444444 | H74: 7 | I74: 3 | J74: 3 | K74: 0 | L74: 2 | M74: 1 | N74: 3 | O74: 1 | P74: 8 | Q74: 5
B75: P785 | C75: 8 | D75: 0 | E75: 0 | F75: 4 | G75: 0.5 | H75: 3 | I75: 2 | J75: 2 | K75: 0 | L75: 0 | M75: 0 | N75: 0 | O75: 4 | P75: 4 | Q75: 4
B76: P953 | C76: 3 | D76: 0 | E76: 0 | F76: 2 | G76: 0.6666666667 | H76: 0 | I76: 0 | J76: 0 | K76: 0 | L76: 0 | M76: 2 | N76: 0 | O76: 0 | P76: 0 | Q76: 0
B77: P954 | C77: 3 | D77: 0 | E77: 0 | F77: 2 | G77: 0.6666666667 | H77: 0 | I77: 0 | J77: 0 | K77: 0 | L77: 0 | M77: 0 | N77: 0 | O77: 1 | P77: 1 | Q77: 2
B78: P955 | C78: 1 | D78: 0 | E78: 0 | F78: 1 | G78: 1 | H78: 1 | I78: 0 | J78: 0 | K78: 0 | L78: 0 | M78: 0 | N78: 0 | O78: 0 | P78: 1 | Q78: 1
B79: P957 | C79: 7 | D79: 0 | E79: 0 | F79: 2 | G79: 0.2857142857 | H79: 0 | I79: 0 | J79: 0 | K79: 0 | L79: 1 | M79: 1 | N79: 0 | O79: 0 | P79: 2 | Q79: 2
B80: P964 | C80: 11 | D80: 0 | E80: 0 | F80: 5 | G80: 0.4545454545 | H80: 0 | I80: 0 | J80: 0 | K80: 0 | L80: 0 | M80: 1 | N80: 1 | O80: 3 | P80: 5 | Q80: 5
B81: Pangea | C81: 17 | D81: 5 | E81: 0.2941176471 | F81: 9 | G81: 0.5294117647 | H81: 7 | I81: 9 | J81: 9 | K81: 9 | L81: 6 | M81: 6 | N81: 5 | O81: 8 | P81: 8 | Q81: 8
B82: Scholars | C82: 65 | D82: 7 | E82: 0.1076923077 | F82: 29 | G82: 0.4461538462 | H82: 14 | I82: 29 | J82: 24 | K82: 23 | L82: 19 | M82: 7 | N82: 7 | O82: 12 | P82: 12 | Q82: 23
B83: South | C83: 24 | D83: 0 | E83: 0 | F83: 8 | G83: 0.3333333333 | H83: 4 | I83: 6 | J83: 4 | K83: 0 | L83: 0 | M83: 0 | N83: 0 | O83: 2 | P83: 8 | Q83: 8
B84: TDLLN | C84: 22 | D84: 3 | E84: 0.1363636364 | F84: 15 | G84: 0.6818181818 | H84: 10 | I84: 4 | J84: 8 | K84: 15 | L84: 6 | M84: 13 | N84: 13 | O84: 3 | P84: 4 | Q84: 3
B85: Torrey Pines Center North | C85: 5 | D85: 2 | E85: 0.4 | F85: 3 | G85: 0.6 | H85: 2 | I85: 2 | J85: 3 | K85: 3 | L85: 2 | M85: 2 | N85: 2 | O85: 2 | P85: 2 | Q85: 3
B86: Torrey Pines Center South | C86: 16 | D86: 5 | E86: 0.3125 | F86: 10 | G86: 0.625 | H86: 8 | I86: 6 | J86: 6 | K86: 5 | L86: 5 | M86: 5 | N86: 6 | O86: 7 | P86: 8 | Q86: 10

Sheet Reserved By Location
A1: Space Type | B1: Location | C1: Stall Inventory | D1: Min # of Open Stalls | E1: Min % of Open Stalls | F1: Max # of Open Stalls | G1: Max % of Open Stalls | H1: Open Stalls @ 8am | I1: Open Stalls @ 9am | J1: Open Stalls @ 10am | K1: Open Stalls @ 11am | L1: Open Stalls @ 12pm | M1: Open Stalls @ 1pm | N1: Open Stalls @ 2pm | O1: Open Stalls @ 3pm | P1: Open Stalls @ 4pm | Q1: Open Stalls @ 5pm
A2: % Open Stalls | D2: (Min and Max values from varying hours) | H2: =H3/$C3 -> 0 | I2: 0 | J2: 0 | K2: 0 | L2: 0 | M2: 0 | N2: 0 | O2: 0 | P2: 0 | Q2: 0
A3: # Open Stalls | C3: =SUBTOTAL(9, C5:C9999) -> 1147 | H3: =SUBTOTAL(9, H5:H9999) -> 0 | I3: =SUBTOTAL(9, I5:I9999) -> 0 | J3: =SUBTOTAL(9, J5:J9999) -> 0 | K3: 0 | L3: 0 | M3: 0 | N3: 0 | O3: 0 | P3: 0 | Q3: 0
A4: Space Type | B4: Lot / Garage | C4: Sum of Inventory | D4: Sum of Min # | E4: Sum of Min % | F4: Sum of Max # | G4: Sum of Max % | H4: Sum of 8am | I4: Sum of 9am | J4: Sum of 10am | K4: Sum of 11am | L4: Sum of 12pm | M4: Sum of 1pm | N4: Sum of 2pm | O4: Sum of 3pm | P4: Sum of 4pm | Q4: Sum of 5pm
A5: Reserved
B6: 8980 | C6: 5 | D6: 0 | E6: 0 | F6: 0 | G6: 0 | H6: 0 | I6: 0 | J6: 0 | K6: 0 | L6: 0 | M6: 0 | N6: 0 | O6: 0 | P6: 0 | Q6: 0
B7: Arbor | C7: 19 | D7: 0 | E7: 0 | F7: 0 | G7: 0 | H7: 0 | I7: 0 | J7: 0 | K7: 0 | L7: 0 | M7: 0 | N7: 0 | O7: 0 | P7: 0 | Q7: 0
B8: Athena | C8: 214 | D8: 0 | E8: 0 | F8: 0 | G8: 0 | H8: 0 | I8: 0 | J8: 0 | K8: 0 | L8: 0 | M8: 0 | N8: 0 | O8: 0 | P8: 0 | Q8: 0
B9: Campus Point East | C9: 167 | D9: 0 | E9: 0 | F9: 0 | G9: 0 | H9: 0 | I9: 0 | J9: 0 | K9: 0 | L9: 0 | M9: 0 | N9: 0 | O9: 0 | P9: 0 | Q9: 0
B10: Campus Point West | C10: 28 | D10: 0 | E10: 0 | F10: 0 | G10: 0 | H10: 0 | I10: 0 | J10: 0 | K10: 0 | L10: 0 | M10: 0 | N10: 0 | O10: 0 | P10: 0 | Q10: 0
B11: Curb | C11: 8 | D11: 0 | E11: 0 | F11: 0 | G11: 0 | H11: 0 | I11: 0 | J11: 0 | K11: 0 | L11: 0 | M11: 0 | N11: 0 | O11: 0 | P11: 0 | Q11: 0
B12: Gilman | C12: 43 | D12: 0 | E12: 0 | F12: 0 | G12: 0 | H12: 0 | I12: 0 | J12: 0 | K12: 0 | L12: 0 | M12: 0 | N12: 0 | O12: 0 | P12: 0 | Q12: 0
B13: Hopkins | C13: 10 | D13: 0 | E13: 0 | F13: 0 | G13: 0 | H13: 0 | I13: 0 | J13: 0 | K13: 0 | L13: 0 | M13: 0 | N13: 0 | O13: 0 | P13: 0 | Q13: 0
B14: Nuevo West/Vela | C14: 1 | D14: 0 | E14: 0 | F14: 0 | G14: 0 | H14: 0 | I14: 0 | J14: 0 | K14: 0 | L14: 0 | M14: 0 | N14: 0 | O14: 0 | P14: 0 | Q14: 0
B15: P001 | C15: 2 | D15: 0 | E15: 0 | F15: 0 | G15: 0 | H15: 0 | I15: 0 | J15: 0 | K15: 0 | L15: 0 | M15: 0 | N15: 0 | O15: 0 | P15: 0 | Q15: 0
B16: P014 | C16: 0 | D16: 0 | F16: 0 | H16: 0 | I16: 0 | J16: 0 | K16: 0 | L16: 0 | M16: 0 | N16: 0 | O16: 0 | P16: 0 | Q16: 0
B17: P101 | C17: 1 | D17: 0 | E17: 0 | F17: 0 | G17: 0 | H17: 0 | I17: 0 | J17: 0 | K17: 0 | L17: 0 | M17: 0 | N17: 0 | O17: 0 | P17: 0 | Q17: 0
B18: P106 | C18: 6 | D18: 0 | E18: 0 | F18: 0 | G18: 0 | H18: 0 | I18: 0 | J18: 0 | K18: 0 | L18: 0 | M18: 0 | N18: 0 | O18: 0 | P18: 0 | Q18: 0
B19: P113 | C19: 4 | D19: 0 | E19: 0 | F19: 0 | G19: 0 | H19: 0 | I19: 0 | J19: 0 | K19: 0 | L19: 0 | M19: 0 | N19: 0 | O19: 0 | P19: 0 | Q19: 0
B20: P202 | C20: 1 | D20: 0 | E20: 0 | F20: 0 | G20: 0 | H20: 0 | I20: 0 | J20: 0 | K20: 0 | L20: 0 | M20: 0 | N20: 0 | O20: 0 | P20: 0 | Q20: 0
B21: P203 | C21: 5 | D21: 0 | E21: 0 | F21: 0 | G21: 0 | H21: 0 | I21: 0 | J21: 0 | K21: 0 | L21: 0 | M21: 0 | N21: 0 | O21: 0 | P21: 0 | Q21: 0
B22: P303 | C22: 5 | D22: 0 | E22: 0 | F22: 0 | G22: 0 | H22: 0 | I22: 0 | J22: 0 | K22: 0 | L22: 0 | M22: 0 | N22: 0 | O22: 0 | P22: 0 | Q22: 0
B23: P306 | C23: 4 | D23: 0 | E23: 0 | F23: 0 | G23: 0 | H23: 0 | I23: 0 | J23: 0 | K23: 0 | L23: 0 | M23: 0 | N23: 0 | O23: 0 | P23: 0 | Q23: 0
B24: P351 | C24: 10 | D24: 0 | E24: 0 | F24: 0 | G24: 0 | H24: 0 | I24: 0 | J24: 0 | K24: 0 | L24: 0 | M24: 0 | N24: 0 | O24: 0 | P24: 0 | Q24: 0
B25: P354 | C25: 1 | D25: 0 | E25: 0 | F25: 0 | G25: 0 | H25: 0 | I25: 0 | J25: 0 | K25: 0 | L25: 0 | M25: 0 | N25: 0 | O25: 0 | P25: 0 | Q25: 0
B26: P357 | C26: 2 | D26: 0 | E26: 0 | F26: 0 | G26: 0 | H26: 0 | I26: 0 | J26: 0 | K26: 0 | L26: 0 | M26: 0 | N26: 0 | O26: 0 | P26: 0 | Q26: 0
B27: P385 | C27: 11 | D27: 0 | E27: 0 | F27: 0 | G27: 0 | H27: 0 | I27: 0 | J27: 0 | K27: 0 | L27: 0 | M27: 0 | N27: 0 | O27: 0 | P27: 0 | Q27: 0
B28: P402 | C28: 4 | D28: 0 | E28: 0 | F28: 0 | G28: 0 | H28: 0 | I28: 0 | J28: 0 | K28: 0 | L28: 0 | M28: 0 | N28: 0 | O28: 0 | P28: 0 | Q28: 0
B29: P405 | C29: 1 | D29: 0 | E29: 0 | F29: 0 | G29: 0 | H29: 0 | I29: 0 | J29: 0 | K29: 0 | L29: 0 | M29: 0 | N29: 0 | O29: 0 | P29: 0 | Q29: 0
B30: P414 | C30: 3 | D30: 0 | E30: 0 | F30: 0 | G30: 0 | H30: 0 | I30: 0 | J30: 0 | K30: 0 | L30: 0 | M30: 0 | N30: 0 | O30: 0 | P30: 0 | Q30: 0
B31: P415 | C31: 8 | D31: 0 | E31: 0 | F31: 0 | G31: 0 | H31: 0 | I31: 0 | J31: 0 | K31: 0 | L31: 0 | M31: 0 | N31: 0 | O31: 0 | P31: 0 | Q31: 0
B32: P416 | C32: 44 | D32: 0 | E32: 0 | F32: 0 | G32: 0 | H32: 0 | I32: 0 | J32: 0 | K32: 0 | L32: 0 | M32: 0 | N32: 0 | O32: 0 | P32: 0 | Q32: 0
B33: P502 | C33: 7 | D33: 0 | E33: 0 | F33: 0 | G33: 0 | H33: 0 | I33: 0 | J33: 0 | K33: 0 | L33: 0 | M33: 0 | N33: 0 | O33: 0 | P33: 0 | Q33: 0
B34: P503 | C34: 23 | D34: 0 | E34: 0 | F34: 0 | G34: 0 | H34: 0 | I34: 0 | J34: 0 | K34: 0 | L34: 0 | M34: 0 | N34: 0 | O34: 0 | P34: 0 | Q34: 0
B35: P504 | C35: 7 | D35: 0 | E35: 0 | F35: 0 | G35: 0 | H35: 0 | I35: 0 | J35: 0 | K35: 0 | L35: 0 | M35: 0 | N35: 0 | O35: 0 | P35: 0 | Q35: 0
B36: P505 | C36: 4 | D36: 0 | E36: 0 | F36: 0 | G36: 0 | H36: 0 | I36: 0 | J36: 0 | K36: 0 | L36: 0 | M36: 0 | N36: 0 | O36: 0 | P36: 0 | Q36: 0
B37: P508 | C37: 16 | D37: 0 | E37: 0 | F37: 0 | G37: 0 | H37: 0 | I37: 0 | J37: 0 | K37: 0 | L37: 0 | M37: 0 | N37: 0 | O37: 0 | P37: 0 | Q37: 0
B38: P509 | C38: 1 | D38: 0 | E38: 0 | F38: 0 | G38: 0 | H38: 0 | I38: 0 | J38: 0 | K38: 0 | L38: 0 | M38: 0 | N38: 0 | O38: 0 | P38: 0 | Q38: 0
B39: P510 | C39: 3 | D39: 0 | E39: 0 | F39: 0 | G39: 0 | H39: 0 | I39: 0 | J39: 0 | K39: 0 | L39: 0 | M39: 0 | N39: 0 | O39: 0 | P39: 0 | Q39: 0
B40: P602 | C40: 90 | D40: 0 | E40: 0 | F40: 0 | G40: 0 | H40: 0 | I40: 0 | J40: 0 | K40: 0 | L40: 0 | M40: 0 | N40: 0 | O40: 0 | P40: 0 | Q40: 0
B41: P603 | C41: 44 | D41: 0 | E41: 0 | F41: 0 | G41: 0 | H41: 0 | I41: 0 | J41: 0 | K41: 0 | L41: 0 | M41: 0 | N41: 0 | O41: 0 | P41: 0 | Q41: 0
B42: P605 | C42: 8 | D42: 0 | E42: 0 | F42: 0 | G42: 0 | H42: 0 | I42: 0 | J42: 0 | K42: 0 | L42: 0 | M42: 0 | N42: 0 | O42: 0 | P42: 0 | Q42: 0
B43: P606 | C43: 6 | D43: 0 | E43: 0 | F43: 0 | G43: 0 | H43: 0 | I43: 0 | J43: 0 | K43: 0 | L43: 0 | M43: 0 | N43: 0 | O43: 0 | P43: 0 | Q43: 0
B44: P608 | C44: 1 | D44: 0 | E44: 0 | F44: 0 | G44: 0 | H44: 0 | I44: 0 | J44: 0 | K44: 0 | L44: 0 | M44: 0 | N44: 0 | O44: 0 | P44: 0 | Q44: 0
B45: P610 | C45: 22 | D45: 0 | E45: 0 | F45: 0 | G45: 0 | H45: 0 | I45: 0 | J45: 0 | K45: 0 | L45: 0 | M45: 0 | N45: 0 | O45: 0 | P45: 0 | Q45: 0
B46: P703 | C46: 2 | D46: 0 | E46: 0 | F46: 0 | G46: 0 | H46: 0 | I46: 0 | J46: 0 | K46: 0 | L46: 0 | M46: 0 | N46: 0 | O46: 0 | P46: 0 | Q46: 0
B47: P707 | C47: 6 | D47: 0 | E47: 0 | F47: 0 | G47: 0 | H47: 0 | I47: 0 | J47: 0 | K47: 0 | L47: 0 | M47: 0 | N47: 0 | O47: 0 | P47: 0 | Q47: 0
B48: P751 | C48: 0 | D48: 0 | F48: 0 | H48: 0 | I48: 0 | J48: 0 | K48: 0 | L48: 0 | M48: 0 | N48: 0 | O48: 0 | P48: 0 | Q48: 0
B49: P752 | C49: 24 | D49: 0 | E49: 0 | F49: 0 | G49: 0 | H49: 0 | I49: 0 | J49: 0 | K49: 0 | L49: 0 | M49: 0 | N49: 0 | O49: 0 | P49: 0 | Q49: 0
B50: P753 | C50: 32 | D50: 0 | E50: 0 | F50: 0 | G50: 0 | H50: 0 | I50: 0 | J50: 0 | K50: 0 | L50: 0 | M50: 0 | N50: 0 | O50: 0 | P50: 0 | Q50: 0
B51: P757 | C51: 0 | D51: 0 | F51: 0 | H51: 0 | I51: 0 | J51: 0 | K51: 0 | L51: 0 | M51: 0 | N51: 0 | O51: 0 | P51: 0 | Q51: 0
B52: P758 | C52: 5 | D52: 0 | E52: 0 | F52: 0 | G52: 0 | H52: 0 | I52: 0 | J52: 0 | K52: 0 | L52: 0 | M52: 0 | N52: 0 | O52: 0 | P52: 0 | Q52: 0
B53: P759 | C53: 17 | D53: 0 | E53: 0 | F53: 0 | G53: 0 | H53: 0 | I53: 0 | J53: 0 | K53: 0 | L53: 0 | M53: 0 | N53: 0 | O53: 0 | P53: 0 | Q53: 0
B54: P760 | C54: 1 | D54: 0 | E54: 0 | F54: 0 | G54: 0 | H54: 0 | I54: 0 | J54: 0 | K54: 0 | L54: 0 | M54: 0 | N54: 0 | O54: 0 | P54: 0 | Q54: 0
B55: P784 | C55: 9 | D55: 0 | E55: 0 | F55: 0 | G55: 0 | H55: 0 | I55: 0 | J55: 0 | K55: 0 | L55: 0 | M55: 0 | N55: 0 | O55: 0 | P55: 0 | Q55: 0
B56: P953 | C56: 7 | D56: 0 | E56: 0 | F56: 0 | G56: 0 | H56: 0 | I56: 0 | J56: 0 | K56: 0 | L56: 0 | M56: 0 | N56: 0 | O56: 0 | P56: 0 | Q56: 0
B57: P954 | C57: 25 | D57: 0 | E57: 0 | F57: 0 | G57: 0 | H57: 0 | I57: 0 | J57: 0 | K57: 0 | L57: 0 | M57: 0 | N57: 0 | O57: 0 | P57: 0 | Q57: 0
B58: P955 | C58: 21 | D58: 0 | E58: 0 | F58: 0 | G58: 0 | H58: 0 | I58: 0 | J58: 0 | K58: 0 | L58: 0 | M58: 0 | N58: 0 | O58: 0 | P58: 0 | Q58: 0
B59: P957 | C59: 67 | D59: 0 | E59: 0 | F59: 0 | G59: 0 | H59: 0 | I59: 0 | J59: 0 | K59: 0 | L59: 0 | M59: 0 | N59: 0 | O59: 0 | P59: 0 | Q59: 0
B60: P964 | C60: 37 | D60: 0 | E60: 0 | F60: 0 | G60: 0 | H60: 0 | I60: 0 | J60: 0 | K60: 0 | L60: 0 | M60: 0 | N60: 0 | O60: 0 | P60: 0 | Q60: 0
B61: Pangea | C61: 7 | D61: 0 | E61: 0 | F61: 0 | G61: 0 | H61: 0 | I61: 0 | J61: 0 | K61: 0 | L61: 0 | M61: 0 | N61: 0 | O61: 0 | P61: 0 | Q61: 0
B62: Scholars | C62: 29 | D62: 0 | E62: 0 | F62: 0 | G62: 0 | H62: 0 | I62: 0 | J62: 0 | K62: 0 | L62: 0 | M62: 0 | N62: 0 | O62: 0 | P62: 0 | Q62: 0
B63: South | C63: 5 | D63: 0 | E63: 0 | F63: 0 | G63: 0 | H63: 0 | I63: 0 | J63: 0 | K63: 0 | L63: 0 | M63: 0 | N63: 0 | O63: 0 | P63: 0 | Q63: 0
B64: TDLLN | C64: 0 | D64: 0 | F64: 0 | H64: 0 | I64: 0 | J64: 0 | K64: 0 | L64: 0 | M64: 0 | N64: 0 | O64: 0 | P64: 0 | Q64: 0
B65: Torrey Pines Center North | C65: 10 | D65: 0 | E65: 0 | F65: 0 | G65: 0 | H65: 0 | I65: 0 | J65: 0 | K65: 0 | L65: 0 | M65: 0 | N65: 0 | O65: 0 | P65: 0 | Q65: 0
B66: Torrey Pines Center South | C66: 4 | D66: 0 | E66: 0 | F66: 0 | G66: 0 | H66: 0 | I66: 0 | J66: 0 | K66: 0 | L66: 0 | M66: 0 | N66: 0 | O66: 0 | P66: 0 | Q66: 0
